﻿Directorate,Service,Division,Responsible Unit,Expense Type,Payment Date,Trans No,Net Amount,Supplier Name
Adults Services,Adult Social Care,Physical Support - adults (18-64),Public Health � Healthy Young Adults,Third Party Payments - Other Establishments,01/02/2017,3789082,"1,139.59",Kingston Hospital NHSFT
Adults Services,Adult Social Care,Support with Memory and Cognition - adults (18-64),Generic Care Packages NE Team -PS,Social Care - Nursing Care,01/02/2017,3798284,"2,290.01",Bakers Court Nursing Home
Adults Services,Adult Social Care,Support with Memory and Cognition - adults (18-64),Generic Care Packages NE Team-SMC,Social Care - Residential Care,01/02/2017,3798285,"2,231.65",Bakers Court Nursing Home
Adults Services,Adult Social Care,Physical Support - adults (18-64),Public Health � Healthy Environments,Third Party Payments - Voluntary Associations,01/02/2017,3809014,"4,200.00",Shift Foundation
Adults Services,Adult Social Care,Physical Support - adults (18-64),Public Health � Healthy Environments,Third Party Payments - Voluntary Associations,01/02/2017,3809135,"4,200.00",Shift Foundation
Adults Services,Adult Social Care,Physical Support - adults (18-64),Public Health � Healthy Environments,Third Party Payments - Voluntary Associations,01/02/2017,3809178,"4,200.00",Shift Foundation
Adults Services,Adult Social Care,Physical Support - adults (18-64),Public Health � Healthy Environments,Third Party Payments - Voluntary Associations,01/02/2017,3809192,"4,200.00",Shift Foundation
Adults Services,Adult Social Care,Support with Memory and Cognition - adults (18-64),Generic Care Packages SW Team - PS,Social Care - Nursing Care,01/02/2017,3809607,"5,011.06",Highgate Nursing Home (BUPA)
Adults Services,Adult Social Care,Physical Support - adults (18-64),Mayfield House Day Centre,Educational/Training Supplies - Resources,01/02/2017,3810119,"1,845.00",Mangar International Limited
Adults Services,Adult Social Care,Support with Memory and Cognition - adults (18-64),CLDS Longer Term Support Teams,Social Care - Day Care,01/02/2017,3811190,918.00,THE GARWOOD FOUNDATION
Adults Services,Adult Social Care,Support with Memory and Cognition - adults (18-64),Integration Project,Agency Staff - Health - Salary Recharge,01/02/2017,3812755,"7,509.17",Barts Health NHS Trust
Adults Services,General Fund/Council Fund,Homelessness,Supporting People Services,SP - Block-Gross - Old People-Supp Needs,01/02/2017,3816911,585.00,London Borough Of Newham
Adults Services,Adult Social Care,Physical Support - adults (18-64),Public Health � Healthy 0-5 year olds,Third Party Payments - Other Establishments,01/02/2017,3816942,"3,641.70",Tower Hamlets GP Care Group CIC
Adults Services,Adult Social Care,Physical Support - adults (18-64),Public Health � Healthy 0-5 year olds,Third Party Payments - Other Establishments,01/02/2017,3816943,"591,095.00",Tower Hamlets GP Care Group CIC
Adults Services,Adult Social Care,Support with Memory and Cognition - adults (18-64),CLDS Transition,Social Care - Residential Care,01/02/2017,3819776,"9,607.12",Wallace Crescent
Adults Services,Adult Social Care,Support with Memory and Cognition - adults (18-64),CLDS Longer Term Support Teams,Social Care - Day Care,01/02/2017,3819848,"1,255.51",ROSELOCK LTD
Adults Services,Adult Social Care,Support with Memory and Cognition - adults (18-64),CLDS Longer Term Support Teams,Social Care - Residential Care,01/02/2017,3819988,"5,490.76",ROSELOCK LTD
Adults Services,Adult Social Care,Support with Memory and Cognition - adults (18-64),CLDS Longer Term Support Teams,Social Care - Residential Care,01/02/2017,3819989,"1,874.19",ROSELOCK LTD
Adults Services,Adult Social Care,Support with Memory and Cognition - adults (18-64),CLDS Longer Term Support Teams,Social Care - Day Care,01/02/2017,3819989,"2,889.40",ROSELOCK LTD
Adults Services,Adult Social Care,Support with Memory and Cognition - adults (18-64),Cmht For Older People,Social Care - Residential Care,01/02/2017,3821789,"2,166.67",South Park Residential Home Limited
Adults Services,Adult Social Care,Support with Memory and Cognition - adults (18-64),Generic Care Packages SW Team-SMC,Social Care - Residential Care,01/02/2017,3822075,"2,379.34",CARE UK COMMUNITY PARTNERSHIPS LTD
Adults Services,Adult Social Care,Support with Memory and Cognition - adults (18-64),Generic Care Packages SW Team - PS,Social Care - Nursing Care,01/02/2017,3822222,"4,400.89",Heathlands Care Home
Adults Services,Adult Social Care,Support with Memory and Cognition - adults (18-64),Generic Care Packages SW Team - PS,Social Care - Residential Care,01/02/2017,3822226,"3,914.86",CARE UK COMMUNITY PARTNERSHIPS LTD
Adults Services,Adult Social Care,Support with Memory and Cognition - adults (18-64),Generic Care Packages SE Team -PS,Social Care - Nursing Care,01/02/2017,3822227,"3,014.97",CARE UK COMMUNITY PARTNERSHIPS LTD
Adults Services,Adult Social Care,Support with Memory and Cognition - adults (18-64),Generic Care Packages SE Team -PS,Social Care - Nursing Care,01/02/2017,3822316,"2,184.04",Sunhill Court
Adults Services,Adult Social Care,Support with Memory and Cognition - adults (18-64),Generic Care Packages SW Team - PS,Social Care - Nursing Care,01/02/2017,3823269,"4,843.75",Barchester Cheverton Lodge Care Home
Adults Services,Adult Social Care,Support with Memory and Cognition - adults (18-64),Generic Care Packages NW Team -PS,Social Care - Home Care (Short Term),01/02/2017,3823272,"1,428.80",Soma Healthcare Ltd
Adults Services,Adult Social Care,Support with Memory and Cognition - adults (18-64),CLDS Longer Term Support Teams,Social Care - Homecare,01/02/2017,3823273,881.60,Soma Healthcare Ltd
Adults Services,Adult Social Care,Support with Memory and Cognition - adults (18-64),Generic Care Packages NW Team -PS,Social Care - Homecare,01/02/2017,3823275,684.00,Soma Healthcare Ltd
Adults Services,Adult Social Care,Support with Memory and Cognition - adults (18-64),Generic Care Packages NE Team -PS,Social Care - Homecare,01/02/2017,3823277,676.40,Soma Healthcare Ltd
Adults Services,Adult Social Care,Support with Memory and Cognition - adults (18-64),Generic Care Packages SW Team - PS,Social Care - Homecare,01/02/2017,3823278,"1,824.00",Soma Healthcare Ltd
Adults Services,Adult Social Care,Support with Memory and Cognition - adults (18-64),Generic Care Packages SE Team -PS,Social Care - Homecare,01/02/2017,3823279,547.20,Soma Healthcare Ltd
Adults Services,Adult Social Care,Support with Memory and Cognition - adults (18-64),Generic Care Packages NW Team -PS,Social Care - Homecare,01/02/2017,3823282,824.60,Soma Healthcare Ltd
Adults Services,Adult Social Care,Support with Memory and Cognition - adults (18-64),Generic Care Packages SW Team - PS,Social Care - Homecare,01/02/2017,3823283,"2,310.40",Soma Healthcare Ltd
Adults Services,Adult Social Care,Support with Memory and Cognition - adults (18-64),Generic Care Packages NW Team -PS,Social Care - Homecare,01/02/2017,3823292,554.80,Soma Healthcare Ltd
Adults Services,Adult Social Care,Support with Memory and Cognition - adults (18-64),Generic Care Packages SE Team -PS,Social Care - Home Care (Short Term),01/02/2017,3823298,"1,295.80",Soma Healthcare Ltd
Adults Services,Adult Social Care,Support with Memory and Cognition - adults (18-64),Generic Care Packages SW Team - PS,Social Care - Homecare,01/02/2017,3823299,"1,223.60",Soma Healthcare Ltd
Adults Services,Adult Social Care,Support with Memory and Cognition - adults (18-64),Generic Care Packages SW Team - PS,Social Care - Homecare,01/02/2017,3823301,592.80,Soma Healthcare Ltd
Adults Services,Adult Social Care,Support with Memory and Cognition - adults (18-64),Generic Care Packages NE Team -PS,Social Care - Homecare,01/02/2017,3823304,965.20,Soma Healthcare Ltd
Adults Services,Adult Social Care,Support with Memory and Cognition - adults (18-64),Generic Care Packages NW Team -PS,Social Care - Home Care (Short Term),01/02/2017,3823305,699.20,Soma Healthcare Ltd
Adults Services,Adult Social Care,Support with Memory and Cognition - adults (18-64),Generic Care Packages NW Team -PS,Social Care - Homecare,01/02/2017,3823306,"1,854.40",Soma Healthcare Ltd
Adults Services,Adult Social Care,Support with Memory and Cognition - adults (18-64),Generic Care Packages SE Team -PS,Social Care - Home Care (Short Term),01/02/2017,3823310,927.20,Soma Healthcare Ltd
Adults Services,Adult Social Care,Support with Memory and Cognition - adults (18-64),Generic Care Packages SW Team - PS,Social Care - Homecare,01/02/2017,3823313,661.20,Soma Healthcare Ltd
Adults Services,Adult Social Care,Support with Memory and Cognition - adults (18-64),Generic Care Packages SE Team -PS,Social Care - Homecare,01/02/2017,3823317,"1,542.80",Soma Healthcare Ltd
Adults Services,Adult Social Care,Support with Memory and Cognition - adults (18-64),Generic Care Packages SE Team -PS,Social Care - Homecare,01/02/2017,3823319,611.80,Soma Healthcare Ltd
Adults Services,Adult Social Care,Support with Memory and Cognition - adults (18-64),Generic Care Packages SE Team -PS,Social Care - Homecare,01/02/2017,3823320,513.00,Soma Healthcare Ltd
Adults Services,Adult Social Care,Support with Memory and Cognition - adults (18-64),Generic Care Packages SE Team -PS,Social Care - Homecare,01/02/2017,3823325,"1,136.20",Soma Healthcare Ltd
Adults Services,Adult Social Care,Support with Memory and Cognition - adults (18-64),Generic Care Packages NW Team -PS,Social Care - Homecare,01/02/2017,3823329,"2,006.40",Soma Healthcare Ltd
Adults Services,Adult Social Care,Support with Memory and Cognition - adults (18-64),Generic Care Packages SW Team - PS,Social Care - Home Care (Short Term),01/02/2017,3823333,579.50,Soma Healthcare Ltd
Adults Services,Adult Social Care,Support with Memory and Cognition - adults (18-64),Generic Care Packages SE Team -PS,Social Care - Homecare,01/02/2017,3823334,543.40,Soma Healthcare Ltd
Adults Services,Adult Social Care,Support with Memory and Cognition - adults (18-64),Generic Care Packages NE Team -PS,Social Care - Homecare,01/02/2017,3823336,870.20,Soma Healthcare Ltd
Adults Services,Adult Social Care,Support with Memory and Cognition - adults (18-64),Generic Care Packages SE Team -PS,Social Care - Homecare,01/02/2017,3823337,613.20,Soma Healthcare Ltd
Adults Services,Adult Social Care,Support with Memory and Cognition - adults (18-64),CLDS Longer Term Support Teams,Social Care - Homecare,01/02/2017,3823338,615.60,Soma Healthcare Ltd
Adults Services,Adult Social Care,Support with Memory and Cognition - adults (18-64),Generic Care Packages SE Team -SI,Social Care - Homecare,01/02/2017,3823339,623.20,Soma Healthcare Ltd
Adults Services,Adult Social Care,Support with Memory and Cognition - adults (18-64),Generic Care Packages NE Team -PS,Social Care - Homecare,01/02/2017,3823340,672.60,Soma Healthcare Ltd
Adults Services,Adult Social Care,Support with Memory and Cognition - adults (18-64),Generic Care Packages SW Team - PS,Social Care - Home Care (Short Term),01/02/2017,3823347,570.00,Soma Healthcare Ltd
Adults Services,Adult Social Care,Support with Memory and Cognition - adults (18-64),Generic Care Packages NE Team -PS,Social Care - Homecare,01/02/2017,3823353,"1,022.20",Soma Healthcare Ltd
Adults Services,Adult Social Care,Support with Memory and Cognition - adults (18-64),Generic Care Packages SW Team - PS,Social Care - Homecare,01/02/2017,3823354,"1,246.40",Soma Healthcare Ltd
Adults Services,Adult Social Care,Support with Memory and Cognition - adults (18-64),Generic Care Packages SE Team -PS,Social Care - Homecare,01/02/2017,3823357,744.80,Soma Healthcare Ltd
Adults Services,Adult Social Care,Support with Memory and Cognition - adults (18-64),Generic Care Packages SW Team - PS,Social Care - Homecare,01/02/2017,3823360,653.60,Soma Healthcare Ltd
Adults Services,Adult Social Care,Support with Memory and Cognition - adults (18-64),Generic Care Packages NE Team -PS,Social Care - Homecare,01/02/2017,3823367,"2,120.40",Soma Healthcare Ltd
Adults Services,Adult Social Care,Support with Memory and Cognition - adults (18-64),CLDS Longer Term Support Teams,Social Care - Residential Care,01/02/2017,3823382,"8,179.31",Care Management Group Ltd
Adults Services,Adult Social Care,Support with Memory and Cognition - adults (18-64),Cmht Iod / Poplar South,Social Care - Prevention & Support,01/02/2017,3823383,"2,214.29",Sign Health
Adults Services,Adult Social Care,Support with Memory and Cognition - adults (18-64),Generic Care Packages NE Team -PS,Social Care - Prevention & Support,01/02/2017,3823384,"2,214.29",Sign Health
Adults Services,Adult Social Care,Support with Memory and Cognition - adults (18-64),Cmht Iod / Poplar South,Social Care - Supported Living,01/02/2017,3823385,"3,522.84",Sign Health
Adults Services,Adult Social Care,Support with Memory and Cognition - adults (18-64),Generic Care Packages NE Team -PS,Social Care - Supported Living,01/02/2017,3823386,"3,522.84",Sign Health
Adults Services,Adult Social Care,Support with Memory and Cognition - adults (18-64),Generic Care Packages NE Team -PS,Social Care - Residential Care,01/02/2017,3823387,"9,920.00",CHRISTCHURCH COURT
Adults Services,Adult Social Care,Support with Memory and Cognition - adults (18-64),Generic Care Packages NE Team -PS,Social Care - Homecare,01/02/2017,3823400,906.09,ATHLONE CARE LTD
Adults Services,Adult Social Care,Support with Memory and Cognition - adults (18-64),Generic Care Packages NE Team -PS,Social Care - Homecare,01/02/2017,3823402,"1,350.14",ATHLONE CARE LTD
Adults Services,Adult Social Care,Support with Memory and Cognition - adults (18-64),Generic Care Packages NE Team -PS,Social Care - Homecare,01/02/2017,3823409,501.78,ATHLONE CARE LTD
Adults Services,Adult Social Care,Support with Memory and Cognition - adults (18-64),Generic Care Packages NW Team -PS,Social Care - Homecare,01/02/2017,3823415,613.70,ATHLONE CARE LTD
Adults Services,Adult Social Care,Support with Memory and Cognition - adults (18-64),Generic Care Packages NE Team -PS,Social Care - Homecare,01/02/2017,3823416,703.95,ATHLONE CARE LTD
Adults Services,Adult Social Care,Support with Memory and Cognition - adults (18-64),Generic Care Packages SW Team - PS,Social Care - Homecare,01/02/2017,3823418,693.11,ATHLONE CARE LTD
Adults Services,Adult Social Care,Support with Memory and Cognition - adults (18-64),Generic Care Packages SE Team -PS,Social Care - Homecare,01/02/2017,3823420,"1,270.70",ATHLONE CARE LTD
Adults Services,Adult Social Care,Support with Memory and Cognition - adults (18-64),Generic Care Packages NW Team -PS,Social Care - Homecare,01/02/2017,3823421,"1,985.50",ATHLONE CARE LTD
Adults Services,Adult Social Care,Support with Memory and Cognition - adults (18-64),Generic Care Packages NW Team-SMC,Social Care - Homecare,01/02/2017,3823424,649.80,ATHLONE CARE LTD
Adults Services,Adult Social Care,Support with Memory and Cognition - adults (18-64),Generic Care Packages NW Team -PS,Social Care - Homecare,01/02/2017,3823431,783.35,ATHLONE CARE LTD
Adults Services,Adult Social Care,Support with Memory and Cognition - adults (18-64),Generic Care Packages NE Team -PS,Social Care - Home Care (Short Term),01/02/2017,3823432,"1,494.50",ATHLONE CARE LTD
Adults Services,Adult Social Care,Support with Memory and Cognition - adults (18-64),CLDS Longer Term Support Teams,Social Care - Residential Care,01/02/2017,3823436,"9,492.91",AITCH CARE HOMES LONDON LTD
Adults Services,Adult Social Care,Support with Memory and Cognition - adults (18-64),CLDS Longer Term Support Teams,Social Care - Residential Care,01/02/2017,3823437,"8,928.89",AITCH CARE HOMES LONDON LTD
Adults Services,Adult Social Care,Support with Memory and Cognition - adults (18-64),CLDS Longer Term Support Teams,Social Care - Day Care,01/02/2017,3823438,"2,720.00",ST MARKS DAY SERVICE
Adults Services,Adult Social Care,Support with Memory and Cognition - adults (18-64),Generic Care Packages NE Team -PS,Social Care - Residential Care,01/02/2017,3823439,"2,415.61",Nightingale Residential Care Home Ltx
Adults Services,Adult Social Care,Support with Memory and Cognition - adults (18-64),Cmht Bethnal Green,Social Care - Prevention & Support,01/02/2017,3823441,"1,960.00",City Inn Express Limited
Adults Services,Adult Social Care,Support with Memory and Cognition - adults (18-64),Cmht Bethnal Green,Social Care - Prevention & Support,01/02/2017,3823442,"1,960.00",City Inn Express Limited
Adults Services,Adult Social Care,Support with Memory and Cognition - adults (18-64),Generic Care Packages SE Team -AS,Social Care - Prevention & Support,01/02/2017,3823443,"1,960.00",City Inn Express Limited
Adults Services,Adult Social Care,Support with Memory and Cognition - adults (18-64),Generic Care Packages NE Team -PS,Social Care - Prevention & Support,01/02/2017,3823444,"3,360.00",City Inn Express Limited
Adults Services,Adult Social Care,Support with Memory and Cognition - adults (18-64),CLDS Longer Term Support Teams,Social Care - Residential Care,01/02/2017,3823445,"9,087.43",Care Management Group Ltd
Adults Services,Adult Social Care,Support with Memory and Cognition - adults (18-64),CLDS Longer Term Support Teams,Social Care - Homecare,01/02/2017,3823447,"3,379.18",Excelcare (Home Care Division) LTD
Adults Services,Adult Social Care,Support with Memory and Cognition - adults (18-64),Generic Care Packages NE Team -PS,Social Care - Prevention & Support,01/02/2017,3823451,"1,808.00",CITY VIEW HOTEL LTD
Adults Services,Adult Social Care,Support with Memory and Cognition - adults (18-64),Cmht Bow / Poplar North,Social Care - Residential Care,01/02/2017,3823452,"-15,663.00",C.H.O.I.C.E Ltd
Adults Services,Adult Social Care,Support with Memory and Cognition - adults (18-64),Cmht Iod / Poplar South,Social Care - Residential Care,01/02/2017,3823452,"17,040.00",C.H.O.I.C.E Ltd
Adults Services,Adult Social Care,Support with Memory and Cognition - adults (18-64),CLDS Longer Term Support Teams,Social Care - Residential Care,01/02/2017,3823454,"-31,564.94",SOLOR CARE GROUP LTD
Adults Services,Adult Social Care,Support with Memory and Cognition - adults (18-64),CLDS Longer Term Support Teams,Social Care - Residential Care,01/02/2017,3823455,"32,964.67",SOLOR CARE GROUP LTD
Adults Services,Adult Social Care,Support with Memory and Cognition - adults (18-64),Generic Care Packages SE Team -PS,Social Care - Direct Payments,01/02/2017,3823456,"1,803.75",D D PAYROLL SERVICES
Adults Services,Adult Social Care,Support with Memory and Cognition - adults (18-64),Generic Care Packages SW Team - PS,Social Care - Direct Payments,01/02/2017,3823457,"1,291.96",DAVID HOWARD LTD CLIENT ACCOUNT
Adults Services,Adult Social Care,Physical Support - adults (18-64),"Failed Care Package Conversion		",Social Care - Others,01/02/2017,3823460,-664.13,Soma Healthcare Ltd
Adults Services,Adult Social Care,Physical Support - adults (18-64),"Failed Care Package Conversion		",Social Care - Others,01/02/2017,3823461,"1,023.21",Soma Healthcare Ltd
Adults Services,Adult Social Care,Support with Memory and Cognition - adults (18-64),Generic Care Packages NE Team -PS,Social Care - Nursing Care,01/02/2017,3823462,"3,542.86",Bennetts Castlle Care Home
Adults Services,Adult Social Care,Support with Memory and Cognition - adults (18-64),Generic Care Packages SW Team - PS,Social Care - Home Care (Short Term),01/02/2017,3823463,937.65,Oasis Care & Training Agency
Adults Services,Adult Social Care,Support with Memory and Cognition - adults (18-64),Generic Care Packages SW Team - PS,Social Care - Home Care (Short Term),01/02/2017,3823468,902.40,Oasis Care & Training Agency
Adults Services,Adult Social Care,Support with Memory and Cognition - adults (18-64),Generic Care Packages NE Team -PS,Social Care - Homecare,01/02/2017,3823471,515.85,Oasis Care & Training Agency
Adults Services,Adult Social Care,Support with Memory and Cognition - adults (18-64),Generic Care Packages SW Team - PS,Social Care - Home Care (Short Term),01/02/2017,3823472,955.55,Oasis Care & Training Agency
Adults Services,Adult Social Care,Support with Memory and Cognition - adults (18-64),Generic Care Packages NE Team -PS,Social Care - Homecare,01/02/2017,3823476,708.60,Oasis Care & Training Agency
Adults Services,Adult Social Care,Support with Memory and Cognition - adults (18-64),Generic Care Packages SW Team - PS,Social Care - Home Care (Short Term),01/02/2017,3823477,"1,038.53",Oasis Care & Training Agency
Adults Services,Adult Social Care,Support with Memory and Cognition - adults (18-64),Generic Care Packages SE Team -PS,Social Care - Home Care (Short Term),01/02/2017,3823486,"1,260.85",SEVACARE UK LTD
Adults Services,Adult Social Care,Support with Memory and Cognition - adults (18-64),Generic Care Packages SE Team -PS,Social Care - Home Care (Short Term),01/02/2017,3823488,"1,283.53",SEVACARE UK LTD
Adults Services,Adult Social Care,Support with Memory and Cognition - adults (18-64),Generic Care Packages SE Team -PS,Social Care - Home Care (Short Term),01/02/2017,3823490,"1,132.50",SEVACARE UK LTD
Adults Services,Adult Social Care,Support with Memory and Cognition - adults (18-64),Generic Care Packages NW Team -PS,Social Care - Home Care (Short Term),01/02/2017,3823496,"5,515.65",SEVACARE UK LTD
Adults Services,Adult Social Care,Support with Memory and Cognition - adults (18-64),Generic Care Packages SE Team -PS,Social Care - Homecare,01/02/2017,3823497,"1,189.65",SEVACARE UK LTD
Adults Services,Adult Social Care,Support with Memory and Cognition - adults (18-64),Generic Care Packages SW Team - PS,Social Care - Homecare,01/02/2017,3823498,"1,127.85",SEVACARE UK LTD
Adults Services,Adult Social Care,Support with Memory and Cognition - adults (18-64),Generic Care Packages SE Team -PS,Social Care - Home Care (Short Term),01/02/2017,3823499,"1,297.80",SEVACARE UK LTD
Adults Services,Adult Social Care,Support with Memory and Cognition - adults (18-64),Generic Care Packages NE Team -PS,Social Care - Homecare,01/02/2017,3823501,"1,266.90",SEVACARE UK LTD
Adults Services,Adult Social Care,Support with Memory and Cognition - adults (18-64),Generic Care Packages SE Team-SMC,Social Care - Homecare,01/02/2017,3823502,"1,622.25",SEVACARE UK LTD
Adults Services,Adult Social Care,Support with Memory and Cognition - adults (18-64),Generic Care Packages NE Team -PS,Social Care - Homecare,01/02/2017,3823503,"1,205.10",SEVACARE UK LTD
Adults Services,Adult Social Care,Support with Memory and Cognition - adults (18-64),Generic Care Packages SW Team - PS,Social Care - Homecare,01/02/2017,3823504,950.18,SEVACARE UK LTD
Adults Services,Adult Social Care,Support with Memory and Cognition - adults (18-64),Generic Care Packages SE Team -PS,Social Care - Home Care (Short Term),01/02/2017,3823505,"1,019.70",SEVACARE UK LTD
Adults Services,Adult Social Care,Support with Memory and Cognition - adults (18-64),Generic Care Packages NW Team -PS,Social Care - Home Care (Short Term),01/02/2017,3823506,"5,712.64",SEVACARE UK LTD
Adults Services,Adult Social Care,Support with Memory and Cognition - adults (18-64),CLDS Longer Term Support Teams,Social Care - Residential Care,01/02/2017,3823508,"2,331.16",Goldcarehomes
Adults Services,Adult Social Care,Support with Memory and Cognition - adults (18-64),Generic Care Packages SW Team -SM,Social Care - Residential Care,01/02/2017,3823510,"3,188.57",THE ISLAND RESIDENTIAL HOME LTD
Adults Services,Adult Social Care,Support with Memory and Cognition - adults (18-64),Cmht Stepney / Wapping,Social Care - Supported Living,01/02/2017,3823511,"2,435.71",ANGEL SUPPORT LIVING LTD
Adults Services,Adult Social Care,Support with Memory and Cognition - adults (18-64),Cmht Iod / Poplar South,Social Care - Supported Living,01/02/2017,3823512,"2,103.57",ANGEL SUPPORT LIVING LTD
Adults Services,Adult Social Care,Support with Memory and Cognition - adults (18-64),CLDS Transition,Social Care - Residential Care,01/02/2017,3823513,-634.50,Wallace Crescent
Adults Services,Adult Social Care,Support with Memory and Cognition - adults (18-64),CLDS Transition,Social Care - Residential Care,01/02/2017,3823514,"-2,185.00",Wallace Crescent
Adults Services,Adult Social Care,Support with Memory and Cognition - adults (18-64),Generic Care Packages NW Team -PS,Social Care - Homecare,01/02/2017,3823564,739.14,MiHOMECARE LIMITED
Adults Services,Adult Social Care,Support with Memory and Cognition - adults (18-64),Generic Care Packages SE Team -PS,Social Care - Homecare,01/02/2017,3823571,517.31,MiHOMECARE LIMITED
Adults Services,Adult Social Care,Support with Memory and Cognition - adults (18-64),Cmht For Older People,Social Care - Residential Care,01/02/2017,3823579,"2,932.91",AVANTE CARE & SUPPORT
Adults Services,Adult Social Care,Support with Memory and Cognition - adults (18-64),CLDS Longer Term Support Teams,Social Care - Residential Care,01/02/2017,3823582,"9,150.00",APASENTH
Adults Services,Adult Social Care,Support with Memory and Cognition - adults (18-64),CLDS Longer Term Support Teams,Social Care - Residential Care,01/02/2017,3823583,"10,065.00",APASENTH
Adults Services,Adult Social Care,Support with Memory and Cognition - adults (18-64),CLDS Longer Term Support Teams,Social Care - Residential Care,01/02/2017,3823584,"9,150.00",APASENTH
Adults Services,Adult Social Care,Support with Memory and Cognition - adults (18-64),CLDS Longer Term Support Teams,Social Care - Residential Care,01/02/2017,3823585,"10,065.00",APASENTH
Adults Services,Adult Social Care,Support with Memory and Cognition - adults (18-64),CLDS Longer Term Support Teams,Social Care - Residential Care,01/02/2017,3823586,"7,307.14",DELROSE HOUSE LIMITED
Adults Services,Adult Social Care,Support with Memory and Cognition - adults (18-64),"Generic Care Packages NE Team-MH			",Social Care - Residential Care,01/02/2017,3823587,"3,188.57",THE ISLAND RESIDENTIAL HOME LTD
Adults Services,Adult Social Care,Support with Memory and Cognition - adults (18-64),CLDS Longer Term Support Teams,Social Care - Day Care,01/02/2017,3823592,"1,708.40",POETRY IN WOOD
Adults Services,Adult Social Care,Support with Memory and Cognition - adults (18-64),Cmht For Older People,Social Care - Residential Care,01/02/2017,3823602,"1,747.74",Romford Care Centre
Adults Services,Adult Social Care,Support with Memory and Cognition - adults (18-64),Generic Care Packages SW Team - PS,Social Care - Homecare,01/02/2017,3823603,571.65,St Hilda's East Community Centre
Adults Services,Adult Social Care,Support with Memory and Cognition - adults (18-64),Generic Care Packages NE Team -PS,Social Care - Home Care (Short Term),01/02/2017,3823605,"1,081.50",St Hilda's East Community Centre
Adults Services,Adult Social Care,Support with Memory and Cognition - adults (18-64),Generic Care Packages SW Team - PS,Social Care - Homecare,01/02/2017,3823610,973.35,St Hilda's East Community Centre
Adults Services,Adult Social Care,Support with Memory and Cognition - adults (18-64),Generic Care Packages NE Team -PS,Social Care - Homecare,01/02/2017,3823611,"1,730.40",St Hilda's East Community Centre
Adults Services,Adult Social Care,Support with Memory and Cognition - adults (18-64),Cmht Bow / Poplar North,Social Care - Nursing Care,01/02/2017,3823639,"3,958.52",THE BRITISH HOME
Adults Services,Adult Social Care,Support with Memory and Cognition - adults (18-64),Generic Care Packages NW Team-SMC,Social Care - Residential Care,01/02/2017,3823640,"2,258.57",SUMMERDALE COURT CARE CENTRE
Adults Services,Adult Social Care,Support with Memory and Cognition - adults (18-64),Generic Care Packages NW Team-SMC,Social Care - Residential Care,01/02/2017,3823641,"2,258.57",SUMMERDALE COURT CARE CENTRE
Adults Services,No Service Specified,No Division Specified,Community Equipment Store,Social Care - Nursing Care,03/02/2017,3790363,"33,000.00",Barts Health NHS Trust
Adults Services,Adult Social Care,Support with Memory and Cognition - adults (18-64),CLDS Longer Term Support Teams,Social Care - Supported Living,03/02/2017,3811332,"13,644.03",ADVANCE HOUSING & SUPPORT LTD
Adults Services,Adult Social Care,Support with Memory and Cognition - adults (18-64),Generic Care Packages NE Team -PS,Social Care - Day Care,03/02/2017,3811400,789.18,Peabody Trust
Adults Services,Adult Social Care,Support with Memory and Cognition - adults (18-64),Generic Care Packages NW Team-SMC,Social Care - Day Care,03/02/2017,3811403,601.28,Peabody Trust
Adults Services,Adult Social Care,Support with Memory and Cognition - adults (18-64),Generic Care Packages NW Team -PS,Social Care - Day Care,03/02/2017,3811410,589.62,Peabody Trust
Adults Services,Adult Social Care,Support with Memory and Cognition - adults (18-64),Generic Care Packages NW Team -PS,Social Care - Day Care,03/02/2017,3811418,789.18,Peabody Trust
Adults Services,Adult Social Care,Support with Memory and Cognition - adults (18-64),Generic Care Packages NW Team -PS,Social Care - Day Care,03/02/2017,3811420,633.12,Peabody Trust
Adults Services,Adult Social Care,Support with Memory and Cognition - adults (18-64),Generic Care Packages SE Team -PS,Non Staff Transport Costs - Client Transport Costs,03/02/2017,3811430,520.20,Peabody Trust
Adults Services,Adult Social Care,Support with Memory and Cognition - adults (18-64),Generic Care Packages NW Team -PS,Social Care - Day Care,03/02/2017,3811441,670.70,Peabody Trust
Adults Services,Adult Social Care,Support with Memory and Cognition - adults (18-64),Generic Care Packages NE Team -PS,Social Care - Day Care,03/02/2017,3811449,826.76,Peabody Trust
Adults Services,Adult Social Care,Support with Memory and Cognition - adults (18-64),Generic Care Packages NW Team-SMC,Social Care - Day Care,03/02/2017,3811452,676.44,Peabody Trust
Adults Services,Adult Social Care,Support with Memory and Cognition - adults (18-64),Generic Care Packages SE Team -SP,Social Care - Day Care,03/02/2017,3811461,618.68,Peabody Trust
Adults Services,Adult Social Care,Support with Memory and Cognition - adults (18-64),Generic Care Packages NW Team -PS,Social Care - Day Care,03/02/2017,3811465,826.76,Peabody Trust
Adults Services,Adult Social Care,Support with Memory and Cognition - adults (18-64),Generic Care Packages SE Team-SMC,Social Care - Day Care,03/02/2017,3811467,526.12,Peabody Trust
Adults Services,Adult Social Care,Support with Memory and Cognition - adults (18-64),Generic Care Packages NE Team -PS,Social Care - Day Care,03/02/2017,3811468,526.12,Peabody Trust
Adults Services,Adult Social Care,Support with Memory and Cognition - adults (18-64),Cmht For Older People,Social Care - Day Care,03/02/2017,3811475,578.14,Peabody Trust
Adults Services,Adult Social Care,Support with Memory and Cognition - adults (18-64),Generic Care Packages SE Team -PS,Social Care - Day Care,03/02/2017,3811476,826.76,Peabody Trust
Adults Services,Adult Social Care,Support with Memory and Cognition - adults (18-64),Generic Care Packages NW Team -PS,Social Care - Day Care,03/02/2017,3811486,722.72,Peabody Trust
Adults Services,Adult Social Care,Support with Memory and Cognition - adults (18-64),Generic Care Packages NW Team-SMC,Social Care - Day Care,03/02/2017,3811497,624.42,Peabody Trust
Adults Services,Adult Social Care,Support with Memory and Cognition - adults (18-64),Generic Care Packages NW Team -PS,Social Care - Day Care,03/02/2017,3811512,722.72,Peabody Trust
Adults Services,Adult Social Care,Support with Memory and Cognition - adults (18-64),Generic Care Packages SE Team -PS,Social Care - Day Care,03/02/2017,3811521,618.68,Peabody Trust
Adults Services,Adult Social Care,Support with Memory and Cognition - adults (18-64),Cmht For Older People,Social Care - Day Care,03/02/2017,3813451,852.68,Peabody Trust
Adults Services,Adult Social Care,Support with Memory and Cognition - adults (18-64),CLDS Longer Term Support Teams,Social Care - Homecare,03/02/2017,3813481,"2,411.64",Outward Housing
Adults Services,Adult Social Care,Support with Memory and Cognition - adults (18-64),CLDS Longer Term Support Teams,Social Care - Homecare,03/02/2017,3813482,880.44,Outward Housing
Adults Services,Adult Social Care,Support with Memory and Cognition - adults (18-64),CLDS Longer Term Support Teams,Social Care - Homecare,03/02/2017,3813483,918.72,Outward Housing
Adults Services,Adult Social Care,Support with Memory and Cognition - adults (18-64),CLDS Longer Term Support Teams,Social Care - Homecare,03/02/2017,3813484,612.48,Outward Housing
Adults Services,Adult Social Care,Support with Memory and Cognition - adults (18-64),CLDS Longer Term Support Teams,Social Care - Prevention & Support,03/02/2017,3813485,765.60,Outward Housing
Adults Services,Adult Social Care,Support with Memory and Cognition - adults (18-64),CLDS Longer Term Support Teams,Social Care - Homecare,03/02/2017,3813490,962.47,Outward Housing
Adults Services,Adult Social Care,Support with Memory and Cognition - adults (18-64),CLDS Longer Term Support Teams,Social Care - Homecare,03/02/2017,3813491,535.92,Outward Housing
Adults Services,Adult Social Care,Support with Memory and Cognition - adults (18-64),CLDS Longer Term Support Teams,Social Care - Homecare,03/02/2017,3813493,"1,224.96",Outward Housing
Adults Services,Adult Social Care,Support with Memory and Cognition - adults (18-64),CLDS Longer Term Support Teams,Social Care - Prevention & Support,03/02/2017,3813494,"1,607.76",Outward Housing
Adults Services,Adult Social Care,Support with Memory and Cognition - adults (18-64),CLDS Longer Term Support Teams,Social Care - Homecare,03/02/2017,3813495,593.34,Outward Housing
Adults Services,Adult Social Care,Support with Memory and Cognition - adults (18-64),CLDS Longer Term Support Teams,Social Care - Homecare,03/02/2017,3813497,612.48,Outward Housing
Adults Services,Adult Social Care,Support with Memory and Cognition - adults (18-64),CLDS Longer Term Support Teams,Social Care - Homecare,03/02/2017,3813499,"1,071.84",Outward Housing
Adults Services,Adult Social Care,Support with Memory and Cognition - adults (18-64),CLDS Longer Term Support Teams,Social Care - Homecare,03/02/2017,3813500,765.60,Outward Housing
Adults Services,Adult Social Care,Support with Memory and Cognition - adults (18-64),CLDS Longer Term Support Teams,Social Care - Homecare,03/02/2017,3813502,689.04,Outward Housing
Adults Services,Adult Social Care,Support with Memory and Cognition - adults (18-64),CLDS Longer Term Support Teams,Social Care - Prevention & Support,03/02/2017,3813503,535.92,Outward Housing
Adults Services,Adult Social Care,Support with Memory and Cognition - adults (18-64),CLDS Longer Term Support Teams,Social Care - Prevention & Support,03/02/2017,3813504,"1,282.38",Outward Housing
Adults Services,Adult Social Care,Support with Memory and Cognition - adults (18-64),CLDS Longer Term Support Teams,Social Care - Prevention & Support,03/02/2017,3813510,"1,148.00",Outward Housing
Adults Services,Adult Social Care,Support with Memory and Cognition - adults (18-64),CLDS Longer Term Support Teams,Social Care - Prevention & Support,03/02/2017,3813511,"1,224.96",Outward Housing
Adults Services,Adult Social Care,Support with Memory and Cognition - adults (18-64),CLDS Longer Term Support Teams,Social Care - Homecare,03/02/2017,3813513,"1,177.11",Outward Housing
Adults Services,Adult Social Care,Support with Memory and Cognition - adults (18-64),CLDS Longer Term Support Teams,Social Care - Homecare,03/02/2017,3813516,765.60,Outward Housing
Adults Services,Adult Social Care,Support with Memory and Cognition - adults (18-64),CLDS Longer Term Support Teams,Social Care - Homecare,03/02/2017,3813518,574.20,Outward Housing
Adults Services,General Fund/Council Fund,Homelessness,Supporting People Services,SP - Block Subsidy - Old People-Supp Needs,03/02/2017,3814776,"-1,993.82",Genesis Housing Association
Adults Services,General Fund/Council Fund,Homelessness,Supporting People Services,SP - Block Subsidy - Old People-Supp Needs,03/02/2017,3815380,-687.04,Genesis Housing Association
Adults Services,General Fund/Council Fund,Homelessness,Supporting People Services,SP - Block Subsidy - Old People-Supp Needs,03/02/2017,3815384,524.32,Genesis Housing Association
Adults Services,No Service Specified,No Division Specified,Community Equipment Store,Uniforms & Clothing,03/02/2017,3815962,796.00,Enfield Safety Supplies
Adults Services,Adult Social Care,Support with Memory and Cognition - adults (18-64),CLDS Longer Term Support Teams,Social Care - Supported Living,03/02/2017,3817421,"1,828.12",ADVANCE HOUSING & SUPPORT LTD
Adults Services,Adult Social Care,Support with Memory and Cognition - adults (18-64),CLDS Longer Term Support Teams,Social Care - Prevention & Support,03/02/2017,3817544,765.60,Outward Housing
Adults Services,Adult Social Care,Support with Memory and Cognition - adults (18-64),Generic Care Packages NW Team -PS,Social Care - Residential Care,03/02/2017,3821759,"3,365.71",Federation of Jewish Services
Adults Services,Adult Social Care,Support with Memory and Cognition - adults (18-64),Generic Care Packages SE Team -SP,Social Care - Residential Care,03/02/2017,3821979,-879.43,GATEWAY HOUSING ASSOCIATION
Adults Services,Adult Social Care,Support with Memory and Cognition - adults (18-64),Generic Care Packages SW Team - PS,Social Care - Residential Care,03/02/2017,3822072,"1,675.95",BRENTWOOD CARE CENTRE
Adults Services,Adult Social Care,Support with Memory and Cognition - adults (18-64),Generic Care Packages NE Team-SMC,Social Care - Nursing Care,03/02/2017,3822228,"3,530.29",TOPCARE LTD
Adults Services,Adult Social Care,Physical Support - adults (18-64),Adult Protection Team,Services - Professional Fees - Financial Services Fees,03/02/2017,3822591,729.05,VOICEABILITY
Adults Services,Adult Social Care,Support with Memory and Cognition - adults (18-64),Generic Care Packages NW Team -PS,Social Care - Residential Care,03/02/2017,3823448,"3,764.29",OULTON PARK CARE CENTRE
Adults Services,Adult Social Care,Support with Memory and Cognition - adults (18-64),Generic Care Packages NE Team -PS,Social Care - Nursing Care,03/02/2017,3823580,"3,100.00",TOPCARE LTD
Adults Services,Adult Social Care,Support with Memory and Cognition - adults (18-64),Cmht Iod / Poplar South,Social Care - Residential Care,03/02/2017,3825058,"3,542.86",Number Residential Care Home
Adults Services,Adult Social Care,Support with Memory and Cognition - adults (18-64),Cmht Iod / Poplar South,Social Care - Residential Care,03/02/2017,3825059,"3,542.86",Number Residential Care Home
Adults Services,Adult Social Care,Support with Memory and Cognition - adults (18-64),Cmht Bow / Poplar North,Social Care - Day Care,03/02/2017,3825060,550.00,CORE ARTS LTD
Adults Services,Adult Social Care,Support with Memory and Cognition - adults (18-64),Cmht Bethnal Green,Social Care - Day Care,03/02/2017,3825061,550.00,CORE ARTS LTD
Adults Services,Adult Social Care,Support with Memory and Cognition - adults (18-64),Cmht Bethnal Green,Social Care - Day Care,03/02/2017,3825062,550.00,CORE ARTS LTD
Adults Services,Adult Social Care,Support with Memory and Cognition - adults (18-64),Cmht Bow / Poplar North,Social Care - Day Care,03/02/2017,3825063,550.00,CORE ARTS LTD
Adults Services,Adult Social Care,Support with Memory and Cognition - adults (18-64),Cmht Bethnal Green,Social Care - Day Care,03/02/2017,3825066,550.00,CORE ARTS LTD
Adults Services,Adult Social Care,Support with Memory and Cognition - adults (18-64),Cmht Bow / Poplar North,Social Care - Day Care,03/02/2017,3825067,550.00,CORE ARTS LTD
Adults Services,Adult Social Care,Support with Memory and Cognition - adults (18-64),Cmht Bethnal Green,Social Care - Day Care,03/02/2017,3825068,550.00,CORE ARTS LTD
Adults Services,Adult Social Care,Support with Memory and Cognition - adults (18-64),Cmht Bow / Poplar North,Social Care - Day Care,03/02/2017,3825069,770.00,CORE ARTS LTD
Adults Services,Adult Social Care,Support with Memory and Cognition - adults (18-64),Cmht Bow / Poplar North,Social Care - Day Care,03/02/2017,3825070,550.00,CORE ARTS LTD
Adults Services,Adult Social Care,Support with Memory and Cognition - adults (18-64),Cmht Bethnal Green,Social Care - Day Care,03/02/2017,3825071,550.00,CORE ARTS LTD
Adults Services,Adult Social Care,Support with Memory and Cognition - adults (18-64),Cmht Bethnal Green,Social Care - Day Care,03/02/2017,3825072,550.00,CORE ARTS LTD
Adults Services,Adult Social Care,Support with Memory and Cognition - adults (18-64),Cmht Bow / Poplar North,Social Care - Day Care,03/02/2017,3825073,550.00,CORE ARTS LTD
Adults Services,Adult Social Care,Support with Memory and Cognition - adults (18-64),Cmht Iod / Poplar South,Social Care - Day Care,03/02/2017,3825074,550.00,CORE ARTS LTD
Adults Services,Adult Social Care,Support with Memory and Cognition - adults (18-64),Cmht Bethnal Green,Social Care - Day Care,03/02/2017,3825076,550.00,CORE ARTS LTD
Adults Services,Adult Social Care,Support with Memory and Cognition - adults (18-64),Cmht Bow / Poplar North,Social Care - Day Care,03/02/2017,3825077,550.00,CORE ARTS LTD
Adults Services,Adult Social Care,Support with Memory and Cognition - adults (18-64),Cmht Bethnal Green,Social Care - Day Care,03/02/2017,3825078,550.00,CORE ARTS LTD
Adults Services,Adult Social Care,Support with Memory and Cognition - adults (18-64),Cmht Bow / Poplar North,Social Care - Day Care,03/02/2017,3825079,770.00,CORE ARTS LTD
Adults Services,Adult Social Care,Support with Memory and Cognition - adults (18-64),Cmht Bethnal Green,Social Care - Supported Living,03/02/2017,3825080,"3,603.81",J M CAREHOMES LIMITED
Adults Services,Adult Social Care,Support with Memory and Cognition - adults (18-64),Generic Care Packages SE Team -PS,Social Care - Homecare,03/02/2017,3825085,"1,865.80",Soma Healthcare Ltd
Adults Services,Adult Social Care,Support with Memory and Cognition - adults (18-64),Generic Care Packages NE Team -PS,Social Care - Home Care (Short Term),03/02/2017,3825086,524.40,Soma Healthcare Ltd
Adults Services,Adult Social Care,Support with Memory and Cognition - adults (18-64),Generic Care Packages SE Team -PS,Social Care - Homecare,03/02/2017,3825088,965.20,Soma Healthcare Ltd
Adults Services,Adult Social Care,Support with Memory and Cognition - adults (18-64),Generic Care Packages NE Team -PS,Social Care - Homecare,03/02/2017,3825091,623.20,Soma Healthcare Ltd
Adults Services,Adult Social Care,Support with Memory and Cognition - adults (18-64),Generic Care Packages SW Team - PS,Social Care - Homecare,03/02/2017,3825099,501.60,Soma Healthcare Ltd
Adults Services,Adult Social Care,Support with Memory and Cognition - adults (18-64),Generic Care Packages SE Team -PS,Social Care - Homecare,03/02/2017,3825104,566.20,Soma Healthcare Ltd
Adults Services,Adult Social Care,Support with Memory and Cognition - adults (18-64),Generic Care Packages SW Team - PS,Social Care - Home Care (Short Term),03/02/2017,3825107,"3,440.81",Astha Ltd
Adults Services,Adult Social Care,Support with Memory and Cognition - adults (18-64),Generic Care Packages SE Team -PS,Social Care - Homecare,03/02/2017,3825116,866.36,ATHLONE CARE LTD
Adults Services,Adult Social Care,Support with Memory and Cognition - adults (18-64),Generic Care Packages NE Team -PS,Social Care - Homecare,03/02/2017,3825129,"1,184.08",ATHLONE CARE LTD
Adults Services,Adult Social Care,Support with Memory and Cognition - adults (18-64),Generic Care Packages SE Team -PS,Social Care - Homecare,03/02/2017,3825132,"1,028.84",ATHLONE CARE LTD
Adults Services,Adult Social Care,Support with Memory and Cognition - adults (18-64),Generic Care Packages NW Team -PS,Social Care - Homecare,03/02/2017,3825133,"1,350.14",ATHLONE CARE LTD
Adults Services,Adult Social Care,Support with Memory and Cognition - adults (18-64),Generic Care Packages NW Team -PS,Social Care - Homecare,03/02/2017,3825136,"1,064.94",ATHLONE CARE LTD
Adults Services,Adult Social Care,Support with Memory and Cognition - adults (18-64),Generic Care Packages NE Team -PS,Social Care - Nursing Care,03/02/2017,3825143,"3,321.43",Craven Park Nursing (GSG Nursing Homes Ltd)
Adults Services,Adult Social Care,Support with Memory and Cognition - adults (18-64),Generic Care Packages NE Team -PS,Social Care - Nursing Care,03/02/2017,3825144,"3,321.43",Craven Park Nursing (GSG Nursing Homes Ltd)
Adults Services,Adult Social Care,Support with Memory and Cognition - adults (18-64),Cmht For Older People,Social Care - Supported Living,03/02/2017,3825145,"2,505.07",J M CAREHOMES LIMITED
Adults Services,Adult Social Care,Support with Memory and Cognition - adults (18-64),CLDS Longer Term Support Teams,Social Care - Residential Care,03/02/2017,3825146,"3,400.58",Craegmoor Roseneath Avenue
Adults Services,Adult Social Care,Support with Memory and Cognition - adults (18-64),CLDS Longer Term Support Teams,Social Care - Prevention & Support,03/02/2017,3825146,783.90,Craegmoor Roseneath Avenue
Adults Services,Adult Social Care,Support with Memory and Cognition - adults (18-64),CLDS Longer Term Support Teams,Social Care - Residential Care,03/02/2017,3825147,"2,422.96",Craegmoor Roseneath Avenue
Adults Services,Adult Social Care,Physical Support - adults (18-64),"Failed Care Package Conversion		",Social Care - Others,03/02/2017,3825148,"1,336.74",Craegmoor Roseneath Avenue
Adults Services,Adult Social Care,Support with Memory and Cognition - adults (18-64),CLDS Longer Term Support Teams,Social Care - Homecare,03/02/2017,3825149,"1,743.33",MEARS CARE LTD
Adults Services,Adult Social Care,Support with Memory and Cognition - adults (18-64),CLDS Longer Term Support Teams,Social Care - Homecare,03/02/2017,3825150,"2,599.80",MEARS CARE LTD
Adults Services,Adult Social Care,Physical Support - adults (18-64),"Failed Care Package Conversion		",Social Care - Mental Health,03/02/2017,3825154,"1,200.00",EXPRESSIONS WITH ART
Adults Services,Adult Social Care,Physical Support - adults (18-64),"Failed Care Package Conversion		",Social Care - Mental Health,03/02/2017,3825155,"1,080.25",FEEL GOOD FRIDAY
Adults Services,Adult Social Care,Physical Support - adults (18-64),"Failed Care Package Conversion		",Social Care - Mental Health,03/02/2017,3825156,742.75,HANDYCRAFT
Adults Services,Adult Social Care,Physical Support - adults (18-64),"Failed Care Package Conversion		",Social Care - Mental Health,03/02/2017,3825157,"1,184.75",HUSH
Adults Services,Adult Social Care,Physical Support - adults (18-64),"Carers & Cross Cutting Issues		",Social Care - Prevention & Support - Block,03/02/2017,3825159,792.25,Melody Makers Group
Adults Services,Adult Social Care,Physical Support - adults (18-64),"Failed Care Package Conversion		",Social Care - Mental Health,03/02/2017,3825162,591.50,PERFORMING ARTS AND CINEMA CLUB
Adults Services,Adult Social Care,Physical Support - adults (18-64),"Carers & Cross Cutting Issues		",Social Care - Prevention & Support - Block,03/02/2017,3825163,750.00,Phoenix
Adults Services,Adult Social Care,Physical Support - adults (18-64),"Carers & Cross Cutting Issues		",Social Care - Prevention & Support - Block,03/02/2017,3825164,998.75,Toynbee Hall
Adults Services,Adult Social Care,Physical Support - adults (18-64),"Failed Care Package Conversion		",Social Care - Mental Health,03/02/2017,3825165,"1,250.00",Thai Boxing Fighters Academy
Adults Services,Adult Social Care,Physical Support - adults (18-64),"Carers & Cross Cutting Issues		",Social Care - Prevention & Support - Block,03/02/2017,3825166,702.50,Time to Talk
Adults Services,Adult Social Care,Physical Support - adults (18-64),"Failed Care Package Conversion		",Social Care - Mental Health,03/02/2017,3825168,899.00,VIETNAMESE MENTAL HEALTH SERVICES
Adults Services,Adult Social Care,Physical Support - adults (18-64),"Failed Care Package Conversion		",Social Care - Mental Health,03/02/2017,3825169,505.00,VOICES WITHIN (BOWHAVEN)
Adults Services,General Fund/Council Fund,Homelessness,Supporting People Services,SP - Block-Gross - Single Homeless,03/02/2017,3825170,"75,781.05",Salvation Army
Adults Services,General Fund/Council Fund,Homelessness,Supporting People Services,SP - Block-Gross - Mental Health,03/02/2017,3825171,"6,651.25",Providence Row Housing Association
Adults Services,General Fund/Council Fund,Homelessness,Supporting People Services,SP - Block-Gross - Single Homeless,03/02/2017,3825171,"147,492.66",Providence Row Housing Association
Adults Services,General Fund/Council Fund,Homelessness,Supporting People Services,SP - Block-Gross - Learning Disabilities,03/02/2017,3825172,"40,768.62",Outward Housing
Adults Services,General Fund/Council Fund,Homelessness,Supporting People Services,SP - Block-Gross - Domestic Violence,03/02/2017,3825173,"25,722.58",HESTIA HOUSING & SUPPORT
Adults Services,General Fund/Council Fund,Homelessness,Supporting People Services,SP - Block-Gross - Mental Health,03/02/2017,3825173,"57,064.19",HESTIA HOUSING & SUPPORT
Adults Services,General Fund/Council Fund,Homelessness,Supporting People Services,SP - Block-Gross - Y People Risk/Care Lev,03/02/2017,3825174,"12,166.67",Kipper Project
Adults Services,General Fund/Council Fund,Homelessness,Supporting People Services,SP - Block-Gross - Old People-Supp Needs,03/02/2017,3825176,606.67,CIRCLE SUPPORT CONSORTIUM
Adults Services,General Fund/Council Fund,Homelessness,Supporting People Services,SP - Block-Gross - Y People Risk/Care Lev,03/02/2017,3825177,"20,416.67",One Housing Group
Adults Services,General Fund/Council Fund,Homelessness,Supporting People Services,SP - Block-Gross - Generic,03/02/2017,3825178,"41,389.75",Look Ahead Care & Support Ltd
Adults Services,General Fund/Council Fund,Homelessness,Supporting People Services,SP - Block-Gross - Learning Disabilities,03/02/2017,3825178,"50,388.14",Look Ahead Care & Support Ltd
Adults Services,General Fund/Council Fund,Homelessness,Supporting People Services,SP - Block-Gross - Mental Health,03/02/2017,3825178,"223,737.20",Look Ahead Care & Support Ltd
Adults Services,General Fund/Council Fund,Homelessness,Supporting People Services,SP - Block-Gross - Single Homeless,03/02/2017,3825178,"118,704.00",Look Ahead Care & Support Ltd
Adults Services,General Fund/Council Fund,Homelessness,Supporting People Services,SP - Block-Gross - Y People Risk/Care Lev,03/02/2017,3825178,"62,943.49",Look Ahead Care & Support Ltd
Adults Services,Adult Social Care,Support with Memory and Cognition - adults (18-64),CLDS Longer Term Support Teams,Social Care - Residential Care,03/02/2017,3825179,"9,200.00",Coppice Care Burgess Hill LLP
Adults Services,Adult Social Care,Support with Memory and Cognition - adults (18-64),Cmht For Older People,Social Care - Direct Payments,03/02/2017,3825781,"6,767.86",DAVID HOWARD LTD CLIENT ACCOUNT
Adults Services,Adult Social Care,Physical Support - adults (18-64),"Failed Care Package Conversion		",Social Care - Extra Care Sheltered Housing,03/02/2017,3825789,"56,424.16",Creative Support
Adults Services,General Fund/Council Fund,Homelessness,Supporting People Services,SP - Block-Gross - Single Homeless,03/02/2017,3825790,"75,781.05",Salvation Army
Adults Services,General Fund/Council Fund,Homelessness,Supporting People Services,SP - Block-Gross - Mental Health,03/02/2017,3825791,"6,651.25",Providence Row Housing Association
Adults Services,General Fund/Council Fund,Homelessness,Supporting People Services,SP - Block-Gross - Single Homeless,03/02/2017,3825791,"147,492.66",Providence Row Housing Association
Adults Services,General Fund/Council Fund,Homelessness,Supporting People Services,SP - Block-Gross - Learning Disabilities,03/02/2017,3825792,"40,768.62",Outward Housing
Adults Services,General Fund/Council Fund,Homelessness,Supporting People Services,SP - Block-Gross - Domestic Violence,03/02/2017,3825793,"25,722.58",HESTIA HOUSING & SUPPORT
Adults Services,General Fund/Council Fund,Homelessness,Supporting People Services,SP - Block-Gross - Mental Health,03/02/2017,3825793,"57,064.19",HESTIA HOUSING & SUPPORT
Adults Services,General Fund/Council Fund,Homelessness,Supporting People Services,SP - Block-Gross - Y People Risk/Care Lev,03/02/2017,3825794,"12,166.67",Kipper Project
Adults Services,General Fund/Council Fund,Homelessness,Supporting People Services,SP - Block-Gross - Old People-Supp Needs,03/02/2017,3825796,606.67,CIRCLE SUPPORT CONSORTIUM
Adults Services,General Fund/Council Fund,Homelessness,Supporting People Services,SP - Block-Gross - Y People Risk/Care Lev,03/02/2017,3825797,"20,416.67",One Housing Group
Adults Services,General Fund/Council Fund,Homelessness,Supporting People Services,SP - Block-Gross - Generic,03/02/2017,3825798,"41,389.75",Look Ahead Care & Support Ltd
Adults Services,General Fund/Council Fund,Homelessness,Supporting People Services,SP - Block-Gross - Learning Disabilities,03/02/2017,3825798,"50,388.14",Look Ahead Care & Support Ltd
Adults Services,General Fund/Council Fund,Homelessness,Supporting People Services,SP - Block-Gross - Mental Health,03/02/2017,3825798,"207,772.91",Look Ahead Care & Support Ltd
Adults Services,General Fund/Council Fund,Homelessness,Supporting People Services,SP - Block-Gross - Single Homeless,03/02/2017,3825798,"118,704.00",Look Ahead Care & Support Ltd
Adults Services,General Fund/Council Fund,Homelessness,Supporting People Services,SP - Block-Gross - Y People Risk/Care Lev,03/02/2017,3825798,"62,943.49",Look Ahead Care & Support Ltd
Adults Services,Adult Social Care,Support with Memory and Cognition - adults (18-64),Generic Care Packages SE Team -PS,Social Care - Extra Care Sheltered Housing,03/02/2017,3826394,"27,541.32",Creative Support
Adults Services,Adult Social Care,Support with Memory and Cognition - adults (18-64),Generic Care Packages SE Team -PS,Social Care - Extra Care Sheltered Housing,03/02/2017,3826395,"27,541.32",Creative Support
Adults Services,Adult Social Care,Support with Memory and Cognition - adults (18-64),Generic Care Packages SE Team -PS,Social Care - Extra Care Sheltered Housing,03/02/2017,3826396,"27,541.32",Creative Support
Adults Services,Adult Social Care,Support with Memory and Cognition - adults (18-64),Generic Care Packages SE Team -PS,Social Care - Extra Care Sheltered Housing,03/02/2017,3826397,"27,541.32",Creative Support
Adults Services,Adult Social Care,Support with Memory and Cognition - adults (18-64),Cmht For Older People,Social Care - Homecare,03/02/2017,3826398,588.90,SEVACARE UK LTD
Adults Services,Adult Social Care,Support with Memory and Cognition - adults (18-64),Cmht For Older People,Social Care - Homecare,03/02/2017,3826399,588.90,SEVACARE UK LTD
Adults Services,Adult Social Care,Support with Memory and Cognition - adults (18-64),Generic Care Packages SW Team - PS,Social Care - Home Care (Short Term),03/02/2017,3826405,"1,042.20",FOCUS CARE LINK LTD
Adults Services,Adult Social Care,Support with Memory and Cognition - adults (18-64),Generic Care Packages SE Team -PS,Social Care - Homecare,03/02/2017,3826406,"1,911.01",FOCUS CARE LINK LTD
Adults Services,Adult Social Care,Support with Memory and Cognition - adults (18-64),Generic Care Packages SE Team -PS,Social Care - Homecare,03/02/2017,3826413,"1,729.28",FOCUS CARE LINK LTD
Adults Services,Adult Social Care,Support with Memory and Cognition - adults (18-64),Cmht Bow / Poplar North,Social Care - Homecare,03/02/2017,3826414,509.52,FOCUS CARE LINK LTD
Adults Services,Adult Social Care,Support with Memory and Cognition - adults (18-64),Generic Care Packages NW Team -PS,Social Care - Homecare,03/02/2017,3826417,571.28,FOCUS CARE LINK LTD
Adults Services,Adult Social Care,Support with Memory and Cognition - adults (18-64),Generic Care Packages NE Team -PS,Social Care - Home Care (Short Term),03/02/2017,3826418,"1,371.38",FOCUS CARE LINK LTD
Adults Services,Adult Social Care,Support with Memory and Cognition - adults (18-64),Generic Care Packages NW Team -PS,Social Care - Home Care (Short Term),03/02/2017,3826421,"1,078.02",FOCUS CARE LINK LTD
Adults Services,Adult Social Care,Support with Memory and Cognition - adults (18-64),Generic Care Packages SW Team - PS,Social Care - Homecare,03/02/2017,3826423,"1,513.12",FOCUS CARE LINK LTD
Adults Services,Adult Social Care,Support with Memory and Cognition - adults (18-64),Generic Care Packages NE Team -PS,Social Care - Homecare,03/02/2017,3826434,992.48,FOCUS CARE LINK LTD
Adults Services,Adult Social Care,Support with Memory and Cognition - adults (18-64),Generic Care Packages NW Team -PS,Social Care - Homecare,03/02/2017,3826440,748.84,FOCUS CARE LINK LTD
Adults Services,Adult Social Care,Support with Memory and Cognition - adults (18-64),Generic Care Packages NW Team -PS,Social Care - Home Care (Short Term),03/02/2017,3826455,514.15,FOCUS CARE LINK LTD
Adults Services,Adult Social Care,Support with Memory and Cognition - adults (18-64),Cmht Bow / Poplar North,Social Care - Homecare,03/02/2017,3826459,"1,119.40",FOCUS CARE LINK LTD
Adults Services,Adult Social Care,Support with Memory and Cognition - adults (18-64),Generic Care Packages SE Team -PS,Social Care - Home Care (Short Term),03/02/2017,3826481,941.84,FOCUS CARE LINK LTD
Adults Services,Adult Social Care,Support with Memory and Cognition - adults (18-64),Generic Care Packages NE Team -PS,Social Care - Homecare,03/02/2017,3826486,"1,188.88",FOCUS CARE LINK LTD
Adults Services,Adult Social Care,Support with Memory and Cognition - adults (18-64),Generic Care Packages SE Team -PS,Social Care - Homecare,03/02/2017,3826490,779.72,FOCUS CARE LINK LTD
Adults Services,Adult Social Care,Support with Memory and Cognition - adults (18-64),Generic Care Packages SW Team - PS,Social Care - Homecare,03/02/2017,3826493,"1,713.84",FOCUS CARE LINK LTD
Adults Services,Adult Social Care,Support with Memory and Cognition - adults (18-64),Generic Care Packages NE Team -PS,Social Care - Homecare,03/02/2017,3826494,540.40,FOCUS CARE LINK LTD
Adults Services,Adult Social Care,Support with Memory and Cognition - adults (18-64),Generic Care Packages SE Team -PS,Social Care - Homecare,03/02/2017,3826494,571.28,FOCUS CARE LINK LTD
Adults Services,Adult Social Care,Support with Memory and Cognition - adults (18-64),Generic Care Packages NW Team -PS,Social Care - Homecare,03/02/2017,3826495,"1,175.94",SEVACARE UK LTD
Adults Services,Adult Social Care,Support with Memory and Cognition - adults (18-64),Cmht For Older People,Social Care - Homecare,03/02/2017,3826496,617.23,SEVACARE UK LTD
Adults Services,Adult Social Care,Support with Memory and Cognition - adults (18-64),Generic Care Packages NW Team -PS,Social Care - Homecare,03/02/2017,3826498,"1,162.70",SEVACARE UK LTD
Adults Services,Adult Social Care,Support with Memory and Cognition - adults (18-64),Generic Care Packages NW Team -PS,Social Care - Homecare,03/02/2017,3826499,"1,155.15",SEVACARE UK LTD
Adults Services,Adult Social Care,Support with Memory and Cognition - adults (18-64),Generic Care Packages NW Team -PS,Social Care - Homecare,03/02/2017,3826500,"1,162.70",SEVACARE UK LTD
Adults Services,Adult Social Care,Support with Memory and Cognition - adults (18-64),Generic Care Packages NW Team -PS,Social Care - Homecare,03/02/2017,3826501,"1,162.70",SEVACARE UK LTD
Adults Services,Adult Social Care,Support with Memory and Cognition - adults (18-64),Generic Care Packages SE Team-SMC,Social Care - Homecare,03/02/2017,3826502,"2,114.00",SEVACARE UK LTD
Adults Services,Adult Social Care,Support with Memory and Cognition - adults (18-64),Generic Care Packages NE Team -PS,Social Care - Home Care (Short Term),03/02/2017,3826522,973.35,SEVACARE UK LTD
Adults Services,Adult Social Care,Support with Memory and Cognition - adults (18-64),"Generic Care Packages SW Team -SS		",Social Care - Homecare,03/02/2017,3826528,757.05,SEVACARE UK LTD
Adults Services,Adult Social Care,Support with Memory and Cognition - adults (18-64),Generic Care Packages NW Team -PS,Social Care - Homecare,03/02/2017,3826533,"1,189.65",SEVACARE UK LTD
Adults Services,Adult Social Care,Support with Memory and Cognition - adults (18-64),Generic Care Packages SW Team - PS,Social Care - Residential Care,03/02/2017,3826534,"2,263.13",JEWISH CARE
Adults Services,Adult Social Care,Support with Memory and Cognition - adults (18-64),Generic Care Packages SW Team - PS,Social Care - Residential Care,03/02/2017,3826535,"1,946.58",JEWISH CARE
Adults Services,Adult Social Care,Support with Memory and Cognition - adults (18-64),Generic Care Packages NE Team -PS,Social Care - Residential Care,03/02/2017,3826536,"2,291.43",JEWISH CARE
Adults Services,Adult Social Care,Support with Memory and Cognition - adults (18-64),Generic Care Packages SW Team - PS,Social Care - Residential Care,03/02/2017,3826537,"1,806.59",JEWISH CARE
Adults Services,Adult Social Care,Support with Memory and Cognition - adults (18-64),Generic Care Packages NE Team -PS,Social Care - Homecare,03/02/2017,3826557,539.83,REDSPOT HOMECARE (CONTRACTS) LTD
Adults Services,Adult Social Care,Support with Memory and Cognition - adults (18-64),Generic Care Packages SE Team -PS,Social Care - Homecare,03/02/2017,3826557,"3,095.28",REDSPOT HOMECARE (CONTRACTS) LTD
Adults Services,Adult Social Care,Support with Memory and Cognition - adults (18-64),CLDS Longer Term Support Teams,Social Care - Residential Care,03/02/2017,3826562,"4,871.34",SHERICO CARE SERVICES LTD
Adults Services,Adult Social Care,Support with Memory and Cognition - adults (18-64),CLDS Longer Term Support Teams,Social Care - Supported Living,03/02/2017,3826563,"-2,004.67",Transitions Living
Adults Services,Adult Social Care,Support with Memory and Cognition - adults (18-64),CLDS Transition,Social Care - Supported Living,03/02/2017,3826563,"8,686.01",Transitions Living
Adults Services,Adult Social Care,Support with Memory and Cognition - adults (18-64),Generic Care Packages NE Team-SMC,Social Care - Homecare,03/02/2017,3826575,672.56,MiHOMECARE LIMITED
Adults Services,Adult Social Care,Support with Memory and Cognition - adults (18-64),Generic Care Packages NW Team -PS,Social Care - Homecare,03/02/2017,3826576,"1,086.54",MiHOMECARE LIMITED
Adults Services,Adult Social Care,Support with Memory and Cognition - adults (18-64),Generic Care Packages NW Team -PS,Social Care - Homecare,03/02/2017,3826577,"1,175.01",MiHOMECARE LIMITED
Adults Services,Adult Social Care,Support with Memory and Cognition - adults (18-64),Cmht Bethnal Green,Social Care - Homecare,03/02/2017,3826583,739.00,MiHOMECARE LIMITED
Adults Services,Adult Social Care,Support with Memory and Cognition - adults (18-64),Generic Care Packages NW Team -PS,Social Care - Homecare,03/02/2017,3826584,"5,635.39",MiHOMECARE LIMITED
Adults Services,Adult Social Care,Support with Memory and Cognition - adults (18-64),Generic Care Packages NE Team -PS,Social Care - Home Care (Short Term),03/02/2017,3826588,828.04,MiHOMECARE LIMITED
Adults Services,Adult Social Care,Support with Memory and Cognition - adults (18-64),Generic Care Packages NE Team -PS,Social Care - Homecare,03/02/2017,3826596,"1,199.00",MiHOMECARE LIMITED
Adults Services,Adult Social Care,Support with Memory and Cognition - adults (18-64),Generic Care Packages SE Team -PS,Social Care - Homecare,03/02/2017,3826603,931.28,MiHOMECARE LIMITED
Adults Services,Adult Social Care,Support with Memory and Cognition - adults (18-64),Generic Care Packages NE Team -PS,Social Care - Homecare,03/02/2017,3826607,591.26,MiHOMECARE LIMITED
Adults Services,Adult Social Care,Support with Memory and Cognition - adults (18-64),Generic Care Packages NW Team -PS,Social Care - Homecare,03/02/2017,3826611,739.14,MiHOMECARE LIMITED
Adults Services,Adult Social Care,Support with Memory and Cognition - adults (18-64),Generic Care Packages SE Team -PS,Social Care - Homecare,03/02/2017,3826618,546.86,MiHOMECARE LIMITED
Adults Services,Adult Social Care,Support with Memory and Cognition - adults (18-64),Generic Care Packages NE Team-SMC,Social Care - Homecare,03/02/2017,3826633,672.56,MiHOMECARE LIMITED
Adults Services,Adult Social Care,Support with Memory and Cognition - adults (18-64),Generic Care Packages NE Team -PS,Social Care - Homecare,03/02/2017,3826634,517.20,MiHOMECARE LIMITED
Adults Services,Adult Social Care,Support with Memory and Cognition - adults (18-64),Generic Care Packages NW Team -PS,Social Care - Homecare,03/02/2017,3826635,"1,086.54",MiHOMECARE LIMITED
Adults Services,Adult Social Care,Support with Memory and Cognition - adults (18-64),Generic Care Packages NW Team -PS,Social Care - Homecare,03/02/2017,3826636,"1,138.06",MiHOMECARE LIMITED
Adults Services,Adult Social Care,Support with Memory and Cognition - adults (18-64),Generic Care Packages NE Team -PS,Social Care - Homecare,03/02/2017,3826641,509.91,MiHOMECARE LIMITED
Adults Services,Adult Social Care,Support with Memory and Cognition - adults (18-64),CLDS Longer Term Support Teams,Social Care - Residential Care,03/02/2017,3826642,"6,659.40",ACTION ON HEARING LOSS
Adults Services,Adult Social Care,Support with Memory and Cognition - adults (18-64),CLDS Longer Term Support Teams,Social Care - Residential Care,03/02/2017,3826643,"6,659.40",ACTION ON HEARING LOSS
Adults Services,Adult Social Care,Support with Memory and Cognition - adults (18-64),CLDS Longer Term Support Teams,Social Care - Residential Care,03/02/2017,3826644,"6,659.40",ACTION ON HEARING LOSS
Adults Services,Adult Social Care,Support with Memory and Cognition - adults (18-64),CLDS Longer Term Support Teams,Social Care - Residential Care,03/02/2017,3826645,"6,659.40",ACTION ON HEARING LOSS
Adults Services,Adult Social Care,Support with Memory and Cognition - adults (18-64),CLDS Longer Term Support Teams,Social Care - Residential Care,03/02/2017,3826646,"6,659.40",ACTION ON HEARING LOSS
Adults Services,Adult Social Care,Support with Memory and Cognition - adults (18-64),CLDS Longer Term Support Teams,Social Care - Residential Care,03/02/2017,3826647,"6,659.40",ACTION ON HEARING LOSS
Adults Services,Adult Social Care,Support with Memory and Cognition - adults (18-64),CLDS Longer Term Support Teams,Social Care - Residential Care,03/02/2017,3826648,"6,659.40",ACTION ON HEARING LOSS
Adults Services,Adult Social Care,Support with Memory and Cognition - adults (18-64),CLDS Longer Term Support Teams,Social Care - Residential Care,03/02/2017,3826649,"6,659.40",ACTION ON HEARING LOSS
Adults Services,Adult Social Care,Support with Memory and Cognition - adults (18-64),CLDS Longer Term Support Teams,Social Care - Residential Care,03/02/2017,3826650,"6,659.40",ACTION ON HEARING LOSS
Adults Services,Adult Social Care,Support with Memory and Cognition - adults (18-64),CLDS Longer Term Support Teams,Social Care - Residential Care,03/02/2017,3826651,"7,364.00",North Down Villa
Adults Services,Adult Social Care,Support with Memory and Cognition - adults (18-64),Cmht Iod / Poplar South,Social Care - Supported Living,03/02/2017,3826652,"1,138.98",Look Ahead Care & Support Ltd
Adults Services,Adult Social Care,Support with Memory and Cognition - adults (18-64),Cmht Iod / Poplar South,Social Care - Supported Living,03/02/2017,3826653,"1,278.18",Look Ahead Care & Support Ltd
Adults Services,Adult Social Care,Support with Memory and Cognition - adults (18-64),Cmht For Older People,Social Care - Residential Care,03/02/2017,3826655,"2,300.00",Highcroft Care Home
Adults Services,Adult Social Care,Physical Support - adults (18-64),"Failed Care Package Conversion		",Social Care - Prevention & Support - Block,03/02/2017,3826656,"17,185.63",St Hilda's East Community Centre
Adults Services,Adult Social Care,Physical Support - adults (18-64),"Failed Care Package Conversion		",Social Care - Mental Health,03/02/2017,3826664,"23,750.00",POhWER
Adults Services,Adult Social Care,Support with Memory and Cognition - adults (18-64),Generic Care Packages NE Team -PS,Social Care - Homecare,03/02/2017,3826667,570.33,SANCTUARY HOME CARE LIMITED
Adults Services,Adult Social Care,Support with Memory and Cognition - adults (18-64),Generic Care Packages NE Team -PS,Social Care - Homecare,03/02/2017,3826670,765.87,SANCTUARY HOME CARE LIMITED
Adults Services,Adult Social Care,Support with Memory and Cognition - adults (18-64),Cmht Bethnal Green,Social Care - Homecare,03/02/2017,3826673,977.70,SANCTUARY HOME CARE LIMITED
Adults Services,Adult Social Care,Support with Memory and Cognition - adults (18-64),Generic Care Packages NE Team -PS,Social Care - Homecare,03/02/2017,3826674,537.74,SANCTUARY HOME CARE LIMITED
Adults Services,Adult Social Care,Support with Memory and Cognition - adults (18-64),Generic Care Packages SE Team -PS,Social Care - Homecare,03/02/2017,3826676,521.44,SANCTUARY HOME CARE LIMITED
Adults Services,Adult Social Care,Support with Memory and Cognition - adults (18-64),Generic Care Packages NE Team -PS,Social Care - Homecare,03/02/2017,3826685,774.10,SANCTUARY HOME CARE LIMITED
Adults Services,Adult Social Care,Support with Memory and Cognition - adults (18-64),Cmht Bethnal Green,Social Care - Homecare,03/02/2017,3826691,988.20,SANCTUARY HOME CARE LIMITED
Adults Services,Adult Social Care,Support with Memory and Cognition - adults (18-64),Generic Care Packages NE Team -PS,Social Care - Homecare,03/02/2017,3826692,543.52,SANCTUARY HOME CARE LIMITED
Adults Services,Adult Social Care,Support with Memory and Cognition - adults (18-64),Generic Care Packages SE Team -PS,Social Care - Homecare,03/02/2017,3826694,527.04,SANCTUARY HOME CARE LIMITED
Adults Services,Adult Social Care,Support with Memory and Cognition - adults (18-64),Generic Care Packages NW Team -PS,Social Care - Homecare,03/02/2017,3826702,634.14,SANCTUARY HOME CARE LIMITED
Adults Services,Adult Social Care,Support with Memory and Cognition - adults (18-64),Generic Care Packages NE Team -PS,Social Care - Homecare,03/02/2017,3826707,634.10,SANCTUARY HOME CARE LIMITED
Adults Services,Adult Social Care,Support with Memory and Cognition - adults (18-64),Generic Care Packages SE Team -PS,Social Care - Homecare,03/02/2017,3826719,683.52,SANCTUARY HOME CARE LIMITED
Adults Services,Adult Social Care,Support with Memory and Cognition - adults (18-64),Generic Care Packages SW Team - PS,Social Care - Homecare,03/02/2017,3826721,518.82,SANCTUARY HOME CARE LIMITED
Adults Services,Adult Social Care,Support with Memory and Cognition - adults (18-64),Generic Care Packages NE Team -PS,Social Care - Homecare,03/02/2017,3826722,518.82,SANCTUARY HOME CARE LIMITED
Adults Services,Adult Social Care,Support with Memory and Cognition - adults (18-64),Generic Care Packages NE Team -PS,Social Care - Home Care (Short Term),03/02/2017,3826723,"2,910.20",SANCTUARY HOME CARE LIMITED
Adults Services,Adult Social Care,Support with Memory and Cognition - adults (18-64),Generic Care Packages SW Team-SMC,Social Care - Homecare,03/02/2017,3826725,543.52,SANCTUARY HOME CARE LIMITED
Adults Services,Adult Social Care,Support with Memory and Cognition - adults (18-64),Generic Care Packages NW Team -PS,Social Care - Homecare,03/02/2017,3826730,"3,919.86",SANCTUARY HOME CARE LIMITED
Adults Services,Adult Social Care,Support with Memory and Cognition - adults (18-64),Generic Care Packages SW Team-SMC,Social Care - Homecare,03/02/2017,3826738,"1,449.36",SANCTUARY HOME CARE LIMITED
Adults Services,Adult Social Care,Support with Memory and Cognition - adults (18-64),Generic Care Packages NE Team -PS,Social Care - Homecare,03/02/2017,3826741,774.10,SANCTUARY HOME CARE LIMITED
Adults Services,Adult Social Care,Support with Memory and Cognition - adults (18-64),Generic Care Packages NW Team -PS,Social Care - Homecare,03/02/2017,3826742,658.80,SANCTUARY HOME CARE LIMITED
Adults Services,Adult Social Care,Support with Memory and Cognition - adults (18-64),Generic Care Packages NE Team-SMC,Social Care - Homecare,03/02/2017,3826747,634.12,SANCTUARY HOME CARE LIMITED
Adults Services,Adult Social Care,Support with Memory and Cognition - adults (18-64),Generic Care Packages NW Team -PS,Social Care - Homecare,03/02/2017,3826748,535.28,SANCTUARY HOME CARE LIMITED
Adults Services,Adult Social Care,Support with Memory and Cognition - adults (18-64),Generic Care Packages SW Team - PS,Social Care - Homecare,03/02/2017,3826751,551.76,SANCTUARY HOME CARE LIMITED
Adults Services,Adult Social Care,Support with Memory and Cognition - adults (18-64),Generic Care Packages NE Team -PS,Social Care - Homecare,03/02/2017,3826768,686.16,SANCTUARY HOME CARE LIMITED
Adults Services,Adult Social Care,Support with Memory and Cognition - adults (18-64),CLDS Longer Term Support Teams,Social Care - Homecare,03/02/2017,3826769,527.03,SANCTUARY HOME CARE LIMITED
Adults Services,Adult Social Care,Support with Memory and Cognition - adults (18-64),Cmht Bethnal Green,Social Care - Homecare,03/02/2017,3826778,988.20,SANCTUARY HOME CARE LIMITED
Adults Services,Adult Social Care,Support with Memory and Cognition - adults (18-64),Generic Care Packages SE Team -PS,Social Care - Home Care (Short Term),03/02/2017,3826782,675.28,SANCTUARY HOME CARE LIMITED
Adults Services,Adult Social Care,Support with Memory and Cognition - adults (18-64),Generic Care Packages SW Team - PS,Social Care - Homecare,03/02/2017,3826790,724.70,SANCTUARY HOME CARE LIMITED
Adults Services,Adult Social Care,Support with Memory and Cognition - adults (18-64),Generic Care Packages NW Team -PS,Social Care - Home Care (Short Term),03/02/2017,3826792,872.92,SANCTUARY HOME CARE LIMITED
Adults Services,Adult Social Care,Support with Memory and Cognition - adults (18-64),Generic Care Packages SE Team -PS,Social Care - Home Care (Short Term),03/02/2017,3826794,518.82,SANCTUARY HOME CARE LIMITED
Adults Services,Adult Social Care,Support with Memory and Cognition - adults (18-64),Generic Care Packages NE Team -PS,Social Care - Homecare,03/02/2017,3826795,543.52,SANCTUARY HOME CARE LIMITED
Adults Services,Adult Social Care,Support with Memory and Cognition - adults (18-64),Generic Care Packages SE Team -PS,Social Care - Homecare,03/02/2017,3826797,527.04,SANCTUARY HOME CARE LIMITED
Adults Services,Adult Social Care,Support with Memory and Cognition - adults (18-64),Generic Care Packages NE Team -PS,Social Care - Homecare,03/02/2017,3826798,576.46,SANCTUARY HOME CARE LIMITED
Adults Services,Adult Social Care,Support with Memory and Cognition - adults (18-64),Generic Care Packages SE Team -PS,Social Care - Homecare,03/02/2017,3826799,"1,317.62",SANCTUARY HOME CARE LIMITED
Adults Services,Adult Social Care,Support with Memory and Cognition - adults (18-64),Generic Care Packages SW Team - PS,Social Care - Homecare,03/02/2017,3826801,"1,844.64",SANCTUARY HOME CARE LIMITED
Adults Services,Adult Social Care,Support with Memory and Cognition - adults (18-64),Generic Care Packages NW Team -PS,Social Care - Homecare,03/02/2017,3826804,"1,614.08",SANCTUARY HOME CARE LIMITED
Adults Services,Adult Social Care,Support with Memory and Cognition - adults (18-64),CLDS Longer Term Support Teams,Social Care - Homecare,03/02/2017,3826805,642.34,SANCTUARY HOME CARE LIMITED
Adults Services,Adult Social Care,Support with Memory and Cognition - adults (18-64),Generic Care Packages SE Team -PS,Social Care - Homecare,03/02/2017,3826815,"1,729.36",SANCTUARY HOME CARE LIMITED
Adults Services,Adult Social Care,Support with Memory and Cognition - adults (18-64),Generic Care Packages SW Team - PS,Social Care - Homecare,03/02/2017,3826825,"1,218.80",SANCTUARY HOME CARE LIMITED
Adults Services,Adult Social Care,Support with Memory and Cognition - adults (18-64),Generic Care Packages NE Team -PS,Social Care - Home Care (Short Term),03/02/2017,3826831,"1,210.57",SANCTUARY HOME CARE LIMITED
Adults Services,Adult Social Care,Support with Memory and Cognition - adults (18-64),Generic Care Packages NE Team -PS,Social Care - Homecare,03/02/2017,3826834,543.52,SANCTUARY HOME CARE LIMITED
Adults Services,Adult Social Care,Support with Memory and Cognition - adults (18-64),Generic Care Packages SE Team-SMC,Social Care - Homecare,03/02/2017,3826835,543.52,SANCTUARY HOME CARE LIMITED
Adults Services,Adult Social Care,Support with Memory and Cognition - adults (18-64),Generic Care Packages NW Team -PS,Social Care - Homecare,03/02/2017,3826838,691.76,SANCTUARY HOME CARE LIMITED
Adults Services,Adult Social Care,Support with Memory and Cognition - adults (18-64),Cmht Stepney / Wapping,Social Care - Residential Care,03/02/2017,3826839,"3,321.34",Thanet Healthcare Ltd
Adults Services,Adult Social Care,Physical Support - adults (18-64),Public Health � Healthy Young Adults,Third Party Payments - Other Establishments,06/02/2017,3800744,517.00,King's College Hospital NHSFT
Adults Services,Adult Social Care,Support with Memory and Cognition - adults (18-64),Generic Care Packages SW Team - PS,Social Care - Homecare,06/02/2017,3809328,"13,804.11",Active Assistance
Adults Services,Adult Social Care,Support with Memory and Cognition - adults (18-64),CLDS Longer Term Support Teams,Social Care - Prevention & Support,06/02/2017,3813520,"1,098.72",Outward Housing
Adults Services,Adult Social Care,Support with Memory and Cognition - adults (18-64),CLDS Transition,Social Care - Prevention & Support,06/02/2017,3813521,"1,137.96",Outward Housing
Adults Services,Adult Social Care,Support with Memory and Cognition - adults (18-64),CLDS Transition,Social Care - Prevention & Support,06/02/2017,3813522,"1,177.20",Outward Housing
Adults Services,Adult Social Care,Support with Memory and Cognition - adults (18-64),CLDS Longer Term Support Teams,Social Care - Homecare,06/02/2017,3817183,"1,199.64",Look Ahead Care & Support Ltd
Adults Services,Adult Social Care,Support with Memory and Cognition - adults (18-64),Generic Care Packages NW Team -PS,Social Care - Residential Care,06/02/2017,3817392,"1,137.00",Forest Drive Residential Home Ltd
Adults Services,Adult Social Care,Physical Support - adults (18-64),Adult Protection Team,Services - Professional Fees - Financial Services Fees,06/02/2017,3817734,630.00,VOICEABILITY
Adults Services,Adult Social Care,Physical Support - adults (18-64),Adult Protection Team,Services - Professional Fees - Financial Services Fees,06/02/2017,3817787,"1,404.70",VOICEABILITY
Adults Services,Adult Social Care,Support with Memory and Cognition - adults (18-64),CLDS Longer Term Support Teams,Social Care - Homecare,06/02/2017,3820280,"1,177.20",Outward Housing
Adults Services,Adult Social Care,Support with Memory and Cognition - adults (18-64),CLDS Longer Term Support Teams,Social Care - Supported Living,06/02/2017,3821755,"3,100.00",BAXTER HOUSE SUPPORTED LIVING PROJECT
Adults Services,Adult Social Care,Support with Memory and Cognition - adults (18-64),CLDS Longer Term Support Teams,Social Care - Supported Living,06/02/2017,3821761,"3,542.86",BAXTER HOUSE SUPPORTED LIVING PROJECT
Adults Services,Adult Social Care,Physical Support - adults (18-64),Public Health � Healthy Young Adults,Third Party Payments - Other Establishments,08/02/2017,3799637,"31,608.78",Guy's & St Thomas' NHS Foundation Trust
Adults Services,Adult Social Care,Support with Memory and Cognition - adults (18-64),CLDS Longer Term Support Teams,Social Care - Prevention & Support,08/02/2017,3814750,"1,279.20",Look Ahead Care & Support Ltd
Adults Services,Adult Social Care,Support with Memory and Cognition - adults (18-64),CLDS Longer Term Support Teams,Social Care - Day Care,08/02/2017,3817383,"1,008.90",Somerset County Council
Adults Services,Adult Social Care,Support with Memory and Cognition - adults (18-64),Generic Care Packages SE Team -PS,Social Care - Residential Care,08/02/2017,3817407,"2,878.57",WENSLEY HOUSE
Adults Services,Adult Social Care,Physical Support - adults (18-64),Public Health � Healthy Young Adults,Third Party Payments - Other Establishments,08/02/2017,3818581,"18,293.14",Homerton University Hospital Trust
Adults Services,Adult Social Care,Support with Memory and Cognition - adults (18-64),CLDS Longer Term Support Teams,Social Care - Day Care,08/02/2017,3819786,"1,008.90",Somerset County Council
Adults Services,Adult Social Care,Support with Memory and Cognition - adults (18-64),Generic Care Packages SW Team - PS,Social Care - Residential Care,08/02/2017,3821762,"2,795.54",BARCHESTER HEALTHCARE
Adults Services,Adult Social Care,Support with Memory and Cognition - adults (18-64),Generic Care Packages SW Team - PS,Social Care - Residential Care,08/02/2017,3821763,"2,480.00",BARCHESTER HEALTHCARE
Adults Services,Adult Social Care,Support with Memory and Cognition - adults (18-64),Generic Care Packages NW Team -PS,Social Care - Residential Care,08/02/2017,3821764,"1,746.14",BARCHESTER HEALTHCARE
Adults Services,Adult Social Care,Support with Memory and Cognition - adults (18-64),Generic Care Packages NW Team-SMC,Social Care - Nursing Care,08/02/2017,3821765,"2,230.90",BARCHESTER HEALTHCARE
Adults Services,Adult Social Care,Support with Memory and Cognition - adults (18-64),Generic Care Packages SE Team -PS,Social Care - Nursing Care,08/02/2017,3821766,"2,518.75",BARCHESTER HEALTHCARE
Adults Services,Adult Social Care,Support with Memory and Cognition - adults (18-64),Generic Care Packages SE Team -PS,Social Care - Nursing Care,08/02/2017,3821767,"3,072.33",BARCHESTER HEALTHCARE
Adults Services,Adult Social Care,Support with Memory and Cognition - adults (18-64),Generic Care Packages SW Team - PS,Social Care - Nursing Care,08/02/2017,3822224,"1,979.66",H-C ONE LTD - TOWER BRIDGE
Adults Services,Adult Social Care,Support with Memory and Cognition - adults (18-64),Generic Care Packages SE Team -PS,Social Care - Residential Care,08/02/2017,3822225,"2,878.57",WENSLEY HOUSE
Adults Services,Adult Social Care,Physical Support - adults (18-64),Public Health � Healthy Communities,Third Party Payments - Voluntary Associations,08/02/2017,3823040,"55,000.00",Stifford Centre
Adults Services,Adult Social Care,Support with Memory and Cognition - adults (18-64),Generic Care Packages NW Team -PS,Social Care - Nursing Care,08/02/2017,3823266,"3,723.33",BARCHESTER HEALTHCARE
Adults Services,Adult Social Care,Support with Memory and Cognition - adults (18-64),Generic Care Packages SE Team -PS,Social Care - Nursing Care,08/02/2017,3823267,"6,067.14",BARCHESTER HEALTHCARE
Adults Services,Adult Social Care,Support with Memory and Cognition - adults (18-64),Generic Care Packages NE Team -PS,Social Care - Day Care,08/02/2017,3823368,894.80,HEADWAY EAST LONDON
Adults Services,Adult Social Care,Support with Memory and Cognition - adults (18-64),Generic Care Packages NE Team -PS,Social Care - Day Care,08/02/2017,3823370,686.80,HEADWAY EAST LONDON
Adults Services,Adult Social Care,Support with Memory and Cognition - adults (18-64),Generic Care Packages NW Team -PS,Social Care - Day Care,08/02/2017,3823372,686.80,HEADWAY EAST LONDON
Adults Services,Adult Social Care,Support with Memory and Cognition - adults (18-64),Generic Care Packages SW Team - PS,Social Care - Day Care,08/02/2017,3823373,"1,011.12",HEADWAY EAST LONDON
Adults Services,Adult Social Care,Support with Memory and Cognition - adults (18-64),Generic Care Packages NW Team -PS,Social Care - Day Care,08/02/2017,3823375,"1,011.12",HEADWAY EAST LONDON
Adults Services,Adult Social Care,Support with Memory and Cognition - adults (18-64),Generic Care Packages SE Team -PS,Social Care - Day Care,08/02/2017,3823379,531.36,HEADWAY EAST LONDON
Adults Services,Adult Social Care,Support with Memory and Cognition - adults (18-64),Generic Care Packages NE Team -PS,Social Care - Day Care,08/02/2017,3823380,626.50,HEADWAY EAST LONDON
Adults Services,Adult Social Care,Physical Support - adults (18-64),Public Health � Healthy Young Adults,Third Party Payments - Other Establishments,08/02/2017,3823854,"12,152.38",Homerton University Hospital Trust
Adults Services,Adult Social Care,Support with Memory and Cognition - adults (18-64),CLDS Longer Term Support Teams,Social Care - Residential Care,08/02/2017,3825783,"1,976.77",BROOKDALE HEALTHCARE LTD
Adults Services,Adult Social Care,Support with Memory and Cognition - adults (18-64),CLDS Longer Term Support Teams,Social Care - Residential Care,08/02/2017,3825785,"-1,976.77",BROOKDALE HEALTHCARE LTD
Adults Services,Adult Social Care,Physical Support - adults (18-64),Public Health � Healthy Young Adults,Third Party Payments - Other Establishments,08/02/2017,3826975,"1,642.74",Lewisham & Greenwich NHS Trust
Adults Services,Adult Social Care,Physical Support - adults (18-64),"Failed Care Package Conversion		",Social Care - Learning Disabilities,08/02/2017,3828079,"42,762.70",The Camden Society
Adults Services,Adult Social Care,Support with Memory and Cognition - adults (18-64),Cmht Iod / Poplar South,Social Care - Home Care (Short Term),08/02/2017,3828100,548.72,ATHLONE CARE LTD
Adults Services,Adult Social Care,Support with Memory and Cognition - adults (18-64),Generic Care Packages NE Team -PS,Social Care - Homecare,08/02/2017,3828103,732.83,ATHLONE CARE LTD
Adults Services,Adult Social Care,Support with Memory and Cognition - adults (18-64),Generic Care Packages SE Team -PS,Social Care - Homecare,08/02/2017,3828122,837.50,ATHLONE CARE LTD
Adults Services,Adult Social Care,Support with Memory and Cognition - adults (18-64),CLDS Transition,Social Care - Residential Care,08/02/2017,3828128,"6,755.83",INDEPENDENCE HOMES LTD
Adults Services,Adult Social Care,Support with Memory and Cognition - adults (18-64),CLDS Longer Term Support Teams,Social Care - Homecare,08/02/2017,3828131,"3,161.80",Excelcare (Home Care Division) LTD
Adults Services,Adult Social Care,Support with Memory and Cognition - adults (18-64),CLDS Longer Term Support Teams,Social Care - Homecare,08/02/2017,3828132,"3,161.80",Excelcare (Home Care Division) LTD
Adults Services,Adult Social Care,Support with Memory and Cognition - adults (18-64),Generic Care Packages NW Team -PS,Social Care - Homecare,08/02/2017,3828135,"1,068.96",Excelcare (Home Care Division) LTD
Adults Services,Adult Social Care,Support with Memory and Cognition - adults (18-64),Generic Care Packages NW Team -PS,Social Care - Homecare,08/02/2017,3828138,612.84,Excelcare (Home Care Division) LTD
Adults Services,Adult Social Care,Support with Memory and Cognition - adults (18-64),CLDS Longer Term Support Teams,Social Care - Homecare,08/02/2017,3828142,"1,743.33",MEARS CARE LTD
Adults Services,Adult Social Care,Support with Memory and Cognition - adults (18-64),CLDS Longer Term Support Teams,Social Care - Homecare,08/02/2017,3828143,"2,599.80",MEARS CARE LTD
Adults Services,Adult Social Care,Support with Memory and Cognition - adults (18-64),CLDS Longer Term Support Teams,Social Care - Homecare,08/02/2017,3828147,"3,161.80",Excelcare (Home Care Division) LTD
Adults Services,Adult Social Care,Support with Memory and Cognition - adults (18-64),CLDS Longer Term Support Teams,Social Care - Homecare,08/02/2017,3828148,"3,161.80",Excelcare (Home Care Division) LTD
Adults Services,Adult Social Care,Support with Memory and Cognition - adults (18-64),Generic Care Packages SW Team - PS,Social Care - Homecare,08/02/2017,3828150,833.85,Excelcare (Home Care Division) LTD
Adults Services,Adult Social Care,Support with Memory and Cognition - adults (18-64),Generic Care Packages SE Team -PS,Social Care - Homecare,08/02/2017,3828151,584.44,Excelcare (Home Care Division) LTD
Adults Services,Adult Social Care,Support with Memory and Cognition - adults (18-64),Generic Care Packages NW Team -PS,Social Care - Homecare,08/02/2017,3828153,"1,218.62",Excelcare (Home Care Division) LTD
Adults Services,Adult Social Care,Support with Memory and Cognition - adults (18-64),Generic Care Packages NW Team -PS,Social Care - Homecare,08/02/2017,3828157,"1,218.62",Excelcare (Home Care Division) LTD
Adults Services,Adult Social Care,Support with Memory and Cognition - adults (18-64),Generic Care Packages NE Team -PS,Social Care - Nursing Care,08/02/2017,3828160,"3,981.77",LIFE STYLE CARE (2011) PLC
Adults Services,Adult Social Care,Physical Support - adults (18-64),"Failed Care Package Conversion		",Social Care - Learning Disabilities,08/02/2017,3828161,"68,500.00",Tower Project
Adults Services,Adult Social Care,Support with Memory and Cognition - adults (18-64),CLDS Longer Term Support Teams,Social Care - Direct Payments,08/02/2017,3828163,"1,685.72",D D PAYROLL SERVICES
Adults Services,Adult Social Care,Support with Memory and Cognition - adults (18-64),Generic Care Packages SE Team -PS,Social Care - Direct Payments,08/02/2017,3828165,"2,380.97",DAVID HOWARD LTD CLIENT ACCOUNT
Adults Services,Adult Social Care,Support with Memory and Cognition - adults (18-64),Generic Care Packages SE Team -PS,Social Care - Direct Payments,08/02/2017,3828167,640.71,DAVID HOWARD LTD CLIENT ACCOUNT
Adults Services,Adult Social Care,Support with Memory and Cognition - adults (18-64),Generic Care Packages SE Team -PS,Social Care - Direct Payments,08/02/2017,3828169,"-2,226.32",DAVID HOWARD LTD CLIENT ACCOUNT
Adults Services,Adult Social Care,Support with Memory and Cognition - adults (18-64),Generic Care Packages NE Team -PS,Social Care - Residential Care,08/02/2017,3828174,"-1,073.92",GATEWAY HOUSING ASSOCIATION
Adults Services,Adult Social Care,Support with Memory and Cognition - adults (18-64),Cmht For Older People,Social Care - Residential Care,08/02/2017,3828176,802.29,GATEWAY HOUSING ASSOCIATION
Adults Services,Adult Social Care,Support with Memory and Cognition - adults (18-64),Generic Care Packages NE Team -PS,Social Care - Residential Care,08/02/2017,3828178,"4,201.72",GATEWAY HOUSING ASSOCIATION
Adults Services,Adult Social Care,Support with Memory and Cognition - adults (18-64),CLDS Longer Term Support Teams,Social Care - Residential Care,08/02/2017,3828181,"5,089.28",SAHARA HOMES LIMITED
Adults Services,Adult Social Care,Support with Memory and Cognition - adults (18-64),CLDS Longer Term Support Teams,Social Care - Residential Care,08/02/2017,3828183,"3,224.00",LINKAGE COMMUNITY TRUST
Adults Services,Adult Social Care,Support with Memory and Cognition - adults (18-64),CLDS Longer Term Support Teams,Social Care - Residential Care,08/02/2017,3828184,"3,224.00",LINKAGE COMMUNITY TRUST
Adults Services,Adult Social Care,Support with Memory and Cognition - adults (18-64),Generic Care Packages SE Team -PS,Social Care - Homecare,08/02/2017,3828185,566.25,SEVACARE UK LTD
Adults Services,Adult Social Care,Support with Memory and Cognition - adults (18-64),Generic Care Packages SE Team -PS,Social Care - Home Care (Short Term),08/02/2017,3828190,748.07,FOCUS CARE LINK LTD
Adults Services,Adult Social Care,Support with Memory and Cognition - adults (18-64),Generic Care Packages SE Team -PS,Social Care - Home Care (Short Term),08/02/2017,3828192,"1,393.46",FOCUS CARE LINK LTD
Adults Services,Adult Social Care,Support with Memory and Cognition - adults (18-64),Generic Care Packages SW Team - PS,Social Care - Homecare,08/02/2017,3828198,895.52,FOCUS CARE LINK LTD
Adults Services,Adult Social Care,Support with Memory and Cognition - adults (18-64),Generic Care Packages NE Team -PS,Social Care - Homecare,08/02/2017,3828202,837.62,FOCUS CARE LINK LTD
Adults Services,Adult Social Care,Support with Memory and Cognition - adults (18-64),Generic Care Packages SE Team -PS,Social Care - Home Care (Short Term),08/02/2017,3828206,"1,096.24",FOCUS CARE LINK LTD
Adults Services,Adult Social Care,Support with Memory and Cognition - adults (18-64),Generic Care Packages SW Team - PS,Social Care - Homecare,08/02/2017,3828228,765.52,FOCUS CARE LINK LTD
Adults Services,Adult Social Care,Support with Memory and Cognition - adults (18-64),Generic Care Packages NE Team -PS,Social Care - Homecare,08/02/2017,3828234,895.52,FOCUS CARE LINK LTD
Adults Services,Adult Social Care,Support with Memory and Cognition - adults (18-64),Generic Care Packages NE Team -PS,Social Care - Homecare,08/02/2017,3828238,972.72,FOCUS CARE LINK LTD
Adults Services,Adult Social Care,Support with Memory and Cognition - adults (18-64),Generic Care Packages SW Team - PS,Social Care - Nursing Care,08/02/2017,3828269,"2,040.60",Cochrane Car Home
Adults Services,Adult Social Care,Support with Memory and Cognition - adults (18-64),Generic Care Packages NE Team -PS,Social Care - Residential Care,08/02/2017,3828270,"2,400.00",CRANHAM COURT NURSING HOME
Adults Services,Adult Social Care,Support with Memory and Cognition - adults (18-64),CLDS Longer Term Support Teams,Social Care - Residential Care,08/02/2017,3828274,"6,659.40",ACTION ON HEARING LOSS
Adults Services,Adult Social Care,Support with Memory and Cognition - adults (18-64),CLDS Longer Term Support Teams,Social Care - Residential Care,08/02/2017,3828275,"1,351.42",GRACE EYRE FOUNDATION
Adults Services,Adult Social Care,Support with Memory and Cognition - adults (18-64),CLDS Longer Term Support Teams,Social Care - Day Care,08/02/2017,3828275,"1,140.92",GRACE EYRE FOUNDATION
Adults Services,Adult Social Care,Support with Memory and Cognition - adults (18-64),CLDS Longer Term Support Teams,Social Care - Respite Care,08/02/2017,3828276,"2,145.00",APASENTH
Adults Services,Adult Social Care,Support with Memory and Cognition - adults (18-64),CLDS Longer Term Support Teams,Social Care - Homecare,08/02/2017,3828277,"1,589.20",APASENTH
Adults Services,Adult Social Care,Support with Memory and Cognition - adults (18-64),CLDS Longer Term Support Teams,Social Care - Homecare,08/02/2017,3828278,"1,452.20",APASENTH
Adults Services,Adult Social Care,Support with Memory and Cognition - adults (18-64),CLDS Longer Term Support Teams,Social Care - Homecare,08/02/2017,3828279,"1,438.50",APASENTH
Adults Services,Adult Social Care,Support with Memory and Cognition - adults (18-64),CLDS Longer Term Support Teams,Social Care - Homecare,08/02/2017,3828280,"1,315.20",APASENTH
Adults Services,Adult Social Care,Support with Memory and Cognition - adults (18-64),Generic Care Packages NE Team -PS,Social Care - Homecare,08/02/2017,3828281,"1,236.43",APASENTH
Adults Services,Adult Social Care,Support with Memory and Cognition - adults (18-64),Generic Care Packages SW Team - PS,Social Care - Home Care (Short Term),08/02/2017,3828282,"1,150.80",APASENTH
Adults Services,Adult Social Care,Support with Memory and Cognition - adults (18-64),Generic Care Packages NW Team -PS,Social Care - Homecare,08/02/2017,3828283,541.08,APASENTH
Adults Services,Adult Social Care,Support with Memory and Cognition - adults (18-64),Generic Care Packages NW Team -PS,Social Care - Homecare,08/02/2017,3828284,959.00,APASENTH
Adults Services,Adult Social Care,Support with Memory and Cognition - adults (18-64),CLDS Longer Term Support Teams,Social Care - Homecare,08/02/2017,3828285,904.20,APASENTH
Adults Services,Adult Social Care,Support with Memory and Cognition - adults (18-64),Generic Care Packages NW Team-SMC,Social Care - Homecare,08/02/2017,3828286,876.80,APASENTH
Adults Services,Adult Social Care,Support with Memory and Cognition - adults (18-64),CLDS Transition,Social Care - Homecare,08/02/2017,3828287,835.70,APASENTH
Adults Services,Adult Social Care,Support with Memory and Cognition - adults (18-64),Generic Care Packages SE Team -PS,Social Care - Homecare,08/02/2017,3828288,767.20,APASENTH
Adults Services,Adult Social Care,Support with Memory and Cognition - adults (18-64),CLDS Longer Term Support Teams,Social Care - Homecare,08/02/2017,3828289,732.95,APASENTH
Adults Services,Adult Social Care,Support with Memory and Cognition - adults (18-64),CLDS Longer Term Support Teams,Social Care - Homecare,08/02/2017,3828290,657.60,APASENTH
Adults Services,Adult Social Care,Support with Memory and Cognition - adults (18-64),Generic Care Packages SW Team - PS,Social Care - Homecare,08/02/2017,3828291,650.75,APASENTH
Adults Services,Adult Social Care,Support with Memory and Cognition - adults (18-64),CLDS Longer Term Support Teams,Social Care - Homecare,08/02/2017,3828292,643.90,APASENTH
Adults Services,Adult Social Care,Support with Memory and Cognition - adults (18-64),CLDS Longer Term Support Teams,Social Care - Homecare,08/02/2017,3828293,630.20,APASENTH
Adults Services,Adult Social Care,Support with Memory and Cognition - adults (18-64),CLDS Longer Term Support Teams,Social Care - Home Care (Short Term),08/02/2017,3828294,602.80,APASENTH
Adults Services,Adult Social Care,Support with Memory and Cognition - adults (18-64),Generic Care Packages NW Team -PS,Social Care - Homecare,08/02/2017,3828295,595.95,APASENTH
Adults Services,Adult Social Care,Support with Memory and Cognition - adults (18-64),CLDS Longer Term Support Teams,Social Care - Homecare,08/02/2017,3828296,575.40,APASENTH
Adults Services,Adult Social Care,Support with Memory and Cognition - adults (18-64),CLDS Longer Term Support Teams,Social Care - Homecare,08/02/2017,3828297,561.70,APASENTH
Adults Services,Adult Social Care,Support with Memory and Cognition - adults (18-64),CLDS Longer Term Support Teams,Social Care - Homecare,08/02/2017,3828298,548.00,APASENTH
Adults Services,Adult Social Care,Support with Memory and Cognition - adults (18-64),CLDS Longer Term Support Teams,Social Care - Homecare,08/02/2017,3828299,548.00,APASENTH
Adults Services,Adult Social Care,Support with Memory and Cognition - adults (18-64),Generic Care Packages NE Team -PS,Social Care - Homecare,08/02/2017,3828300,527.45,APASENTH
Adults Services,Adult Social Care,Support with Memory and Cognition - adults (18-64),Generic Care Packages NW Team -PS,Social Care - Day Care,08/02/2017,3828424,826.76,Peabody Trust
Adults Services,Adult Social Care,Support with Memory and Cognition - adults (18-64),Generic Care Packages NE Team -PS,Social Care - Day Care,08/02/2017,3828431,534.82,Peabody Trust
Adults Services,Adult Social Care,Support with Memory and Cognition - adults (18-64),Generic Care Packages NW Team-SMC,Social Care - Day Care,08/02/2017,3828434,638.86,Peabody Trust
Adults Services,Adult Social Care,Support with Memory and Cognition - adults (18-64),Generic Care Packages SE Team -SP,Social Care - Day Care,08/02/2017,3828443,826.76,Peabody Trust
Adults Services,Adult Social Care,Support with Memory and Cognition - adults (18-64),Generic Care Packages NW Team -PS,Social Care - Day Care,08/02/2017,3828446,638.86,Peabody Trust
Adults Services,Adult Social Care,Support with Memory and Cognition - adults (18-64),Generic Care Packages SE Team -PS,Social Care - Day Care,08/02/2017,3828452,526.12,Peabody Trust
Adults Services,Adult Social Care,Support with Memory and Cognition - adults (18-64),Generic Care Packages SE Team -PS,Social Care - Day Care,08/02/2017,3828454,826.76,Peabody Trust
Adults Services,Adult Social Care,Physical Support - adults (18-64),"Failed Care Package Conversion		",Social Care - Learning Disabilities,08/02/2017,3828457,"23,311.00",POhWER
Adults Services,Adult Social Care,Support with Memory and Cognition - adults (18-64),Generic Care Packages SW Team - PS,Social Care - Homecare,08/02/2017,3828496,"2,622.86",SANCTUARY HOME CARE LIMITED
Adults Services,Adult Social Care,Support with Memory and Cognition - adults (18-64),Generic Care Packages NE Team -PS,Social Care - Homecare,08/02/2017,3828501,576.46,SANCTUARY HOME CARE LIMITED
Adults Services,Adult Social Care,Support with Memory and Cognition - adults (18-64),Generic Care Packages NE Team -PS,Social Care - Homecare,08/02/2017,3828509,576.46,SANCTUARY HOME CARE LIMITED
Adults Services,Adult Social Care,Support with Memory and Cognition - adults (18-64),Generic Care Packages SW Team - PS,Social Care - Home Care (Short Term),08/02/2017,3828514,576.48,SANCTUARY HOME CARE LIMITED
Adults Services,Adult Social Care,Support with Memory and Cognition - adults (18-64),Generic Care Packages SE Team -PS,Social Care - Homecare,08/02/2017,3828518,551.76,SANCTUARY HOME CARE LIMITED
Adults Services,Adult Social Care,Support with Memory and Cognition - adults (18-64),Generic Care Packages NE Team-SMC,Social Care - Home Care (Short Term),08/02/2017,3828523,527.06,SANCTUARY HOME CARE LIMITED
Adults Services,Adult Social Care,Support with Memory and Cognition - adults (18-64),Generic Care Packages SE Team -PS,Social Care - Homecare,08/02/2017,3828530,527.05,SANCTUARY HOME CARE LIMITED
Adults Services,Adult Social Care,Support with Memory and Cognition - adults (18-64),Generic Care Packages SW Team - PS,Social Care - Homecare,08/02/2017,3828540,"1,054.08",SANCTUARY HOME CARE LIMITED
Adults Services,Adult Social Care,Support with Memory and Cognition - adults (18-64),Generic Care Packages NW Team -PS,Social Care - Homecare,08/02/2017,3828541,955.28,SANCTUARY HOME CARE LIMITED
Adults Services,Adult Social Care,Support with Memory and Cognition - adults (18-64),Generic Care Packages NW Team -PS,Social Care - Homecare,08/02/2017,3828542,609.40,SANCTUARY HOME CARE LIMITED
Adults Services,Adult Social Care,Physical Support - adults (18-64),"Failed Care Package Conversion		",Social Care - Homecare,08/02/2017,3828547,518.82,SANCTUARY HOME CARE LIMITED
Adults Services,Adult Social Care,Support with Memory and Cognition - adults (18-64),Generic Care Packages NW Team -PS,Social Care - Home Care (Short Term),08/02/2017,3828550,560.01,SANCTUARY HOME CARE LIMITED
Adults Services,Adult Social Care,Support with Memory and Cognition - adults (18-64),Generic Care Packages NW Team -PS,Social Care - Homecare,08/02/2017,3828560,539.41,SANCTUARY HOME CARE LIMITED
Adults Services,Adult Social Care,Support with Memory and Cognition - adults (18-64),Generic Care Packages NE Team -PS,Social Care - Homecare,08/02/2017,3828562,634.10,SANCTUARY HOME CARE LIMITED
Adults Services,Adult Social Care,Support with Memory and Cognition - adults (18-64),Generic Care Packages SW Team - PS,Social Care - Homecare,08/02/2017,3828574,510.58,SANCTUARY HOME CARE LIMITED
Adults Services,Adult Social Care,Support with Memory and Cognition - adults (18-64),Generic Care Packages NE Team -PS,Social Care - Homecare,08/02/2017,3828575,518.82,SANCTUARY HOME CARE LIMITED
Adults Services,Adult Social Care,Support with Memory and Cognition - adults (18-64),Generic Care Packages NE Team -PS,Social Care - Homecare,08/02/2017,3828576,"1,573.20",Soma Healthcare Ltd
Adults Services,Adult Social Care,Support with Memory and Cognition - adults (18-64),Generic Care Packages NW Team-SMC,Social Care - Homecare,08/02/2017,3828578,"1,708.00",Soma Healthcare Ltd
Adults Services,Adult Social Care,Support with Memory and Cognition - adults (18-64),Generic Care Packages NW Team -PS,Social Care - Home Care (Short Term),08/02/2017,3828582,"1,375.60",Soma Healthcare Ltd
Adults Services,Adult Social Care,Support with Memory and Cognition - adults (18-64),Generic Care Packages NW Team -PS,Social Care - Homecare,08/02/2017,3828585,661.20,Soma Healthcare Ltd
Adults Services,Adult Social Care,Support with Memory and Cognition - adults (18-64),Generic Care Packages NE Team -PS,Social Care - Homecare,08/02/2017,3828587,657.40,Soma Healthcare Ltd
Adults Services,Adult Social Care,Support with Memory and Cognition - adults (18-64),Generic Care Packages SW Team - PS,Social Care - Homecare,08/02/2017,3828588,"1,763.20",Soma Healthcare Ltd
Adults Services,Adult Social Care,Support with Memory and Cognition - adults (18-64),Generic Care Packages SE Team -PS,Social Care - Homecare,08/02/2017,3828589,532.00,Soma Healthcare Ltd
Adults Services,Adult Social Care,Support with Memory and Cognition - adults (18-64),Generic Care Packages NW Team -PS,Social Care - Homecare,08/02/2017,3828592,754.30,Soma Healthcare Ltd
Adults Services,Adult Social Care,Support with Memory and Cognition - adults (18-64),Generic Care Packages SW Team - PS,Social Care - Homecare,08/02/2017,3828593,"2,249.60",Soma Healthcare Ltd
Adults Services,Adult Social Care,Support with Memory and Cognition - adults (18-64),Generic Care Packages NW Team -PS,Social Care - Homecare,08/02/2017,3828602,513.00,Soma Healthcare Ltd
Adults Services,Adult Social Care,Support with Memory and Cognition - adults (18-64),Generic Care Packages SE Team -PS,Social Care - Home Care (Short Term),08/02/2017,3828607,"1,252.10",Soma Healthcare Ltd
Adults Services,Adult Social Care,Support with Memory and Cognition - adults (18-64),Generic Care Packages SE Team -PS,Social Care - Homecare,08/02/2017,3828612,"1,803.10",Soma Healthcare Ltd
Adults Services,Adult Social Care,Support with Memory and Cognition - adults (18-64),Generic Care Packages NE Team -PS,Social Care - Home Care (Short Term),08/02/2017,3828613,551.00,Soma Healthcare Ltd
Adults Services,Adult Social Care,Support with Memory and Cognition - adults (18-64),Generic Care Packages SE Team -PS,Social Care - Homecare,08/02/2017,3828615,991.80,Soma Healthcare Ltd
Adults Services,Adult Social Care,Support with Memory and Cognition - adults (18-64),Generic Care Packages NE Team -PS,Social Care - Homecare,08/02/2017,3828618,604.20,Soma Healthcare Ltd
Adults Services,Adult Social Care,Support with Memory and Cognition - adults (18-64),Generic Care Packages SW Team - PS,Social Care - Homecare,08/02/2017,3828621,"1,200.80",Soma Healthcare Ltd
Adults Services,Adult Social Care,Support with Memory and Cognition - adults (18-64),Generic Care Packages SW Team - PS,Social Care - Homecare,08/02/2017,3828623,581.40,Soma Healthcare Ltd
Adults Services,Adult Social Care,Support with Memory and Cognition - adults (18-64),Generic Care Packages SE Team -PS,Social Care - Homecare,08/02/2017,3828626,556.70,Soma Healthcare Ltd
Adults Services,Adult Social Care,Support with Memory and Cognition - adults (18-64),Generic Care Packages NE Team -PS,Social Care - Homecare,08/02/2017,3828628,847.40,Soma Healthcare Ltd
Adults Services,Adult Social Care,Support with Memory and Cognition - adults (18-64),Generic Care Packages NW Team -PS,Social Care - Homecare,08/02/2017,3828629,"1,793.60",Soma Healthcare Ltd
Adults Services,Adult Social Care,Support with Memory and Cognition - adults (18-64),Generic Care Packages NE Team -PS,Social Care - Homecare,08/02/2017,3828634,"1,523.80",Soma Healthcare Ltd
Adults Services,Adult Social Care,Support with Memory and Cognition - adults (18-64),Generic Care Packages SE Team -PS,Social Care - Home Care (Short Term),08/02/2017,3828635,834.10,Soma Healthcare Ltd
Adults Services,Adult Social Care,Support with Memory and Cognition - adults (18-64),Generic Care Packages SW Team - PS,Social Care - Homecare,08/02/2017,3828638,640.30,Soma Healthcare Ltd
Adults Services,Adult Social Care,Support with Memory and Cognition - adults (18-64),Generic Care Packages SE Team -PS,Social Care - Homecare,08/02/2017,3828645,554.80,Soma Healthcare Ltd
Adults Services,Adult Social Care,Support with Memory and Cognition - adults (18-64),Generic Care Packages SE Team -PS,Social Care - Homecare,08/02/2017,3828650,"1,045.00",Soma Healthcare Ltd
Adults Services,Adult Social Care,Support with Memory and Cognition - adults (18-64),Generic Care Packages NW Team -PS,Social Care - Homecare,08/02/2017,3828653,501.60,Soma Healthcare Ltd
Adults Services,Adult Social Care,Support with Memory and Cognition - adults (18-64),Generic Care Packages NW Team -PS,Social Care - Homecare,08/02/2017,3828654,"1,968.40",Soma Healthcare Ltd
Adults Services,Adult Social Care,Support with Memory and Cognition - adults (18-64),Generic Care Packages SW Team - PS,Social Care - Home Care (Short Term),08/02/2017,3828658,562.40,Soma Healthcare Ltd
Adults Services,Adult Social Care,Support with Memory and Cognition - adults (18-64),Generic Care Packages SE Team -PS,Social Care - Homecare,08/02/2017,3828659,514.90,Soma Healthcare Ltd
Adults Services,Adult Social Care,Support with Memory and Cognition - adults (18-64),Generic Care Packages NE Team -PS,Social Care - Homecare,08/02/2017,3828661,872.10,Soma Healthcare Ltd
Adults Services,Adult Social Care,Support with Memory and Cognition - adults (18-64),Generic Care Packages SE Team -PS,Social Care - Homecare,08/02/2017,3828662,"1,479.20",Soma Healthcare Ltd
Adults Services,Adult Social Care,Support with Memory and Cognition - adults (18-64),CLDS Longer Term Support Teams,Social Care - Homecare,08/02/2017,3828663,649.80,Soma Healthcare Ltd
Adults Services,Adult Social Care,Support with Memory and Cognition - adults (18-64),Generic Care Packages NE Team -PS,Social Care - Homecare,08/02/2017,3828665,661.20,Soma Healthcare Ltd
Adults Services,Adult Social Care,Support with Memory and Cognition - adults (18-64),Generic Care Packages SW Team - PS,Social Care - Home Care (Short Term),08/02/2017,3828672,551.00,Soma Healthcare Ltd
Adults Services,Adult Social Care,Support with Memory and Cognition - adults (18-64),Generic Care Packages NE Team -PS,Social Care - Homecare,08/02/2017,3828680,"1,020.30",Soma Healthcare Ltd
Adults Services,Adult Social Care,Support with Memory and Cognition - adults (18-64),Generic Care Packages SW Team - PS,Social Care - Homecare,08/02/2017,3828681,"1,197.00",Soma Healthcare Ltd
Adults Services,Adult Social Care,Support with Memory and Cognition - adults (18-64),Generic Care Packages SE Team -PS,Social Care - Homecare,08/02/2017,3828683,701.10,Soma Healthcare Ltd
Adults Services,Adult Social Care,Support with Memory and Cognition - adults (18-64),Generic Care Packages SW Team - PS,Social Care - Homecare,08/02/2017,3828686,634.60,Soma Healthcare Ltd
Adults Services,Adult Social Care,Support with Memory and Cognition - adults (18-64),Generic Care Packages NE Team -PS,Social Care - Homecare,08/02/2017,3828695,"2,044.40",Soma Healthcare Ltd
Adults Services,Adult Social Care,Support with Memory and Cognition - adults (18-64),Generic Care Packages SE Team -PS,Social Care - Homecare,08/02/2017,3828705,556.70,Soma Healthcare Ltd
Adults Services,Adult Social Care,Support with Memory and Cognition - adults (18-64),CLDS Longer Term Support Teams,Social Care - Homecare,08/02/2017,3828709,"1,288.80",Outward Housing
Adults Services,Adult Social Care,Physical Support - adults (18-64),Public Health � Healthy Middle Age & Older People.,Third Party Payments - Voluntary Associations,10/02/2017,3813737,"11,490.00",Positive East
Adults Services,Adult Social Care,Physical Support - adults (18-64),Public Health � Healthy Young Adults,Third Party Payments - Voluntary Associations,10/02/2017,3813738,"39,389.25",Positive East
Adults Services,Adult Social Care,Physical Support - adults (18-64),Public Health � Healthy Young Adults,Third Party Payments - Voluntary Associations,10/02/2017,3813739,"8,490.00",Positive East
Adults Services,Adult Social Care,Support with Memory and Cognition - adults (18-64),CLDS Longer Term Support Teams,Social Care - Prevention & Support,10/02/2017,3817545,765.60,Outward Housing
Adults Services,Adult Social Care,Support with Memory and Cognition - adults (18-64),CLDS Longer Term Support Teams,Social Care - Prevention & Support,10/02/2017,3817546,765.60,Outward Housing
Adults Services,Adult Social Care,Support with Memory and Cognition - adults (18-64),Generic Care Packages SE Team -SP,Non Staff Transport Costs - Client Transport Costs,10/02/2017,3830171,600.00,Abacus Ambulance Service
Adults Services,Adult Social Care,Support with Memory and Cognition - adults (18-64),Generic Care Packages SE Team-SMC,Social Care - Nursing Care,10/02/2017,3830172,"1,156.80",PARK VIEW CARE HOME
Adults Services,Adult Social Care,Support with Memory and Cognition - adults (18-64),Generic Care Packages SE Team-SMC,Social Care - Nursing Care,10/02/2017,3830173,"3,435.25",PARK VIEW CARE HOME
Adults Services,Adult Social Care,Support with Memory and Cognition - adults (18-64),Generic Care Packages SE Team-SMC,Social Care - Nursing Care,10/02/2017,3830174,"3,324.43",PARK VIEW CARE HOME
Adults Services,Adult Social Care,Support with Memory and Cognition - adults (18-64),Generic Care Packages SE Team-SMC,Social Care - Nursing Care,10/02/2017,3830175,"3,435.25",PARK VIEW CARE HOME
Adults Services,Adult Social Care,Support with Memory and Cognition - adults (18-64),Generic Care Packages SE Team-SMC,Social Care - Nursing Care,10/02/2017,3830176,"3,435.25",PARK VIEW CARE HOME
Adults Services,Adult Social Care,Support with Memory and Cognition - adults (18-64),Generic Care Packages SE Team -PS,Social Care - Homecare,10/02/2017,3830178,539.60,Soma Healthcare Ltd
Adults Services,Adult Social Care,Support with Memory and Cognition - adults (18-64),Cmht Bethnal Green,Social Care - Prevention & Support,10/02/2017,3830184,"1,960.00",City Inn Express Limited
Adults Services,Adult Social Care,Support with Memory and Cognition - adults (18-64),Generic Care Packages NW Team -PS,Social Care - Nursing Care,10/02/2017,3830186,"6,237.98",LIFE STYLE CARE (2011) PLC
Adults Services,Adult Social Care,Physical Support - adults (18-64),"Failed Care Package Conversion		",Social Care - Extra Care Sheltered Housing,10/02/2017,3830191,"7,088.90",Creative Support
Adults Services,Adult Social Care,Physical Support - adults (18-64),"Failed Care Package Conversion		",Social Care - Others,10/02/2017,3830192,887.34,Genesis Housing Association
Adults Services,Adult Social Care,Support with Memory and Cognition - adults (18-64),"Generic Care Packages SW Team -SS		",Social Care - Home Care (Short Term),10/02/2017,3830199,719.06,SEVACARE UK LTD
Adults Services,Adult Social Care,Support with Memory and Cognition - adults (18-64),Generic Care Packages SW Team - PS,Social Care - Homecare,10/02/2017,3830202,543.60,SEVACARE UK LTD
Adults Services,Adult Social Care,Support with Memory and Cognition - adults (18-64),Generic Care Packages SW Team - PS,Social Care - Homecare,10/02/2017,3830205,543.60,SEVACARE UK LTD
Adults Services,Adult Social Care,Support with Memory and Cognition - adults (18-64),Generic Care Packages SW Team - PS,Social Care - Homecare,10/02/2017,3830209,543.60,SEVACARE UK LTD
Adults Services,Adult Social Care,Support with Memory and Cognition - adults (18-64),Generic Care Packages SW Team - PS,Social Care - Homecare,10/02/2017,3830210,540.40,FOCUS CARE LINK LTD
Adults Services,Adult Social Care,Support with Memory and Cognition - adults (18-64),Generic Care Packages SW Team - PS,Social Care - Homecare,10/02/2017,3830212,"1,080.80",FOCUS CARE LINK LTD
Adults Services,Adult Social Care,Support with Memory and Cognition - adults (18-64),Generic Care Packages SW Team - PS,Social Care - Homecare,10/02/2017,3830214,543.60,SEVACARE UK LTD
Adults Services,Adult Social Care,Support with Memory and Cognition - adults (18-64),Generic Care Packages SW Team - PS,Social Care - Homecare,10/02/2017,3830217,543.60,SEVACARE UK LTD
Adults Services,Adult Social Care,Support with Memory and Cognition - adults (18-64),Generic Care Packages SW Team - PS,Social Care - Homecare,10/02/2017,3830221,543.60,SEVACARE UK LTD
Adults Services,Adult Social Care,Support with Memory and Cognition - adults (18-64),Generic Care Packages SW Team - PS,Social Care - Homecare,10/02/2017,3830226,543.60,SEVACARE UK LTD
Adults Services,Adult Social Care,Support with Memory and Cognition - adults (18-64),CLDS Longer Term Support Teams,Social Care - Homecare,10/02/2017,3830242,525.30,SEVACARE UK LTD
Adults Services,Adult Social Care,Support with Memory and Cognition - adults (18-64),Generic Care Packages SE Team -PS,Social Care - Homecare,10/02/2017,3830247,509.85,SEVACARE UK LTD
Adults Services,Adult Social Care,Support with Memory and Cognition - adults (18-64),Generic Care Packages SW Team - PS,Social Care - Home Care (Short Term),10/02/2017,3830266,927.00,SEVACARE UK LTD
Adults Services,Adult Social Care,Support with Memory and Cognition - adults (18-64),Generic Care Packages NW Team -PS,Social Care - Home Care (Short Term),10/02/2017,3830267,618.00,SEVACARE UK LTD
Adults Services,Adult Social Care,Support with Memory and Cognition - adults (18-64),Generic Care Packages NW Team -PS,Social Care - Homecare,10/02/2017,3830277,563.93,SEVACARE UK LTD
Adults Services,Adult Social Care,Support with Memory and Cognition - adults (18-64),CLDS Longer Term Support Teams,Social Care - Homecare,10/02/2017,3830279,"1,267.32",Lifestyles Academy for Independance
Adults Services,Adult Social Care,Support with Memory and Cognition - adults (18-64),CLDS Longer Term Support Teams,Social Care - Homecare,10/02/2017,3830282,618.93,Lifestyles Academy for Independance
Adults Services,Adult Social Care,Support with Memory and Cognition - adults (18-64),CLDS Longer Term Support Teams,Social Care - Homecare,10/02/2017,3830283,595.62,Lifestyles Academy for Independance
Adults Services,Adult Social Care,Support with Memory and Cognition - adults (18-64),CLDS Longer Term Support Teams,Social Care - Homecare,10/02/2017,3830284,583.38,Lifestyles Academy for Independance
Adults Services,Adult Social Care,Support with Memory and Cognition - adults (18-64),CLDS Longer Term Support Teams,Social Care - Homecare,10/02/2017,3830286,594.54,Lifestyles Academy for Independance
Adults Services,Adult Social Care,Support with Memory and Cognition - adults (18-64),Generic Care Packages SE Team -PS,Social Care - Homecare,10/02/2017,3830287,615.96,REDSPOT HOMECARE (CONTRACTS) LTD
Adults Services,Adult Social Care,Support with Memory and Cognition - adults (18-64),Generic Care Packages NE Team -PS,Social Care - Homecare,10/02/2017,3830288,"1,478.17",REDSPOT HOMECARE (CONTRACTS) LTD
Adults Services,Adult Social Care,Support with Memory and Cognition - adults (18-64),Generic Care Packages SE Team -PS,Social Care - Homecare,10/02/2017,3830288,"2,874.48",REDSPOT HOMECARE (CONTRACTS) LTD
Adults Services,Adult Social Care,Support with Memory and Cognition - adults (18-64),Generic Care Packages NE Team -PS,Social Care - Homecare,10/02/2017,3830289,"1,543.92",REDSPOT HOMECARE (CONTRACTS) LTD
Adults Services,Adult Social Care,Support with Memory and Cognition - adults (18-64),Generic Care Packages SE Team -PS,Social Care - Homecare,10/02/2017,3830289,"2,874.48",REDSPOT HOMECARE (CONTRACTS) LTD
Adults Services,Adult Social Care,Physical Support - adults (18-64),"Carers & Cross Cutting Issues		",Social Care - Prevention & Support - Block,10/02/2017,3830290,"300,000.00",HERITAGE CARE
Adults Services,Adult Social Care,Support with Memory and Cognition - adults (18-64),Cmht For Older People,Social Care - Residential Care,10/02/2017,3830291,"2,900.71",Leona Enterprises Ltd
Adults Services,Adult Social Care,Support with Memory and Cognition - adults (18-64),Generic Care Packages NW Team -PS,Social Care - Homecare,10/02/2017,3830296,739.14,MiHOMECARE LIMITED
Adults Services,Adult Social Care,Support with Memory and Cognition - adults (18-64),Generic Care Packages SE Team -PS,Social Care - Homecare,10/02/2017,3830302,546.86,MiHOMECARE LIMITED
Adults Services,Adult Social Care,Support with Memory and Cognition - adults (18-64),Generic Care Packages SE Team -PS,Social Care - Homecare,10/02/2017,3830303,609.75,MiHOMECARE LIMITED
Adults Services,Adult Social Care,Support with Memory and Cognition - adults (18-64),Generic Care Packages SE Team -PS,Social Care - Homecare,10/02/2017,3830308,665.18,MiHOMECARE LIMITED
Adults Services,Adult Social Care,Support with Memory and Cognition - adults (18-64),Generic Care Packages NW Team -PS,Social Care - Homecare,10/02/2017,3830309,916.64,MiHOMECARE LIMITED
Adults Services,Adult Social Care,Support with Memory and Cognition - adults (18-64),Generic Care Packages SW Team - PS,Social Care - Residential Care,10/02/2017,3830312,"3,882.44",ACTION ON HEARING LOSS
Adults Services,Adult Social Care,Support with Memory and Cognition - adults (18-64),Generic Care Packages SE Team -PS,Social Care - Respite Care,10/02/2017,3830313,"2,600.00",THE LODGE
Adults Services,Adult Social Care,Support with Memory and Cognition - adults (18-64),Generic Care Packages NE Team-SMC,Social Care - Residential Care,10/02/2017,3830314,"3,179.71",Leona Enterprises Ltd
Adults Services,Adult Social Care,Support with Memory and Cognition - adults (18-64),Generic Care Packages SE Team -SM,Social Care - Prevention & Support,10/02/2017,3830315,"1,680.00",Plaza London Hotel
Adults Services,Adult Social Care,Support with Memory and Cognition - adults (18-64),Generic Care Packages NW Team -PS,Social Care - Homecare,10/02/2017,3830318,"2,481.77",APASENTH
Adults Services,Adult Social Care,Support with Memory and Cognition - adults (18-64),CLDS Longer Term Support Teams,Social Care - Homecare,10/02/2017,3830319,"1,589.65",APASENTH
Adults Services,Adult Social Care,Support with Memory and Cognition - adults (18-64),CLDS Longer Term Support Teams,Social Care - Homecare,10/02/2017,3830320,"1,443.14",APASENTH
Adults Services,Adult Social Care,Support with Memory and Cognition - adults (18-64),CLDS Longer Term Support Teams,Social Care - Homecare,10/02/2017,3830321,"1,252.23",APASENTH
Adults Services,Adult Social Care,Support with Memory and Cognition - adults (18-64),CLDS Longer Term Support Teams,Social Care - Homecare,10/02/2017,3830322,"1,216.19",APASENTH
Adults Services,Adult Social Care,Support with Memory and Cognition - adults (18-64),CLDS Transition,Social Care - Homecare,10/02/2017,3830324,753.50,APASENTH
Adults Services,Adult Social Care,Support with Memory and Cognition - adults (18-64),CLDS Longer Term Support Teams,Social Care - Homecare,10/02/2017,3830325,548.00,APASENTH
Adults Services,Adult Social Care,Support with Memory and Cognition - adults (18-64),CLDS Longer Term Support Teams,Social Care - Homecare,10/02/2017,3830332,556.02,Lifestyles Academy for Independance
Adults Services,Adult Social Care,Support with Memory and Cognition - adults (18-64),Cmht For Older People,Social Care - Residential Care,10/02/2017,3830334,"1,204.66",RUNWOOD HOMES PLC
Adults Services,Adult Social Care,Support with Memory and Cognition - adults (18-64),Generic Care Packages SW Team - PS,Social Care - Homecare,10/02/2017,3830337,"2,882.26",SANCTUARY HOME CARE LIMITED
Adults Services,Adult Social Care,Support with Memory and Cognition - adults (18-64),Generic Care Packages NE Team -PS,Social Care - Homecare,10/02/2017,3830343,576.46,SANCTUARY HOME CARE LIMITED
Adults Services,Adult Social Care,Support with Memory and Cognition - adults (18-64),Generic Care Packages NE Team -PS,Social Care - Home Care (Short Term),10/02/2017,3830347,"2,910.20",SANCTUARY HOME CARE LIMITED
Adults Services,Adult Social Care,Support with Memory and Cognition - adults (18-64),Generic Care Packages NE Team -PS,Social Care - Homecare,10/02/2017,3830358,691.76,SANCTUARY HOME CARE LIMITED
Adults Services,Adult Social Care,Support with Memory and Cognition - adults (18-64),Generic Care Packages SW Team - PS,Social Care - Homecare,10/02/2017,3830361,691.75,SANCTUARY HOME CARE LIMITED
Adults Services,Adult Social Care,Support with Memory and Cognition - adults (18-64),Generic Care Packages NW Team -PS,Social Care - Home Care (Short Term),10/02/2017,3830363,807.04,SANCTUARY HOME CARE LIMITED
Adults Services,Adult Social Care,Support with Memory and Cognition - adults (18-64),Generic Care Packages NE Team -PS,Social Care - Homecare,10/02/2017,3830364,518.82,SANCTUARY HOME CARE LIMITED
Adults Services,Adult Social Care,Support with Memory and Cognition - adults (18-64),Generic Care Packages NE Team -PS,Social Care - Homecare,10/02/2017,3830366,564.10,SANCTUARY HOME CARE LIMITED
Adults Services,Adult Social Care,Support with Memory and Cognition - adults (18-64),Generic Care Packages SE Team -PS,Social Care - Homecare,10/02/2017,3830367,"1,317.62",SANCTUARY HOME CARE LIMITED
Adults Services,Adult Social Care,Support with Memory and Cognition - adults (18-64),Generic Care Packages SE Team -PS,Social Care - Homecare,10/02/2017,3830369,551.76,SANCTUARY HOME CARE LIMITED
Adults Services,Adult Social Care,Support with Memory and Cognition - adults (18-64),Generic Care Packages SE Team -PS,Social Care - Homecare,10/02/2017,3830372,527.18,Soma Healthcare Ltd
Adults Services,Adult Social Care,Support with Memory and Cognition - adults (18-64),Generic Care Packages SE Team -PS,Social Care - Homecare,10/02/2017,3830373,539.60,Soma Healthcare Ltd
Adults Services,Adult Social Care,Support with Memory and Cognition - adults (18-64),Generic Care Packages SE Team -PS,Social Care - Homecare,10/02/2017,3830374,539.60,Soma Healthcare Ltd
Adults Services,Adult Social Care,Physical Support - adults (18-64),Public Health � Healthy 0-5 year olds,Third Party Payments - Other Establishments,13/02/2017,3818592,"30,923.00",Barts Health NHS Trust
Adults Services,Adult Social Care,Physical Support - adults (18-64),Public Health � Healthy 0-5 year olds,Third Party Payments - Other Establishments,13/02/2017,3818593,"21,270.00",Barts Health NHS Trust
Adults Services,Adult Social Care,Support with Memory and Cognition - adults (18-64),CLDS Longer Term Support Teams,Social Care - Residential Care,13/02/2017,3825784,"4,234.91",PERSON CENTRED CARE HOMES
Adults Services,Adult Social Care,Support with Memory and Cognition - adults (18-64),CLDS Longer Term Support Teams,Social Care - Residential Care,13/02/2017,3825788,"-4,234.91",PERSON CENTRED CARE HOMES
Adults Services,Adult Social Care,Support with Memory and Cognition - adults (18-64),Generic Care Packages NW Team -PS,Social Care - Residential Care,13/02/2017,3826548,"3,542.86",Dalton Court Care Home
Adults Services,Adult Social Care,Service Strategy,Commissioning & Strategy M&A,Subscriptions - Subscriptions to Associations,13/02/2017,3830447,510.00,Laing & Buisson Ltd
Adults Services,Adult Social Care,Physical Support - adults (18-64),Adult Protection Team,Services - Professional Fees - Financial Services Fees,13/02/2017,3830461,988.25,VOICEABILITY
Adults Services,Adult Social Care,Physical Support - adults (18-64),Adult Protection Team,Services - Professional Fees - Consultants Fees,13/02/2017,3830475,"1,200.00",PAUSH Ltd
Adults Services,Adult Social Care,Physical Support - adults (18-64),Public Health � Healthy Middle Age & Older People.,Third Party Payments - Other Establishments,13/02/2017,3830504,"35,523.33",Queen Mary University of London
Adults Services,Adult Social Care,Physical Support - adults (18-64),Adult Protection Team,Services - Professional Fees - Consultants Fees,13/02/2017,3830561,"1,830.00",Cambridge House and Talbot
Adults Services,Adult Social Care,Physical Support - adults (18-64),Adult Protection Team,Services - Professional Fees - Consultants Fees,13/02/2017,3830590,524.25,Swan Advocacy Network
Adults Services,No Service Specified,No Division Specified,Community Equipment Store,Community Equipment  Supplies - Aids and Appliances,13/02/2017,3830756,866.44,LANSBURY CHEMIST
Adults Services,No Service Specified,No Division Specified,Community Equipment Store,Community Equipment  Supplies - Aids and Appliances,13/02/2017,3830757,"1,117.66",SINCLAIR PHARMACY
Adults Services,No Service Specified,No Division Specified,Community Equipment Store,Community Equipment  Supplies - Aids and Appliances,13/02/2017,3830759,"4,592.48",FELDY PHARMACY
Adults Services,No Service Specified,No Division Specified,Community Equipment Store,Community Equipment  Supplies - Aids and Appliances,13/02/2017,3830763,554.24,Laville Ltd t/a BRITANNIA PHARMACY
Adults Services,No Service Specified,No Division Specified,Community Equipment Store,Community Equipment  Supplies - Aids and Appliances,13/02/2017,3830764,680.49,Laville Ltd t/a BRITANNIA PHARMACY
Adults Services,No Service Specified,No Division Specified,Community Equipment Store,Community Equipment  Supplies - Aids and Appliances,13/02/2017,3830765,772.32,MILDCARE LTD
Adults Services,Adult Social Care,Physical Support - adults (18-64),Public Health � Healthy Young Adults,Third Party Payments - Other Establishments,15/02/2017,3782222,"21,168.56",Chelsea and Westmeinster Hospital NHS Foundation Trust
Adults Services,Adult Social Care,Physical Support - adults (18-64),Public Health � Healthy Young Adults,Third Party Payments - Other Establishments,15/02/2017,3782292,"17,637.47",Chelsea and Westmeinster Hospital NHS Foundation Trust
Adults Services,Adult Social Care,Physical Support - adults (18-64),Public Health � Healthy Young Adults,Third Party Payments - Other Establishments,15/02/2017,3782555,"25,510.36",Chelsea and Westmeinster Hospital NHS Foundation Trust
Adults Services,Adult Social Care,Physical Support - adults (18-64),Public Health � Healthy Young Adults,Third Party Payments - Other Establishments,15/02/2017,3799719,"85,424.61",Chelsea and Westmeinster Hospital NHS Foundation Trust
Adults Services,Adult Social Care,Physical Support - adults (18-64),Public Health � Healthy Young Adults,Third Party Payments - Other Establishments,15/02/2017,3799756,"27,308.97",Chelsea and Westmeinster Hospital NHS Foundation Trust
Adults Services,Adult Social Care,Physical Support - adults (18-64),Public Health � Healthy Young Adults,Third Party Payments - Other Establishments,15/02/2017,3802795,"85,424.61",Chelsea and Westmeinster Hospital NHS Foundation Trust
Adults Services,Adult Social Care,Physical Support - adults (18-64),Public Health � Healthy Young Adults,Third Party Payments - Other Establishments,15/02/2017,3810305,"17,362.38",Chelsea and Westmeinster Hospital NHS Foundation Trust
Adults Services,Adult Social Care,Physical Support - adults (18-64),Public Health � Healthy Environments,Payments to Private Contractors - Other Contractors,15/02/2017,3815991,"4,086.67",Rice Retail Marketing Ltd
Adults Services,Adult Social Care,Support with Memory and Cognition - adults (18-64),Cmht Iod / Poplar South,Social Care - Supported Living,15/02/2017,3826654,"1,065.15",Look Ahead Care & Support Ltd
Adults Services,No Service Specified,No Division Specified,Community Equipment Store,Community Equipment  Supplies - Aids and Appliances,15/02/2017,3831317,"2,426.46",Cubitt Town Pharmacy
Adults Services,No Service Specified,No Division Specified,Community Equipment Store,Community Equipment  Supplies - Aids and Appliances,15/02/2017,3831318,"2,136.88",Medichem (Bright Bridge Ltd)
Adults Services,No Service Specified,No Division Specified,Community Equipment Store,Community Equipment  Supplies - Aids and Appliances,15/02/2017,3831320,984.31,FLORIDA PHARMACY
Adults Services,Adult Social Care,Support with Memory and Cognition - adults (18-64),Generic Care Packages SE Team-SMC,Social Care - Residential Care,15/02/2017,3831867,"2,209.86",Oakdene Rest Home
Adults Services,Adult Social Care,Support with Memory and Cognition - adults (18-64),Cmht Iod / Poplar South,Social Care - Prevention & Support,15/02/2017,3831868,"2,000.00",Sign Health
Adults Services,Adult Social Care,Support with Memory and Cognition - adults (18-64),Generic Care Packages NW Team-SMC,Social Care - Homecare,15/02/2017,3831906,628.14,ATHLONE CARE LTD
Adults Services,Adult Social Care,Support with Memory and Cognition - adults (18-64),Generic Care Packages SE Team-SMC,Social Care - Residential Care,15/02/2017,3831918,"3,764.29",HEALTH & HOME LTD (ALEXANDER HOUSE)
Adults Services,Adult Social Care,Support with Memory and Cognition - adults (18-64),Generic Care Packages SE Team-SMC,Social Care - Residential Care,15/02/2017,3831919,"3,642.86",HEALTH & HOME LTD (ALEXANDER HOUSE)
Adults Services,Adult Social Care,Support with Memory and Cognition - adults (18-64),CLDS Longer Term Support Teams,Social Care - Homecare,15/02/2017,3831932,"1,743.33",MEARS CARE LTD
Adults Services,Adult Social Care,Support with Memory and Cognition - adults (18-64),CLDS Longer Term Support Teams,Social Care - Homecare,15/02/2017,3831933,"2,599.80",MEARS CARE LTD
Adults Services,Adult Social Care,Support with Memory and Cognition - adults (18-64),Generic Care Packages NE Team -PS,Social Care - Nursing Care,15/02/2017,3831936,"3,981.77",LIFE STYLE CARE (2011) PLC
Adults Services,Adult Social Care,Support with Memory and Cognition - adults (18-64),Generic Care Packages NE Team -PS,Social Care - Nursing Care,15/02/2017,3831937,"3,853.33",LIFE STYLE CARE (2011) PLC
Adults Services,Adult Social Care,Support with Memory and Cognition - adults (18-64),CLDS Longer Term Support Teams,Social Care - Residential Care,15/02/2017,3831938,"4,520.80",AUGUSTA CARE LTD
Adults Services,Adult Social Care,Support with Memory and Cognition - adults (18-64),CLDS Longer Term Support Teams,Social Care - Homecare,15/02/2017,3831939,"2,453.40",Tower Project
Adults Services,Adult Social Care,Support with Memory and Cognition - adults (18-64),CLDS Longer Term Support Teams,Social Care - Prevention & Support,15/02/2017,3831939,"1,901.87",Tower Project
Adults Services,Adult Social Care,Support with Memory and Cognition - adults (18-64),CLDS Longer Term Support Teams,Social Care - Homecare,15/02/2017,3831940,"5,192.37",Tower Project
Adults Services,Adult Social Care,Support with Memory and Cognition - adults (18-64),CLDS Transition,Social Care - Supported Living,15/02/2017,3831941,"6,846.04",Tower Project
Adults Services,Adult Social Care,Support with Memory and Cognition - adults (18-64),Cmht Iod / Poplar South,Social Care - Residential Care,15/02/2017,3831942,"6,000.00",C.H.O.I.C.E Ltd
Adults Services,Adult Social Care,Support with Memory and Cognition - adults (18-64),Generic Care Packages SE Team -PS,Social Care - Homecare,15/02/2017,3831943,"1,992.47",FOCUS CARE LINK LTD
Adults Services,Adult Social Care,Support with Memory and Cognition - adults (18-64),Generic Care Packages NW Team -PS,Social Care - Direct Payments,15/02/2017,3831951,"1,030.67",DAVID HOWARD LTD CLIENT ACCOUNT
Adults Services,Adult Social Care,Support with Memory and Cognition - adults (18-64),Generic Care Packages SW Team - PS,Social Care - Direct Payments,15/02/2017,3831955,"1,083.76",DAVID HOWARD LTD CLIENT ACCOUNT
Adults Services,Adult Social Care,Support with Memory and Cognition - adults (18-64),Generic Care Packages NE Team -SI,Social Care - Direct Payments,15/02/2017,3831964,"1,171.75",DAVID HOWARD LTD CLIENT ACCOUNT
Adults Services,Adult Social Care,Support with Memory and Cognition - adults (18-64),Generic Care Packages SW Team - PS,Social Care - Direct Payments,15/02/2017,3831965,"2,524.28",D D PAYROLL SERVICES
Adults Services,Adult Social Care,Support with Memory and Cognition - adults (18-64),Generic Care Packages NE Team -PS,Social Care - Direct Payments,15/02/2017,3831966,"1,138.81",DAVID HOWARD LTD CLIENT ACCOUNT
Adults Services,Adult Social Care,Support with Memory and Cognition - adults (18-64),Generic Care Packages NE Team -PS,Social Care - Direct Payments,15/02/2017,3831968,"2,491.78",D D PAYROLL SERVICES
Adults Services,Adult Social Care,Support with Memory and Cognition - adults (18-64),Generic Care Packages SE Team -PS,Social Care - Direct Payments,15/02/2017,3831971,"1,095.59",DAVID HOWARD LTD CLIENT ACCOUNT
Adults Services,Adult Social Care,Support with Memory and Cognition - adults (18-64),Generic Care Packages SE Team -PS,Social Care - Direct Payments,15/02/2017,3831972,"1,024.68",DAVID HOWARD LTD CLIENT ACCOUNT
Adults Services,Adult Social Care,Support with Memory and Cognition - adults (18-64),Generic Care Packages NE Team -PS,Social Care - Direct Payments,15/02/2017,3831973,904.14,DAVID HOWARD LTD CLIENT ACCOUNT
Adults Services,Adult Social Care,Support with Memory and Cognition - adults (18-64),Generic Care Packages SW Team - PS,Social Care - Direct Payments,15/02/2017,3831976,"1,150.90",D D PAYROLL SERVICES
Adults Services,Adult Social Care,Support with Memory and Cognition - adults (18-64),CLDS Longer Term Support Teams,Social Care - Direct Payments,15/02/2017,3831977,"1,885.60",DAVID HOWARD LTD CLIENT ACCOUNT
Adults Services,Adult Social Care,Support with Memory and Cognition - adults (18-64),Generic Care Packages NW Team -PS,Social Care - Direct Payments,15/02/2017,3831978,692.80,D D PAYROLL SERVICES
Adults Services,Adult Social Care,Support with Memory and Cognition - adults (18-64),CLDS Longer Term Support Teams,Social Care - Direct Payments,15/02/2017,3831983,"1,548.01",D D PAYROLL SERVICES
Adults Services,Adult Social Care,Support with Memory and Cognition - adults (18-64),Generic Care Packages SE Team -PS,Social Care - Direct Payments,15/02/2017,3831985,888.38,D D PAYROLL SERVICES
Adults Services,Adult Social Care,Support with Memory and Cognition - adults (18-64),Generic Care Packages NE Team -PS,Social Care - Direct Payments,15/02/2017,3831989,748.65,DAVID HOWARD LTD CLIENT ACCOUNT
Adults Services,Adult Social Care,Support with Memory and Cognition - adults (18-64),CLDS Longer Term Support Teams,Social Care - Direct Payments,15/02/2017,3831990,797.14,D D PAYROLL SERVICES
Adults Services,Adult Social Care,Support with Memory and Cognition - adults (18-64),CLDS Longer Term Support Teams,Social Care - Direct Payments,15/02/2017,3831993,"3,849.01",D D PAYROLL SERVICES
Adults Services,Adult Social Care,Support with Memory and Cognition - adults (18-64),Generic Care Packages SE Team -PS,Social Care - Direct Payments,15/02/2017,3831994,776.19,DAVID HOWARD LTD CLIENT ACCOUNT
Adults Services,Adult Social Care,Support with Memory and Cognition - adults (18-64),Generic Care Packages NW Team -PS,Social Care - Direct Payments,15/02/2017,3831995,852.19,DAVID HOWARD LTD CLIENT ACCOUNT
Adults Services,Adult Social Care,Support with Memory and Cognition - adults (18-64),Cmht Bethnal Green,Social Care - Direct Payments,15/02/2017,3831996,711.27,DAVID HOWARD LTD CLIENT ACCOUNT
Adults Services,Adult Social Care,Support with Memory and Cognition - adults (18-64),Generic Care Packages NE Team -SI,Social Care - Direct Payments,15/02/2017,3832000,"2,173.36",DAVID HOWARD LTD CLIENT ACCOUNT
Adults Services,Adult Social Care,Support with Memory and Cognition - adults (18-64),Generic Care Packages NE Team -PS,Social Care - Direct Payments,15/02/2017,3832001,"3,630.67",DAVID HOWARD LTD CLIENT ACCOUNT
Adults Services,Adult Social Care,Support with Memory and Cognition - adults (18-64),CLDS Longer Term Support Teams,Social Care - Direct Payments,15/02/2017,3832002,"2,930.40",DAVID HOWARD LTD CLIENT ACCOUNT
Adults Services,Adult Social Care,Support with Memory and Cognition - adults (18-64),CLDS Longer Term Support Teams,Social Care - Direct Payments,15/02/2017,3832003,"3,392.25",DAVID HOWARD LTD CLIENT ACCOUNT
Adults Services,Adult Social Care,Support with Memory and Cognition - adults (18-64),Generic Care Packages SW Team - PS,Social Care - Direct Payments,15/02/2017,3832005,"1,293.37",DAVID HOWARD LTD CLIENT ACCOUNT
Adults Services,Adult Social Care,Support with Memory and Cognition - adults (18-64),CLDS Longer Term Support Teams,Social Care - Direct Payments,15/02/2017,3832006,646.61,D D PAYROLL SERVICES
Adults Services,Adult Social Care,Support with Memory and Cognition - adults (18-64),Generic Care Packages SE Team -PS,Social Care - Direct Payments,15/02/2017,3832007,"1,038.01",D D PAYROLL SERVICES
Adults Services,Adult Social Care,Support with Memory and Cognition - adults (18-64),CLDS Longer Term Support Teams,Social Care - Direct Payments,15/02/2017,3832010,675.85,DAVID HOWARD LTD CLIENT ACCOUNT
Adults Services,Adult Social Care,Support with Memory and Cognition - adults (18-64),Generic Care Packages NW Team -PS,Social Care - Direct Payments,15/02/2017,3832011,"1,492.91",D D PAYROLL SERVICES
Adults Services,Adult Social Care,Support with Memory and Cognition - adults (18-64),Generic Care Packages NW Team -PS,Social Care - Direct Payments,15/02/2017,3832013,746.12,DAVID HOWARD LTD CLIENT ACCOUNT
Adults Services,Adult Social Care,Support with Memory and Cognition - adults (18-64),CLDS Longer Term Support Teams,Social Care - Direct Payments,15/02/2017,3832015,"1,155.63",D D PAYROLL SERVICES
Adults Services,Adult Social Care,Support with Memory and Cognition - adults (18-64),Generic Care Packages NW Team -PS,Social Care - Direct Payments,15/02/2017,3832016,"1,053.56",DAVID HOWARD LTD CLIENT ACCOUNT
Adults Services,Adult Social Care,Support with Memory and Cognition - adults (18-64),Generic Care Packages SW Team - PS,Social Care - Direct Payments,15/02/2017,3832017,"3,747.41",DAVID HOWARD LTD CLIENT ACCOUNT
Adults Services,Adult Social Care,Support with Memory and Cognition - adults (18-64),CLDS Longer Term Support Teams,Social Care - Direct Payments,15/02/2017,3832019,"3,324.39",D D PAYROLL SERVICES
Adults Services,Adult Social Care,Support with Memory and Cognition - adults (18-64),Generic Care Packages SE Team -PS,Social Care - Direct Payments,15/02/2017,3832021,"1,103.78",DAVID HOWARD LTD CLIENT ACCOUNT
Adults Services,Adult Social Care,Support with Memory and Cognition - adults (18-64),Generic Care Packages SW Team - PS,Social Care - Direct Payments,15/02/2017,3832023,527.00,DAVID HOWARD LTD CLIENT ACCOUNT
Adults Services,Adult Social Care,Support with Memory and Cognition - adults (18-64),Generic Care Packages SW Team -SC,Social Care - Direct Payments,15/02/2017,3832024,646.09,DAVID HOWARD LTD CLIENT ACCOUNT
Adults Services,Adult Social Care,Support with Memory and Cognition - adults (18-64),Generic Care Packages SW Team - PS,Social Care - Direct Payments,15/02/2017,3832025,767.33,DAVID HOWARD LTD CLIENT ACCOUNT
Adults Services,Adult Social Care,Support with Memory and Cognition - adults (18-64),CLDS Longer Term Support Teams,Social Care - Direct Payments,15/02/2017,3832027,"2,350.86",D D PAYROLL SERVICES
Adults Services,Adult Social Care,Support with Memory and Cognition - adults (18-64),Generic Care Packages SW Team - PS,Social Care - Direct Payments,15/02/2017,3832029,647.46,D D PAYROLL SERVICES
Adults Services,Adult Social Care,Support with Memory and Cognition - adults (18-64),CLDS Longer Term Support Teams,Social Care - Direct Payments,15/02/2017,3832033,"1,378.08",D D PAYROLL SERVICES
Adults Services,Adult Social Care,Support with Memory and Cognition - adults (18-64),Generic Care Packages NW Team -PS,Social Care - Direct Payments,15/02/2017,3832035,"4,247.62",DAVID HOWARD LTD CLIENT ACCOUNT
Adults Services,Adult Social Care,Support with Memory and Cognition - adults (18-64),CLDS Longer Term Support Teams,Social Care - Direct Payments,15/02/2017,3832036,"4,317.86",D D PAYROLL SERVICES
Adults Services,Adult Social Care,Support with Memory and Cognition - adults (18-64),Generic Care Packages SW Team - PS,Social Care - Direct Payments,15/02/2017,3832037,721.68,DAVID HOWARD LTD CLIENT ACCOUNT
Adults Services,Adult Social Care,Support with Memory and Cognition - adults (18-64),Generic Care Packages NW Team -PS,Social Care - Direct Payments,15/02/2017,3832042,538.65,DAVID HOWARD LTD CLIENT ACCOUNT
Adults Services,Adult Social Care,Support with Memory and Cognition - adults (18-64),Generic Care Packages SE Team -PS,Social Care - Direct Payments,15/02/2017,3832043,556.68,D D PAYROLL SERVICES
Adults Services,Adult Social Care,Support with Memory and Cognition - adults (18-64),Generic Care Packages SW Team - PS,Social Care - Direct Payments,15/02/2017,3832045,"2,165.79",DAVID HOWARD LTD CLIENT ACCOUNT
Adults Services,Adult Social Care,Support with Memory and Cognition - adults (18-64),CLDS Longer Term Support Teams,Social Care - Direct Payments,15/02/2017,3832047,"2,125.28",DAVID HOWARD LTD CLIENT ACCOUNT
Adults Services,Adult Social Care,Support with Memory and Cognition - adults (18-64),CLDS Longer Term Support Teams,Social Care - Direct Payments,15/02/2017,3832049,"1,931.12",D D PAYROLL SERVICES
Adults Services,Adult Social Care,Support with Memory and Cognition - adults (18-64),Generic Care Packages SW Team - PS,Social Care - Direct Payments,15/02/2017,3832050,"1,263.25",DAVID HOWARD LTD CLIENT ACCOUNT
Adults Services,Adult Social Care,Support with Memory and Cognition - adults (18-64),Cmht Iod / Poplar South,Social Care - Direct Payments,15/02/2017,3832052,523.46,DAVID HOWARD LTD CLIENT ACCOUNT
Adults Services,Adult Social Care,Support with Memory and Cognition - adults (18-64),Generic Care Packages SW Team - PS,Social Care - Direct Payments,15/02/2017,3832054,"1,241.24",DAVID HOWARD LTD CLIENT ACCOUNT
Adults Services,Adult Social Care,Support with Memory and Cognition - adults (18-64),Generic Care Packages SE Team -PS,Social Care - Direct Payments,15/02/2017,3832055,"1,266.30",DAVID HOWARD LTD CLIENT ACCOUNT
Adults Services,Adult Social Care,Support with Memory and Cognition - adults (18-64),CLDS Longer Term Support Teams,Social Care - Direct Payments,15/02/2017,3832056,"3,060.68",D D PAYROLL SERVICES
Adults Services,Adult Social Care,Support with Memory and Cognition - adults (18-64),CLDS Longer Term Support Teams,Social Care - Direct Payments,15/02/2017,3832058,"2,878.58",DAVID HOWARD LTD CLIENT ACCOUNT
Adults Services,Adult Social Care,Support with Memory and Cognition - adults (18-64),CLDS Longer Term Support Teams,Social Care - Direct Payments,15/02/2017,3832062,"1,302.98",DAVID HOWARD LTD CLIENT ACCOUNT
Adults Services,Adult Social Care,Support with Memory and Cognition - adults (18-64),CLDS Longer Term Support Teams,Social Care - Direct Payments,15/02/2017,3832063,900.99,D D PAYROLL SERVICES
Adults Services,Adult Social Care,Support with Memory and Cognition - adults (18-64),CLDS Longer Term Support Teams,Social Care - Direct Payments,15/02/2017,3832064,900.99,D D PAYROLL SERVICES
Adults Services,Adult Social Care,Support with Memory and Cognition - adults (18-64),Generic Care Packages SW Team - PS,Social Care - Direct Payments,15/02/2017,3832065,773.89,DAVID HOWARD LTD CLIENT ACCOUNT
Adults Services,Adult Social Care,Support with Memory and Cognition - adults (18-64),CLDS Longer Term Support Teams,Social Care - Direct Payments,15/02/2017,3832066,"1,982.06",DAVID HOWARD LTD CLIENT ACCOUNT
Adults Services,Adult Social Care,Support with Memory and Cognition - adults (18-64),CLDS Longer Term Support Teams,Social Care - Direct Payments,15/02/2017,3832067,"1,120.91",DAVID HOWARD LTD CLIENT ACCOUNT
Adults Services,Adult Social Care,Support with Memory and Cognition - adults (18-64),Generic Care Packages NE Team -PS,Social Care - Direct Payments,15/02/2017,3832068,"1,875.86",DAVID HOWARD LTD CLIENT ACCOUNT
Adults Services,Adult Social Care,Support with Memory and Cognition - adults (18-64),Generic Care Packages SW Team-SMC,Social Care - Direct Payments,15/02/2017,3832072,642.94,DAVID HOWARD LTD CLIENT ACCOUNT
Adults Services,Adult Social Care,Support with Memory and Cognition - adults (18-64),Generic Care Packages NW Team -PS,Social Care - Direct Payments,15/02/2017,3832074,873.09,DAVID HOWARD LTD CLIENT ACCOUNT
Adults Services,Adult Social Care,Support with Memory and Cognition - adults (18-64),Generic Care Packages SW Team - PS,Social Care - Direct Payments,15/02/2017,3832078,701.53,DAVID HOWARD LTD CLIENT ACCOUNT
Adults Services,Adult Social Care,Support with Memory and Cognition - adults (18-64),Generic Care Packages NE Team -PS,Social Care - Direct Payments,15/02/2017,3832079,"1,360.23",D D PAYROLL SERVICES
Adults Services,Adult Social Care,Support with Memory and Cognition - adults (18-64),CLDS Longer Term Support Teams,Social Care - Direct Payments,15/02/2017,3832080,650.30,D D PAYROLL SERVICES
Adults Services,Adult Social Care,Support with Memory and Cognition - adults (18-64),Generic Care Packages SE Team -PS,Social Care - Direct Payments,15/02/2017,3832081,"1,047.26",DAVID HOWARD LTD CLIENT ACCOUNT
Adults Services,Adult Social Care,Support with Memory and Cognition - adults (18-64),Generic Care Packages NW Team -PS,Social Care - Direct Payments,15/02/2017,3832082,"1,413.37",DAVID HOWARD LTD CLIENT ACCOUNT
Adults Services,Adult Social Care,Support with Memory and Cognition - adults (18-64),Generic Care Packages SE Team -PS,Social Care - Direct Payments,15/02/2017,3832083,786.55,D D PAYROLL SERVICES
Adults Services,Adult Social Care,Support with Memory and Cognition - adults (18-64),Generic Care Packages SE Team -PS,Social Care - Direct Payments,15/02/2017,3832084,925.84,DAVID HOWARD LTD CLIENT ACCOUNT
Adults Services,Adult Social Care,Support with Memory and Cognition - adults (18-64),Generic Care Packages SE Team -PS,Social Care - Direct Payments,15/02/2017,3832086,607.65,DAVID HOWARD LTD CLIENT ACCOUNT
Adults Services,Adult Social Care,Support with Memory and Cognition - adults (18-64),Generic Care Packages NW Team -PS,Social Care - Direct Payments,15/02/2017,3832087,"4,112.38",D D PAYROLL SERVICES
Adults Services,Adult Social Care,Support with Memory and Cognition - adults (18-64),Generic Care Packages SE Team-SMC,Social Care - Direct Payments,15/02/2017,3832089,"13,832.28",D D PAYROLL SERVICES
Adults Services,Adult Social Care,Support with Memory and Cognition - adults (18-64),Generic Care Packages SW Team - PS,Social Care - Direct Payments,15/02/2017,3832091,686.29,D D PAYROLL SERVICES
Adults Services,Adult Social Care,Support with Memory and Cognition - adults (18-64),Generic Care Packages SW Team - PS,Social Care - Direct Payments,15/02/2017,3832092,710.13,D D PAYROLL SERVICES
Adults Services,Adult Social Care,Support with Memory and Cognition - adults (18-64),CLDS Longer Term Support Teams,Social Care - Direct Payments,15/02/2017,3832099,989.34,D D PAYROLL SERVICES
Adults Services,Adult Social Care,Support with Memory and Cognition - adults (18-64),Generic Care Packages SE Team -PS,Social Care - Direct Payments,15/02/2017,3832103,"2,809.92",REDACTED SECTION 40 FOI ACT
Adults Services,Adult Social Care,Support with Memory and Cognition - adults (18-64),Generic Care Packages NE Team -PS,Social Care - Direct Payments,15/02/2017,3832112,831.24,DAVID HOWARD LTD CLIENT ACCOUNT
Adults Services,Adult Social Care,Support with Memory and Cognition - adults (18-64),Generic Care Packages NW Team -SP,Social Care - Direct Payments,15/02/2017,3832113,544.31,DAVID HOWARD LTD CLIENT ACCOUNT
Adults Services,Adult Social Care,Support with Memory and Cognition - adults (18-64),Generic Care Packages SW Team - PS,Social Care - Direct Payments,15/02/2017,3832114,560.35,DAVID HOWARD LTD CLIENT ACCOUNT
Adults Services,Adult Social Care,Support with Memory and Cognition - adults (18-64),CLDS Longer Term Support Teams,Social Care - Direct Payments,15/02/2017,3832116,"2,706.07",DAVID HOWARD LTD CLIENT ACCOUNT
Adults Services,Adult Social Care,Support with Memory and Cognition - adults (18-64),CLDS Longer Term Support Teams,Social Care - Direct Payments,15/02/2017,3832117,"2,224.64",DAVID HOWARD LTD CLIENT ACCOUNT
Adults Services,Adult Social Care,Support with Memory and Cognition - adults (18-64),CLDS Longer Term Support Teams,Social Care - Direct Payments,15/02/2017,3832118,"3,459.52",DAVID HOWARD LTD CLIENT ACCOUNT
Adults Services,Adult Social Care,Support with Memory and Cognition - adults (18-64),Generic Care Packages NW Team -PS,Social Care - Direct Payments,15/02/2017,3832123,"2,895.09",D D PAYROLL SERVICES
Adults Services,Adult Social Care,Support with Memory and Cognition - adults (18-64),Generic Care Packages SE Team -PS,Social Care - Direct Payments,15/02/2017,3832126,"3,011.21",DAVID HOWARD LTD CLIENT ACCOUNT
Adults Services,Adult Social Care,Support with Memory and Cognition - adults (18-64),Generic Care Packages NW Team -PS,Social Care - Direct Payments,15/02/2017,3832133,905.90,DAVID HOWARD LTD CLIENT ACCOUNT
Adults Services,Adult Social Care,Support with Memory and Cognition - adults (18-64),Cmht Bethnal Green,Social Care - Direct Payments,15/02/2017,3832134,548.62,PayPacket Ltd
Adults Services,Adult Social Care,Support with Memory and Cognition - adults (18-64),Cmht For Older People,Social Care - Direct Payments,15/02/2017,3832136,"10,022.17",DAVID HOWARD LTD CLIENT ACCOUNT
Adults Services,Adult Social Care,Support with Memory and Cognition - adults (18-64),Generic Care Packages SW Team - PS,Social Care - Direct Payments,15/02/2017,3832138,"3,073.26",D D PAYROLL SERVICES
Adults Services,Adult Social Care,Support with Memory and Cognition - adults (18-64),Cmht For Older People,Social Care - Direct Payments,15/02/2017,3832139,"1,745.92",D D PAYROLL SERVICES
Adults Services,Adult Social Care,Support with Memory and Cognition - adults (18-64),Generic Care Packages NW Team -PS,Social Care - Direct Payments,15/02/2017,3832140,543.07,DAVID HOWARD LTD CLIENT ACCOUNT
Adults Services,Adult Social Care,Support with Memory and Cognition - adults (18-64),CLDS Longer Term Support Teams,Social Care - Direct Payments,15/02/2017,3832141,"8,391.00",D D PAYROLL SERVICES
Adults Services,Adult Social Care,Support with Memory and Cognition - adults (18-64),CLDS Longer Term Support Teams,Social Care - Direct Payments,15/02/2017,3832142,"4,407.58",D D PAYROLL SERVICES
Adults Services,Adult Social Care,Support with Memory and Cognition - adults (18-64),Generic Care Packages NW Team -PS,Social Care - Direct Payments,15/02/2017,3832145,508.63,DAVID HOWARD LTD CLIENT ACCOUNT
Adults Services,Adult Social Care,Support with Memory and Cognition - adults (18-64),Generic Care Packages SE Team -PS,Social Care - Direct Payments,15/02/2017,3832146,816.31,DAVID HOWARD LTD CLIENT ACCOUNT
Adults Services,Adult Social Care,Support with Memory and Cognition - adults (18-64),Generic Care Packages NW Team -PS,Social Care - Direct Payments,15/02/2017,3832147,649.45,D D PAYROLL SERVICES
Adults Services,Adult Social Care,Support with Memory and Cognition - adults (18-64),CLDS Longer Term Support Teams,Social Care - Direct Payments,15/02/2017,3832149,"3,089.64",DAVID HOWARD LTD CLIENT ACCOUNT
Adults Services,Adult Social Care,Support with Memory and Cognition - adults (18-64),CLDS Longer Term Support Teams,Social Care - Direct Payments,15/02/2017,3832150,797.14,DAVID HOWARD LTD CLIENT ACCOUNT
Adults Services,Adult Social Care,Support with Memory and Cognition - adults (18-64),Generic Care Packages SW Team - PS,Social Care - Direct Payments,15/02/2017,3832151,"1,540.13",DAVID HOWARD LTD CLIENT ACCOUNT
Adults Services,Adult Social Care,Support with Memory and Cognition - adults (18-64),Generic Care Packages SE Team -PS,Social Care - Direct Payments,15/02/2017,3832154,650.25,DAVID HOWARD LTD CLIENT ACCOUNT
Adults Services,Adult Social Care,Support with Memory and Cognition - adults (18-64),Cmht Stepney / Wapping,Social Care - Direct Payments,15/02/2017,3832155,646.61,DAVID HOWARD LTD CLIENT ACCOUNT
Adults Services,Adult Social Care,Support with Memory and Cognition - adults (18-64),CLDS Longer Term Support Teams,Social Care - Direct Payments,15/02/2017,3832156,737.05,DAVID HOWARD LTD CLIENT ACCOUNT
Adults Services,Adult Social Care,Support with Memory and Cognition - adults (18-64),Generic Care Packages NE Team -PS,Social Care - Direct Payments,15/02/2017,3832160,510.75,DAVID HOWARD LTD CLIENT ACCOUNT
Adults Services,Adult Social Care,Support with Memory and Cognition - adults (18-64),Generic Care Packages NE Team -PS,Social Care - Direct Payments,15/02/2017,3832165,"1,140.62",DAVID HOWARD LTD CLIENT ACCOUNT
Adults Services,Adult Social Care,Support with Memory and Cognition - adults (18-64),Generic Care Packages NE Team -PS,Social Care - Direct Payments,15/02/2017,3832166,"1,002.31",DAVID HOWARD LTD CLIENT ACCOUNT
Adults Services,Adult Social Care,Support with Memory and Cognition - adults (18-64),CLDS Longer Term Support Teams,Social Care - Direct Payments,15/02/2017,3832167,"12,108.99",D D PAYROLL SERVICES
Adults Services,Adult Social Care,Support with Memory and Cognition - adults (18-64),Generic Care Packages NE Team -PS,Social Care - Direct Payments,15/02/2017,3832169,"1,189.52",DAVID HOWARD LTD CLIENT ACCOUNT
Adults Services,Adult Social Care,Support with Memory and Cognition - adults (18-64),Generic Care Packages SW Team - PS,Social Care - Direct Payments,15/02/2017,3832170,976.32,DAVID HOWARD LTD CLIENT ACCOUNT
Adults Services,Adult Social Care,Support with Memory and Cognition - adults (18-64),Generic Care Packages NW Team -PS,Social Care - Direct Payments,15/02/2017,3832171,"1,168.93",DAVID HOWARD LTD CLIENT ACCOUNT
Adults Services,Adult Social Care,Support with Memory and Cognition - adults (18-64),Generic Care Packages SW Team - PS,Social Care - Direct Payments,15/02/2017,3832175,947.05,DAVID HOWARD LTD CLIENT ACCOUNT
Adults Services,Adult Social Care,Support with Memory and Cognition - adults (18-64),Generic Care Packages SW Team - PS,Social Care - Direct Payments,15/02/2017,3832176,621.94,D D PAYROLL SERVICES
Adults Services,Adult Social Care,Support with Memory and Cognition - adults (18-64),Generic Care Packages NE Team -PS,Social Care - Direct Payments,15/02/2017,3832177,519.74,DAVID HOWARD LTD CLIENT ACCOUNT
Adults Services,Adult Social Care,Support with Memory and Cognition - adults (18-64),CLDS Longer Term Support Teams,Social Care - Direct Payments,15/02/2017,3832178,539.71,D D PAYROLL SERVICES
Adults Services,Adult Social Care,Support with Memory and Cognition - adults (18-64),Generic Care Packages SW Team - PS,Social Care - Direct Payments,15/02/2017,3832179,794.71,D D PAYROLL SERVICES
Adults Services,Adult Social Care,Support with Memory and Cognition - adults (18-64),Generic Care Packages SW Team - PS,Social Care - Direct Payments,15/02/2017,3832180,728.14,D D PAYROLL SERVICES
Adults Services,Adult Social Care,Support with Memory and Cognition - adults (18-64),CLDS Longer Term Support Teams,Social Care - Direct Payments,15/02/2017,3832181,608.71,DAVID HOWARD LTD CLIENT ACCOUNT
Adults Services,Adult Social Care,Support with Memory and Cognition - adults (18-64),CLDS Longer Term Support Teams,Social Care - Direct Payments,15/02/2017,3832182,642.76,DAVID HOWARD LTD CLIENT ACCOUNT
Adults Services,Adult Social Care,Support with Memory and Cognition - adults (18-64),"Generic Care Packages NW Team-MH						",Social Care - Direct Payments,15/02/2017,3832184,"1,405.59",D D PAYROLL SERVICES
Adults Services,Adult Social Care,Support with Memory and Cognition - adults (18-64),Generic Care Packages NE Team -PS,Social Care - Direct Payments,15/02/2017,3832186,"1,426.05",D D PAYROLL SERVICES
Adults Services,Adult Social Care,Support with Memory and Cognition - adults (18-64),Cmht For Older People,Social Care - Direct Payments,15/02/2017,3832187,"2,947.25",DAVID HOWARD LTD CLIENT ACCOUNT
Adults Services,Adult Social Care,Support with Memory and Cognition - adults (18-64),Generic Care Packages NW Team -PS,Social Care - Direct Payments,15/02/2017,3832189,"1,084.12",DAVID HOWARD LTD CLIENT ACCOUNT
Adults Services,Adult Social Care,Support with Memory and Cognition - adults (18-64),Generic Care Packages SW Team - PS,Social Care - Direct Payments,15/02/2017,3832194,"1,384.23",DAVID HOWARD LTD CLIENT ACCOUNT
Adults Services,Adult Social Care,Support with Memory and Cognition - adults (18-64),Generic Care Packages SW Team - PS,Social Care - Direct Payments,15/02/2017,3832196,"6,994.40",DAVID HOWARD LTD CLIENT ACCOUNT
Adults Services,Adult Social Care,Support with Memory and Cognition - adults (18-64),Generic Care Packages SW Team - PS,Social Care - Direct Payments,15/02/2017,3832198,921.09,DAVID HOWARD LTD CLIENT ACCOUNT
Adults Services,Adult Social Care,Support with Memory and Cognition - adults (18-64),CLDS Longer Term Support Teams,Social Care - Direct Payments,15/02/2017,3832199,"10,254.49",DAVID HOWARD LTD CLIENT ACCOUNT
Adults Services,Adult Social Care,Support with Memory and Cognition - adults (18-64),Generic Care Packages SW Team - PS,Social Care - Direct Payments,15/02/2017,3832201,507.11,D D PAYROLL SERVICES
Adults Services,Adult Social Care,Support with Memory and Cognition - adults (18-64),Generic Care Packages SE Team -PS,Social Care - Direct Payments,15/02/2017,3832203,"11,073.02",DAVID HOWARD LTD CLIENT ACCOUNT
Adults Services,Adult Social Care,Support with Memory and Cognition - adults (18-64),Generic Care Packages SE Team -PS,Social Care - Direct Payments,15/02/2017,3832204,858.52,DAVID HOWARD LTD CLIENT ACCOUNT
Adults Services,Adult Social Care,Support with Memory and Cognition - adults (18-64),Generic Care Packages SW Team - PS,Social Care - Direct Payments,15/02/2017,3832205,604.11,D D PAYROLL SERVICES
Adults Services,Adult Social Care,Support with Memory and Cognition - adults (18-64),Generic Care Packages NE Team -PS,Social Care - Direct Payments,15/02/2017,3832208,659.91,DAVID HOWARD LTD CLIENT ACCOUNT
Adults Services,Adult Social Care,Support with Memory and Cognition - adults (18-64),Generic Care Packages SW Team - PS,Social Care - Direct Payments,15/02/2017,3832210,"1,315.15",D D PAYROLL SERVICES
Adults Services,Adult Social Care,Support with Memory and Cognition - adults (18-64),Generic Care Packages NW Team -PS,Social Care - Direct Payments,15/02/2017,3832213,628.01,DAVID HOWARD LTD CLIENT ACCOUNT
Adults Services,Adult Social Care,Support with Memory and Cognition - adults (18-64),Generic Care Packages SE Team -PS,Social Care - Direct Payments,15/02/2017,3832214,"1,005.95",DAVID HOWARD LTD CLIENT ACCOUNT
Adults Services,Adult Social Care,Support with Memory and Cognition - adults (18-64),Generic Care Packages SW Team - PS,Social Care - Direct Payments,15/02/2017,3832217,"1,012.82",DAVID HOWARD LTD CLIENT ACCOUNT
Adults Services,Adult Social Care,Support with Memory and Cognition - adults (18-64),CLDS Longer Term Support Teams,Social Care - Direct Payments,15/02/2017,3832218,576.86,D D PAYROLL SERVICES
Adults Services,Adult Social Care,Support with Memory and Cognition - adults (18-64),Generic Care Packages SW Team - PS,Social Care - Direct Payments,15/02/2017,3832219,523.72,D D PAYROLL SERVICES
Adults Services,Adult Social Care,Support with Memory and Cognition - adults (18-64),Generic Care Packages NW Team -PS,Social Care - Direct Payments,15/02/2017,3832221,927.70,DAVID HOWARD LTD CLIENT ACCOUNT
Adults Services,Adult Social Care,Support with Memory and Cognition - adults (18-64),Generic Care Packages NW Team -PS,Social Care - Direct Payments,15/02/2017,3832224,849.27,DAVID HOWARD LTD CLIENT ACCOUNT
Adults Services,Adult Social Care,Support with Memory and Cognition - adults (18-64),Generic Care Packages SE Team -PS,Social Care - Direct Payments,15/02/2017,3832227,"2,880.26",D D PAYROLL SERVICES
Adults Services,Adult Social Care,Support with Memory and Cognition - adults (18-64),Generic Care Packages NE Team -PS,Social Care - Direct Payments,15/02/2017,3832228,814.91,D D PAYROLL SERVICES
Adults Services,Adult Social Care,Support with Memory and Cognition - adults (18-64),Generic Care Packages NE Team -PS,Social Care - Direct Payments,15/02/2017,3832229,"1,158.42",DAVID HOWARD LTD CLIENT ACCOUNT
Adults Services,Adult Social Care,Support with Memory and Cognition - adults (18-64),Generic Care Packages NW Team -PS,Social Care - Direct Payments,15/02/2017,3832232,"1,023.00",DAVID HOWARD LTD CLIENT ACCOUNT
Adults Services,Adult Social Care,Support with Memory and Cognition - adults (18-64),Generic Care Packages SE Team -PS,Social Care - Direct Payments,15/02/2017,3832234,923.41,D D PAYROLL SERVICES
Adults Services,Adult Social Care,Support with Memory and Cognition - adults (18-64),Generic Care Packages SW Team - PS,Social Care - Direct Payments,15/02/2017,3832235,"1,405.10",D D PAYROLL SERVICES
Adults Services,Adult Social Care,Support with Memory and Cognition - adults (18-64),CLDS Longer Term Support Teams,Social Care - Direct Payments,15/02/2017,3832236,"3,566.32",D D PAYROLL SERVICES
Adults Services,Adult Social Care,Support with Memory and Cognition - adults (18-64),Generic Care Packages NW Team -PS,Social Care - Direct Payments,15/02/2017,3832237,"1,184.77",D D PAYROLL SERVICES
Adults Services,Adult Social Care,Support with Memory and Cognition - adults (18-64),Generic Care Packages SE Team -PS,Social Care - Direct Payments,15/02/2017,3832238,635.58,DAVID HOWARD LTD CLIENT ACCOUNT
Adults Services,Adult Social Care,Support with Memory and Cognition - adults (18-64),Generic Care Packages NW Team -PS,Social Care - Direct Payments,15/02/2017,3832240,"1,045.19",D D PAYROLL SERVICES
Adults Services,Adult Social Care,Support with Memory and Cognition - adults (18-64),Generic Care Packages SE Team -PS,Social Care - Direct Payments,15/02/2017,3832241,552.03,DAVID HOWARD LTD CLIENT ACCOUNT
Adults Services,Adult Social Care,Support with Memory and Cognition - adults (18-64),Generic Care Packages SW Team - PS,Social Care - Direct Payments,15/02/2017,3832242,"2,341.82",D D PAYROLL SERVICES
Adults Services,Adult Social Care,Support with Memory and Cognition - adults (18-64),Cmht Iod / Poplar South,Social Care - Direct Payments,15/02/2017,3832244,"1,365.11",D D PAYROLL SERVICES
Adults Services,Adult Social Care,Support with Memory and Cognition - adults (18-64),CLDS Longer Term Support Teams,Social Care - Direct Payments,15/02/2017,3832246,"2,067.00",DAVID HOWARD LTD CLIENT ACCOUNT
Adults Services,Adult Social Care,Support with Memory and Cognition - adults (18-64),Generic Care Packages NW Team -PS,Social Care - Direct Payments,15/02/2017,3832247,866.89,DAVID HOWARD LTD CLIENT ACCOUNT
Adults Services,Adult Social Care,Support with Memory and Cognition - adults (18-64),Generic Care Packages SE Team -PS,Social Care - Direct Payments,15/02/2017,3832248,"13,157.59",DAVID HOWARD LTD CLIENT ACCOUNT
Adults Services,Adult Social Care,Support with Memory and Cognition - adults (18-64),Generic Care Packages NE Team -PS,Social Care - Direct Payments,15/02/2017,3832254,"1,576.09",D D PAYROLL SERVICES
Adults Services,Adult Social Care,Support with Memory and Cognition - adults (18-64),CLDS Longer Term Support Teams,Social Care - Direct Payments,15/02/2017,3832255,"9,541.18",DAVID HOWARD LTD CLIENT ACCOUNT
Adults Services,Adult Social Care,Support with Memory and Cognition - adults (18-64),Cmht Iod / Poplar South,Social Care - Direct Payments,15/02/2017,3832256,944.49,DAVID HOWARD LTD CLIENT ACCOUNT
Adults Services,Adult Social Care,Support with Memory and Cognition - adults (18-64),Generic Care Packages NE Team -PS,Social Care - Direct Payments,15/02/2017,3832257,"1,005.28",DAVID HOWARD LTD CLIENT ACCOUNT
Adults Services,Adult Social Care,Support with Memory and Cognition - adults (18-64),Generic Care Packages NW Team -PS,Social Care - Direct Payments,15/02/2017,3832262,654.67,DAVID HOWARD LTD CLIENT ACCOUNT
Adults Services,Adult Social Care,Support with Memory and Cognition - adults (18-64),Generic Care Packages SE Team -PS,Social Care - Direct Payments,15/02/2017,3832266,509.64,DAVID HOWARD LTD CLIENT ACCOUNT
Adults Services,Adult Social Care,Support with Memory and Cognition - adults (18-64),Generic Care Packages NE Team -PS,Social Care - Direct Payments,15/02/2017,3832269,"1,092.88",D D PAYROLL SERVICES
Adults Services,Adult Social Care,Support with Memory and Cognition - adults (18-64),Generic Care Packages SE Team -SI,Social Care - Direct Payments,15/02/2017,3832272,852.63,D D PAYROLL SERVICES
Adults Services,Adult Social Care,Support with Memory and Cognition - adults (18-64),Generic Care Packages SE Team -PS,Social Care - Direct Payments,15/02/2017,3832273,653.17,DAVID HOWARD LTD CLIENT ACCOUNT
Adults Services,Adult Social Care,Support with Memory and Cognition - adults (18-64),Generic Care Packages SE Team -PS,Social Care - Direct Payments,15/02/2017,3832275,521.16,DAVID HOWARD LTD CLIENT ACCOUNT
Adults Services,Adult Social Care,Support with Memory and Cognition - adults (18-64),Generic Care Packages SE Team -PS,Social Care - Direct Payments,15/02/2017,3832276,"1,586.66",DAVID HOWARD LTD CLIENT ACCOUNT
Adults Services,Adult Social Care,Support with Memory and Cognition - adults (18-64),Generic Care Packages NE Team -PS,Social Care - Direct Payments,15/02/2017,3832277,"1,409.39",D D PAYROLL SERVICES
Adults Services,Adult Social Care,Support with Memory and Cognition - adults (18-64),"Generic Care Packages NW Team-MH						",Social Care - Direct Payments,15/02/2017,3832278,884.61,DAVID HOWARD LTD CLIENT ACCOUNT
Adults Services,Adult Social Care,Support with Memory and Cognition - adults (18-64),CLDS Longer Term Support Teams,Social Care - Direct Payments,15/02/2017,3832282,"5,696.38",D D PAYROLL SERVICES
Adults Services,Adult Social Care,Support with Memory and Cognition - adults (18-64),Generic Care Packages SW Team - PS,Social Care - Direct Payments,15/02/2017,3832283,"7,827.27",DAVID HOWARD LTD CLIENT ACCOUNT
Adults Services,Adult Social Care,Support with Memory and Cognition - adults (18-64),Generic Care Packages SW Team - PS,Social Care - Direct Payments,15/02/2017,3832286,737.31,DAVID HOWARD LTD CLIENT ACCOUNT
Adults Services,Adult Social Care,Support with Memory and Cognition - adults (18-64),CLDS Longer Term Support Teams,Social Care - Direct Payments,15/02/2017,3832288,"7,130.13",DAVID HOWARD LTD CLIENT ACCOUNT
Adults Services,Adult Social Care,Support with Memory and Cognition - adults (18-64),CLDS Transition,Social Care - Direct Payments,15/02/2017,3832289,"1,516.44",D D PAYROLL SERVICES
Adults Services,Adult Social Care,Support with Memory and Cognition - adults (18-64),Generic Care Packages NW Team -PS,Social Care - Direct Payments,15/02/2017,3832290,930.93,DAVID HOWARD LTD CLIENT ACCOUNT
Adults Services,Adult Social Care,Support with Memory and Cognition - adults (18-64),Generic Care Packages SW Team - PS,Social Care - Direct Payments,15/02/2017,3832292,"1,453.64",D D PAYROLL SERVICES
Adults Services,Adult Social Care,Support with Memory and Cognition - adults (18-64),Generic Care Packages NE Team -PS,Social Care - Direct Payments,15/02/2017,3832293,641.62,DAVID HOWARD LTD CLIENT ACCOUNT
Adults Services,Adult Social Care,Support with Memory and Cognition - adults (18-64),Generic Care Packages NW Team -PS,Social Care - Direct Payments,15/02/2017,3832294,"1,018.97",DAVID HOWARD LTD CLIENT ACCOUNT
Adults Services,Adult Social Care,Support with Memory and Cognition - adults (18-64),Generic Care Packages SE Team -PS,Social Care - Direct Payments,15/02/2017,3832295,842.22,DAVID HOWARD LTD CLIENT ACCOUNT
Adults Services,Adult Social Care,Support with Memory and Cognition - adults (18-64),Generic Care Packages SE Team -PS,Social Care - Direct Payments,15/02/2017,3832296,531.88,D D PAYROLL SERVICES
Adults Services,Adult Social Care,Support with Memory and Cognition - adults (18-64),Generic Care Packages SW Team - PS,Social Care - Direct Payments,15/02/2017,3832299,"1,429.18",DAVID HOWARD LTD CLIENT ACCOUNT
Adults Services,Adult Social Care,Support with Memory and Cognition - adults (18-64),Generic Care Packages SW Team - PS,Social Care - Direct Payments,15/02/2017,3832301,726.95,DAVID HOWARD LTD CLIENT ACCOUNT
Adults Services,Adult Social Care,Support with Memory and Cognition - adults (18-64),CLDS Longer Term Support Teams,Social Care - Direct Payments,15/02/2017,3832302,859.58,DAVID HOWARD LTD CLIENT ACCOUNT
Adults Services,Adult Social Care,Support with Memory and Cognition - adults (18-64),CLDS Transition,Social Care - Direct Payments,15/02/2017,3832303,"1,510.86",DAVID HOWARD LTD CLIENT ACCOUNT
Adults Services,Adult Social Care,Support with Memory and Cognition - adults (18-64),Generic Care Packages SE Team -PS,Social Care - Direct Payments,15/02/2017,3832304,"6,854.15",DAVID HOWARD LTD CLIENT ACCOUNT
Adults Services,Adult Social Care,Support with Memory and Cognition - adults (18-64),Generic Care Packages NW Team -PS,Social Care - Direct Payments,15/02/2017,3832305,"2,960.99",DAVID HOWARD LTD CLIENT ACCOUNT
Adults Services,Adult Social Care,Support with Memory and Cognition - adults (18-64),Generic Care Packages SW Team - PS,Social Care - Direct Payments,15/02/2017,3832307,885.10,DAVID HOWARD LTD CLIENT ACCOUNT
Adults Services,Adult Social Care,Support with Memory and Cognition - adults (18-64),Generic Care Packages NE Team -PS,Social Care - Direct Payments,15/02/2017,3832308,"2,190.95",DAVID HOWARD LTD CLIENT ACCOUNT
Adults Services,Adult Social Care,Support with Memory and Cognition - adults (18-64),Generic Care Packages NE Team -PS,Social Care - Direct Payments,15/02/2017,3832310,948.78,DAVID HOWARD LTD CLIENT ACCOUNT
Adults Services,Adult Social Care,Support with Memory and Cognition - adults (18-64),Generic Care Packages NE Team-SMC,Social Care - Direct Payments,15/02/2017,3832313,731.42,DAVID HOWARD LTD CLIENT ACCOUNT
Adults Services,Adult Social Care,Support with Memory and Cognition - adults (18-64),Generic Care Packages SE Team -PS,Social Care - Direct Payments,15/02/2017,3832314,803.52,DAVID HOWARD LTD CLIENT ACCOUNT
Adults Services,Adult Social Care,Support with Memory and Cognition - adults (18-64),Generic Care Packages NW Team -PS,Social Care - Direct Payments,15/02/2017,3832315,919.10,D D PAYROLL SERVICES
Adults Services,Adult Social Care,Support with Memory and Cognition - adults (18-64),CLDS Longer Term Support Teams,Social Care - Direct Payments,15/02/2017,3832316,998.69,D D PAYROLL SERVICES
Adults Services,Adult Social Care,Support with Memory and Cognition - adults (18-64),Generic Care Packages SW Team - PS,Social Care - Direct Payments,15/02/2017,3832318,"2,393.56",DAVID HOWARD LTD CLIENT ACCOUNT
Adults Services,Adult Social Care,Support with Memory and Cognition - adults (18-64),CLDS Transition,Social Care - Direct Payments,15/02/2017,3832319,"1,377.02",D D PAYROLL SERVICES
Adults Services,Adult Social Care,Support with Memory and Cognition - adults (18-64),Generic Care Packages SE Team -PS,Social Care - Direct Payments,15/02/2017,3832320,"1,439.28",D D PAYROLL SERVICES
Adults Services,Adult Social Care,Support with Memory and Cognition - adults (18-64),Generic Care Packages SW Team - PS,Social Care - Direct Payments,15/02/2017,3832322,929.77,DAVID HOWARD LTD CLIENT ACCOUNT
Adults Services,Adult Social Care,Support with Memory and Cognition - adults (18-64),CLDS Longer Term Support Teams,Social Care - Direct Payments,15/02/2017,3832324,701.92,D D PAYROLL SERVICES
Adults Services,Adult Social Care,Support with Memory and Cognition - adults (18-64),CLDS Transition,Social Care - Direct Payments,15/02/2017,3832326,"1,001.04",D D PAYROLL SERVICES
Adults Services,Adult Social Care,Support with Memory and Cognition - adults (18-64),CLDS Transition,Social Care - Direct Payments,15/02/2017,3832328,"1,025.35",D D PAYROLL SERVICES
Adults Services,Adult Social Care,Support with Memory and Cognition - adults (18-64),CLDS Transition,Social Care - Direct Payments,15/02/2017,3832329,"1,024.68",D D PAYROLL SERVICES
Adults Services,Adult Social Care,Support with Memory and Cognition - adults (18-64),CLDS Transition,Social Care - Direct Payments,15/02/2017,3832331,"1,821.30",D D PAYROLL SERVICES
Adults Services,Adult Social Care,Support with Memory and Cognition - adults (18-64),Generic Care Packages SE Team -PS,Social Care - Direct Payments,15/02/2017,3832336,814.91,D D PAYROLL SERVICES
Adults Services,Adult Social Care,Support with Memory and Cognition - adults (18-64),Generic Care Packages SE Team -PS,Social Care - Direct Payments,15/02/2017,3832337,822.30,D D PAYROLL SERVICES
Adults Services,Adult Social Care,Support with Memory and Cognition - adults (18-64),Generic Care Packages SW Team - PS,Social Care - Direct Payments,15/02/2017,3832338,597.76,DAVID HOWARD LTD CLIENT ACCOUNT
Adults Services,Adult Social Care,Support with Memory and Cognition - adults (18-64),Cmht For Older People,Social Care - Direct Payments,15/02/2017,3832339,"2,724.72",DAVID HOWARD LTD CLIENT ACCOUNT
Adults Services,Adult Social Care,Support with Memory and Cognition - adults (18-64),Generic Care Packages NE Team -PS,Social Care - Direct Payments,15/02/2017,3832340,871.10,DAVID HOWARD LTD CLIENT ACCOUNT
Adults Services,Adult Social Care,Support with Memory and Cognition - adults (18-64),Generic Care Packages SE Team -PS,Social Care - Direct Payments,15/02/2017,3832341,"1,085.44",DAVID HOWARD LTD CLIENT ACCOUNT
Adults Services,Adult Social Care,Support with Memory and Cognition - adults (18-64),Generic Care Packages SE Team -PS,Social Care - Direct Payments,15/02/2017,3832343,863.58,DAVID HOWARD LTD CLIENT ACCOUNT
Adults Services,Adult Social Care,Support with Memory and Cognition - adults (18-64),Generic Care Packages NW Team -PS,Social Care - Direct Payments,15/02/2017,3832363,694.01,Soma Healthcare Ltd
Adults Services,Adult Social Care,Support with Memory and Cognition - adults (18-64),Generic Care Packages NE Team -PS,Social Care - Direct Payments,15/02/2017,3832364,"1,287.25",DAVID HOWARD LTD CLIENT ACCOUNT
Adults Services,Adult Social Care,Support with Memory and Cognition - adults (18-64),Generic Care Packages NW Team -PS,Social Care - Direct Payments,15/02/2017,3832377,"6,603.00",D D PAYROLL SERVICES
Adults Services,Adult Social Care,Support with Memory and Cognition - adults (18-64),Generic Care Packages SW Team - PS,Social Care - Direct Payments,15/02/2017,3832382,"1,127.96",DAVID HOWARD LTD CLIENT ACCOUNT
Adults Services,Adult Social Care,Support with Memory and Cognition - adults (18-64),Generic Care Packages NW Team -PS,Social Care - Direct Payments,15/02/2017,3832387,"1,736.00",DAVID HOWARD LTD CLIENT ACCOUNT
Adults Services,Adult Social Care,Support with Memory and Cognition - adults (18-64),Generic Care Packages SE Team -PS,Social Care - Direct Payments,15/02/2017,3832388,"1,423.21",DAVID HOWARD LTD CLIENT ACCOUNT
Adults Services,Adult Social Care,Support with Memory and Cognition - adults (18-64),Generic Care Packages SW Team -SI,Social Care - Direct Payments,15/02/2017,3832392,"2,149.49",DAVID HOWARD LTD CLIENT ACCOUNT
Adults Services,Adult Social Care,Support with Memory and Cognition - adults (18-64),Generic Care Packages SW Team - PS,Social Care - Direct Payments,15/02/2017,3832399,527.31,DAVID HOWARD LTD CLIENT ACCOUNT
Adults Services,Adult Social Care,Support with Memory and Cognition - adults (18-64),Generic Care Packages SE Team -SP,Social Care - Direct Payments,15/02/2017,3832401,709.64,DAVID HOWARD LTD CLIENT ACCOUNT
Adults Services,Adult Social Care,Support with Memory and Cognition - adults (18-64),Generic Care Packages SE Team -PS,Social Care - Direct Payments,15/02/2017,3832403,535.76,D D PAYROLL SERVICES
Adults Services,Adult Social Care,Support with Memory and Cognition - adults (18-64),Generic Care Packages SE Team -PS,Social Care - Direct Payments,15/02/2017,3832405,584.17,DAVID HOWARD LTD CLIENT ACCOUNT
Adults Services,Adult Social Care,Support with Memory and Cognition - adults (18-64),Generic Care Packages NW Team -PS,Social Care - Direct Payments,15/02/2017,3832409,"2,806.82",D D PAYROLL SERVICES
Adults Services,Adult Social Care,Support with Memory and Cognition - adults (18-64),"Generic Care Packages SW Team-MH									",Social Care - Direct Payments,15/02/2017,3832413,750.59,DAVID HOWARD LTD CLIENT ACCOUNT
Adults Services,Adult Social Care,Support with Memory and Cognition - adults (18-64),Generic Care Packages SE Team-SMC,Social Care - Direct Payments,15/02/2017,3832420,"1,211.48",DAVID HOWARD LTD CLIENT ACCOUNT
Adults Services,Adult Social Care,Support with Memory and Cognition - adults (18-64),Generic Care Packages SE Team -PS,Social Care - Direct Payments,15/02/2017,3832421,808.40,DAVID HOWARD LTD CLIENT ACCOUNT
Adults Services,Adult Social Care,Support with Memory and Cognition - adults (18-64),Cmht Iod / Poplar South,Social Care - Direct Payments,15/02/2017,3832422,663.58,D D PAYROLL SERVICES
Adults Services,Adult Social Care,Support with Memory and Cognition - adults (18-64),Generic Care Packages SW Team - PS,Social Care - Direct Payments,15/02/2017,3832424,542.50,DAVID HOWARD LTD CLIENT ACCOUNT
Adults Services,Adult Social Care,Support with Memory and Cognition - adults (18-64),Generic Care Packages SE Team -PS,Social Care - Direct Payments,15/02/2017,3832425,851.11,DAVID HOWARD LTD CLIENT ACCOUNT
Adults Services,Adult Social Care,Support with Memory and Cognition - adults (18-64),Generic Care Packages SE Team -PS,Social Care - Direct Payments,15/02/2017,3832435,642.37,DAVID HOWARD LTD CLIENT ACCOUNT
Adults Services,Adult Social Care,Support with Memory and Cognition - adults (18-64),Generic Care Packages SE Team -PS,Social Care - Direct Payments,15/02/2017,3832436,"1,183.27",DAVID HOWARD LTD CLIENT ACCOUNT
Adults Services,Adult Social Care,Support with Memory and Cognition - adults (18-64),Generic Care Packages SE Team -PS,Social Care - Direct Payments,15/02/2017,3832438,755.16,D D PAYROLL SERVICES
Adults Services,Adult Social Care,Support with Memory and Cognition - adults (18-64),Generic Care Packages NW Team -PS,Social Care - Direct Payments,15/02/2017,3832439,580.86,DAVID HOWARD LTD CLIENT ACCOUNT
Adults Services,Adult Social Care,Support with Memory and Cognition - adults (18-64),Generic Care Packages NE Team -PS,Social Care - Direct Payments,15/02/2017,3832440,"1,275.65",D D PAYROLL SERVICES
Adults Services,Adult Social Care,Support with Memory and Cognition - adults (18-64),Generic Care Packages SE Team -PS,Social Care - Direct Payments,15/02/2017,3832443,517.08,D D PAYROLL SERVICES
Adults Services,Adult Social Care,Support with Memory and Cognition - adults (18-64),Cmht For Older People,Social Care - Direct Payments,15/02/2017,3832444,"1,830.55",DAVID HOWARD LTD CLIENT ACCOUNT
Adults Services,Adult Social Care,Support with Memory and Cognition - adults (18-64),Generic Care Packages SE Team -PS,Social Care - Direct Payments,15/02/2017,3832448,"1,770.72",DAVID HOWARD LTD CLIENT ACCOUNT
Adults Services,Adult Social Care,Support with Memory and Cognition - adults (18-64),Generic Care Packages NE Team -PS,Social Care - Direct Payments,15/02/2017,3832455,813.08,D D PAYROLL SERVICES
Adults Services,Adult Social Care,Support with Memory and Cognition - adults (18-64),Generic Care Packages SE Team -PS,Social Care - Direct Payments,15/02/2017,3832457,"1,060.77",DAVID HOWARD LTD CLIENT ACCOUNT
Adults Services,Adult Social Care,Support with Memory and Cognition - adults (18-64),CLDS Longer Term Support Teams,Social Care - Direct Payments,15/02/2017,3832459,707.19,DAVID HOWARD LTD CLIENT ACCOUNT
Adults Services,Adult Social Care,Support with Memory and Cognition - adults (18-64),Generic Care Packages NW Team -PS,Social Care - Direct Payments,15/02/2017,3832460,"6,691.35",D D PAYROLL SERVICES
Adults Services,Adult Social Care,Support with Memory and Cognition - adults (18-64),Generic Care Packages SE Team -PS,Social Care - Direct Payments,15/02/2017,3832461,896.65,DAVID HOWARD LTD CLIENT ACCOUNT
Adults Services,Adult Social Care,Support with Memory and Cognition - adults (18-64),Generic Care Packages SE Team -PS,Social Care - Direct Payments,15/02/2017,3832463,922.92,DAVID HOWARD LTD CLIENT ACCOUNT
Adults Services,Adult Social Care,Support with Memory and Cognition - adults (18-64),Generic Care Packages SW Team - PS,Social Care - Direct Payments,15/02/2017,3832464,599.62,DAVID HOWARD LTD CLIENT ACCOUNT
Adults Services,Adult Social Care,Support with Memory and Cognition - adults (18-64),Generic Care Packages SE Team -PS,Social Care - Direct Payments,15/02/2017,3832468,697.99,D D PAYROLL SERVICES
Adults Services,Adult Social Care,Support with Memory and Cognition - adults (18-64),Generic Care Packages NW Team -PS,Social Care - Direct Payments,15/02/2017,3832471,659.06,DAVID HOWARD LTD CLIENT ACCOUNT
Adults Services,Adult Social Care,Support with Memory and Cognition - adults (18-64),Generic Care Packages NE Team -PS,Social Care - Direct Payments,15/02/2017,3832474,591.56,DAVID HOWARD LTD CLIENT ACCOUNT
Adults Services,Adult Social Care,Support with Memory and Cognition - adults (18-64),CLDS Longer Term Support Teams,Social Care - Direct Payments,15/02/2017,3832477,"1,127.47",DAVID HOWARD LTD CLIENT ACCOUNT
Adults Services,Adult Social Care,Support with Memory and Cognition - adults (18-64),Generic Care Packages SE Team -PS,Social Care - Direct Payments,15/02/2017,3832482,790.63,DAVID HOWARD LTD CLIENT ACCOUNT
Adults Services,Adult Social Care,Support with Memory and Cognition - adults (18-64),Generic Care Packages NE Team -PS,Social Care - Direct Payments,15/02/2017,3832483,542.89,DAVID HOWARD LTD CLIENT ACCOUNT
Adults Services,Adult Social Care,Support with Memory and Cognition - adults (18-64),Generic Care Packages NW Team -PS,Social Care - Direct Payments,15/02/2017,3832486,663.40,DAVID HOWARD LTD CLIENT ACCOUNT
Adults Services,Adult Social Care,Support with Memory and Cognition - adults (18-64),Generic Care Packages SE Team -PS,Social Care - Direct Payments,15/02/2017,3832487,"1,154.31",DAVID HOWARD LTD CLIENT ACCOUNT
Adults Services,Adult Social Care,Support with Memory and Cognition - adults (18-64),Generic Care Packages SE Team -PS,Social Care - Direct Payments,15/02/2017,3832488,"1,007.14",DAVID HOWARD LTD CLIENT ACCOUNT
Adults Services,Adult Social Care,Support with Memory and Cognition - adults (18-64),Generic Care Packages SW Team - PS,Social Care - Direct Payments,15/02/2017,3832494,609.20,DAVID HOWARD LTD CLIENT ACCOUNT
Adults Services,Adult Social Care,Support with Memory and Cognition - adults (18-64),Generic Care Packages SW Team - PS,Social Care - Direct Payments,15/02/2017,3832496,988.90,DAVID HOWARD LTD CLIENT ACCOUNT
Adults Services,Adult Social Care,Support with Memory and Cognition - adults (18-64),Generic Care Packages NW Team -PS,Social Care - Direct Payments,15/02/2017,3832498,656.58,D D PAYROLL SERVICES
Adults Services,Adult Social Care,Support with Memory and Cognition - adults (18-64),Generic Care Packages NE Team -PS,Social Care - Direct Payments,15/02/2017,3832499,"1,239.43",DAVID HOWARD LTD CLIENT ACCOUNT
Adults Services,Adult Social Care,Support with Memory and Cognition - adults (18-64),CLDS Longer Term Support Teams,Social Care - Direct Payments,15/02/2017,3832500,801.92,DAVID HOWARD LTD CLIENT ACCOUNT
Adults Services,Adult Social Care,Support with Memory and Cognition - adults (18-64),Generic Care Packages SW Team - PS,Social Care - Direct Payments,15/02/2017,3832503,737.31,DAVID HOWARD LTD CLIENT ACCOUNT
Adults Services,Adult Social Care,Support with Memory and Cognition - adults (18-64),Generic Care Packages SE Team -PS,Social Care - Direct Payments,15/02/2017,3832504,863.84,D D PAYROLL SERVICES
Adults Services,Adult Social Care,Support with Memory and Cognition - adults (18-64),Generic Care Packages SE Team -PS,Social Care - Direct Payments,15/02/2017,3832507,"6,550.79",DAVID HOWARD LTD CLIENT ACCOUNT
Adults Services,Adult Social Care,Support with Memory and Cognition - adults (18-64),Generic Care Packages SE Team -PS,Social Care - Direct Payments,15/02/2017,3832509,714.78,DAVID HOWARD LTD CLIENT ACCOUNT
Adults Services,Adult Social Care,Support with Memory and Cognition - adults (18-64),Generic Care Packages SW Team - PS,Social Care - Direct Payments,15/02/2017,3832512,605.20,DAVID HOWARD LTD CLIENT ACCOUNT
Adults Services,Adult Social Care,Support with Memory and Cognition - adults (18-64),Generic Care Packages NW Team -PS,Social Care - Direct Payments,15/02/2017,3832515,810.39,DAVID HOWARD LTD CLIENT ACCOUNT
Adults Services,Adult Social Care,Support with Memory and Cognition - adults (18-64),Generic Care Packages SW Team - PS,Social Care - Direct Payments,15/02/2017,3832538,"1,055.40",St Hilda's East Community Centre
Adults Services,Adult Social Care,Support with Memory and Cognition - adults (18-64),CLDS Longer Term Support Teams,Social Care - Direct Payments,15/02/2017,3832539,"2,314.12",Excelcare (Home Care Division) LTD
Adults Services,Adult Social Care,Support with Memory and Cognition - adults (18-64),CLDS Longer Term Support Teams,Social Care - Residential Care,15/02/2017,3832540,"4,520.80",AUGUSTA CARE LTD
Adults Services,Adult Social Care,Support with Memory and Cognition - adults (18-64),Generic Care Packages SE Team -PS,Social Care - Homecare,15/02/2017,3832541,"1,896.36",FOCUS CARE LINK LTD
Adults Services,Adult Social Care,Support with Memory and Cognition - adults (18-64),Generic Care Packages NE Team -PS,Social Care - Nursing Care,15/02/2017,3832543,"3,200.00",Bennetts Castlle Care Home
Adults Services,Adult Social Care,Support with Memory and Cognition - adults (18-64),Generic Care Packages SE Team -PS,Social Care - Homecare,15/02/2017,3832550,"1,917.18",FOCUS CARE LINK LTD
Adults Services,Adult Social Care,Support with Memory and Cognition - adults (18-64),Generic Care Packages SE Team -PS,Social Care - Home Care (Short Term),15/02/2017,3832563,751.46,FOCUS CARE LINK LTD
Adults Services,Adult Social Care,Support with Memory and Cognition - adults (18-64),Generic Care Packages SE Team -PS,Social Care - Home Care (Short Term),15/02/2017,3832565,"1,320.58",FOCUS CARE LINK LTD
Adults Services,Adult Social Care,Support with Memory and Cognition - adults (18-64),Generic Care Packages SW Team - PS,Social Care - Homecare,15/02/2017,3832568,567.42,FOCUS CARE LINK LTD
Adults Services,Adult Social Care,Support with Memory and Cognition - adults (18-64),Generic Care Packages SW Team - PS,Social Care - Homecare,15/02/2017,3832572,949.56,FOCUS CARE LINK LTD
Adults Services,Adult Social Care,Support with Memory and Cognition - adults (18-64),Generic Care Packages SE Team -PS,Social Care - Homecare,15/02/2017,3832576,"1,621.20",FOCUS CARE LINK LTD
Adults Services,Adult Social Care,Support with Memory and Cognition - adults (18-64),Generic Care Packages NE Team -PS,Social Care - Homecare,15/02/2017,3832579,872.36,FOCUS CARE LINK LTD
Adults Services,Adult Social Care,Support with Memory and Cognition - adults (18-64),Generic Care Packages SE Team -PS,Social Care - Home Care (Short Term),15/02/2017,3832583,"1,134.84",FOCUS CARE LINK LTD
Adults Services,Adult Social Care,Support with Memory and Cognition - adults (18-64),Generic Care Packages SE Team -PS,Social Care - Homecare,15/02/2017,3832584,"1,729.28",FOCUS CARE LINK LTD
Adults Services,Adult Social Care,Support with Memory and Cognition - adults (18-64),Cmht Bow / Poplar North,Social Care - Homecare,15/02/2017,3832585,509.52,FOCUS CARE LINK LTD
Adults Services,Adult Social Care,Support with Memory and Cognition - adults (18-64),Generic Care Packages NW Team -PS,Social Care - Homecare,15/02/2017,3832587,567.42,FOCUS CARE LINK LTD
Adults Services,Adult Social Care,Support with Memory and Cognition - adults (18-64),Generic Care Packages NE Team -PS,Social Care - Home Care (Short Term),15/02/2017,3832588,"1,405.04",FOCUS CARE LINK LTD
Adults Services,Adult Social Care,Support with Memory and Cognition - adults (18-64),Generic Care Packages NW Team -PS,Social Care - Home Care (Short Term),15/02/2017,3832591,"1,076.94",FOCUS CARE LINK LTD
Adults Services,Adult Social Care,Support with Memory and Cognition - adults (18-64),Generic Care Packages SW Team - PS,Social Care - Homecare,15/02/2017,3832593,"1,498.14",FOCUS CARE LINK LTD
Adults Services,Adult Social Care,Support with Memory and Cognition - adults (18-64),Generic Care Packages NE Team -PS,Social Care - Homecare,15/02/2017,3832606,"1,026.76",FOCUS CARE LINK LTD
Adults Services,Adult Social Care,Support with Memory and Cognition - adults (18-64),Generic Care Packages NW Team -PS,Social Care - Homecare,15/02/2017,3832615,548.12,FOCUS CARE LINK LTD
Adults Services,Adult Social Care,Support with Memory and Cognition - adults (18-64),Generic Care Packages NE Team -PS,Social Care - Home Care (Short Term),15/02/2017,3832622,972.72,FOCUS CARE LINK LTD
Adults Services,Adult Social Care,Support with Memory and Cognition - adults (18-64),Generic Care Packages NW Team -PS,Social Care - Home Care (Short Term),15/02/2017,3832630,693.72,FOCUS CARE LINK LTD
Adults Services,Adult Social Care,Support with Memory and Cognition - adults (18-64),Cmht Bow / Poplar North,Social Care - Homecare,15/02/2017,3832634,"1,113.22",FOCUS CARE LINK LTD
Adults Services,Adult Social Care,Support with Memory and Cognition - adults (18-64),Generic Care Packages SW Team - PS,Social Care - Homecare,15/02/2017,3832644,540.40,FOCUS CARE LINK LTD
Adults Services,Adult Social Care,Support with Memory and Cognition - adults (18-64),Generic Care Packages SW Team - PS,Social Care - Homecare,15/02/2017,3832652,"1,071.23",FOCUS CARE LINK LTD
Adults Services,Adult Social Care,Support with Memory and Cognition - adults (18-64),Generic Care Packages SW Team - PS,Social Care - Homecare,15/02/2017,3832657,712.09,FOCUS CARE LINK LTD
Adults Services,Adult Social Care,Support with Memory and Cognition - adults (18-64),Generic Care Packages NE Team -PS,Social Care - Homecare,15/02/2017,3832661,895.52,FOCUS CARE LINK LTD
Adults Services,Adult Social Care,Support with Memory and Cognition - adults (18-64),Generic Care Packages SW Team - PS,Social Care - Homecare,15/02/2017,3832663,548.12,FOCUS CARE LINK LTD
Adults Services,Adult Social Care,Support with Memory and Cognition - adults (18-64),Generic Care Packages NE Team -PS,Social Care - Homecare,15/02/2017,3832665,972.72,FOCUS CARE LINK LTD
Adults Services,Adult Social Care,Support with Memory and Cognition - adults (18-64),CLDS Longer Term Support Teams,Social Care - Day Care,15/02/2017,3832684,"1,144.92",APASENTH
Adults Services,Adult Social Care,Support with Memory and Cognition - adults (18-64),CLDS Longer Term Support Teams,Social Care - Day Care,15/02/2017,3832685,908.00,APASENTH
Adults Services,Adult Social Care,Support with Memory and Cognition - adults (18-64),CLDS Longer Term Support Teams,Social Care - Day Care,15/02/2017,3832686,"1,144.92",APASENTH
Adults Services,Adult Social Care,Support with Memory and Cognition - adults (18-64),CLDS Longer Term Support Teams,Social Care - Day Care,15/02/2017,3832688,"2,539.01",APASENTH
Adults Services,Adult Social Care,Support with Memory and Cognition - adults (18-64),CLDS Longer Term Support Teams,Social Care - Day Care,15/02/2017,3832689,794.50,APASENTH
Adults Services,Adult Social Care,Support with Memory and Cognition - adults (18-64),CLDS Longer Term Support Teams,Social Care - Day Care,15/02/2017,3832690,"1,090.40",APASENTH
Adults Services,Adult Social Care,Support with Memory and Cognition - adults (18-64),CLDS Longer Term Support Teams,Social Care - Day Care,15/02/2017,3832691,900.64,APASENTH
Adults Services,Adult Social Care,Support with Memory and Cognition - adults (18-64),CLDS Longer Term Support Teams,Social Care - Day Care,15/02/2017,3832692,654.24,APASENTH
Adults Services,Adult Social Care,Support with Memory and Cognition - adults (18-64),CLDS Longer Term Support Teams,Social Care - Day Care,15/02/2017,3832693,708.76,APASENTH
Adults Services,Adult Social Care,Support with Memory and Cognition - adults (18-64),CLDS Longer Term Support Teams,Social Care - Day Care,15/02/2017,3832694,"1,185.36",APASENTH
Adults Services,Adult Social Care,Support with Memory and Cognition - adults (18-64),CLDS Longer Term Support Teams,Social Care - Day Care,15/02/2017,3832696,926.84,APASENTH
Adults Services,Adult Social Care,Support with Memory and Cognition - adults (18-64),CLDS Longer Term Support Teams,Social Care - Day Care,15/02/2017,3832697,"1,454.88",APASENTH
Adults Services,Adult Social Care,Support with Memory and Cognition - adults (18-64),CLDS Transition,Social Care - Day Care,15/02/2017,3832698,831.36,APASENTH
Adults Services,Adult Social Care,Support with Memory and Cognition - adults (18-64),CLDS Longer Term Support Teams,Social Care - Day Care,15/02/2017,3832699,"1,144.92",APASENTH
Adults Services,Adult Social Care,Support with Memory and Cognition - adults (18-64),CLDS Longer Term Support Teams,Social Care - Day Care,15/02/2017,3832700,"1,454.88",APASENTH
Adults Services,Adult Social Care,Support with Memory and Cognition - adults (18-64),CLDS Longer Term Support Teams,Social Care - Day Care,15/02/2017,3832701,654.24,APASENTH
Adults Services,Adult Social Care,Support with Memory and Cognition - adults (18-64),CLDS Longer Term Support Teams,Social Care - Day Care,15/02/2017,3832702,"1,454.88",APASENTH
Adults Services,Adult Social Care,Support with Memory and Cognition - adults (18-64),CLDS Longer Term Support Teams,Social Care - Day Care,15/02/2017,3832703,"2,383.50",APASENTH
Adults Services,Adult Social Care,Support with Memory and Cognition - adults (18-64),CLDS Longer Term Support Teams,Social Care - Day Care,15/02/2017,3832705,708.76,APASENTH
Adults Services,Adult Social Care,Support with Memory and Cognition - adults (18-64),CLDS Longer Term Support Teams,Social Care - Day Care,15/02/2017,3832706,"1,035.88",APASENTH
Adults Services,Adult Social Care,Support with Memory and Cognition - adults (18-64),CLDS Longer Term Support Teams,Social Care - Day Care,15/02/2017,3832708,654.24,APASENTH
Adults Services,Adult Social Care,Support with Memory and Cognition - adults (18-64),CLDS Longer Term Support Teams,Social Care - Day Care,15/02/2017,3832709,654.24,APASENTH
Adults Services,Adult Social Care,Support with Memory and Cognition - adults (18-64),CLDS Longer Term Support Teams,Social Care - Day Care,15/02/2017,3832710,545.20,APASENTH
Adults Services,Adult Social Care,Support with Memory and Cognition - adults (18-64),CLDS Longer Term Support Teams,Social Care - Day Care,15/02/2017,3832711,"2,074.17",APASENTH
Adults Services,Adult Social Care,Support with Memory and Cognition - adults (18-64),CLDS Longer Term Support Teams,Social Care - Day Care,15/02/2017,3832712,"1,247.04",APASENTH
Adults Services,Adult Social Care,Support with Memory and Cognition - adults (18-64),CLDS Longer Term Support Teams,Social Care - Day Care,15/02/2017,3832713,"1,248.50",APASENTH
Adults Services,Adult Social Care,Support with Memory and Cognition - adults (18-64),CLDS Longer Term Support Teams,Social Care - Day Care,15/02/2017,3832714,"1,144.92",APASENTH
Adults Services,Adult Social Care,Support with Memory and Cognition - adults (18-64),CLDS Longer Term Support Teams,Social Care - Day Care,15/02/2017,3832716,"2,383.50",APASENTH
Adults Services,Adult Social Care,Support with Memory and Cognition - adults (18-64),CLDS Longer Term Support Teams,Social Care - Day Care,15/02/2017,3832717,"1,826.58",APASENTH
Adults Services,Adult Social Care,Support with Memory and Cognition - adults (18-64),CLDS Longer Term Support Teams,Social Care - Day Care,15/02/2017,3832718,"1,516.62",APASENTH
Adults Services,Adult Social Care,Support with Memory and Cognition - adults (18-64),CLDS Longer Term Support Teams,Social Care - Day Care,15/02/2017,3832719,831.36,APASENTH
Adults Services,Adult Social Care,Support with Memory and Cognition - adults (18-64),CLDS Longer Term Support Teams,Social Care - Day Care,15/02/2017,3832720,"2,074.38",APASENTH
Adults Services,Adult Social Care,Support with Memory and Cognition - adults (18-64),CLDS Longer Term Support Teams,Social Care - Day Care,15/02/2017,3832721,"1,144.92",APASENTH
Adults Services,Adult Social Care,Support with Memory and Cognition - adults (18-64),CLDS Longer Term Support Teams,Social Care - Day Care,15/02/2017,3832723,654.24,APASENTH
Adults Services,Adult Social Care,Support with Memory and Cognition - adults (18-64),CLDS Longer Term Support Teams,Social Care - Day Care,15/02/2017,3832724,"1,144.92",APASENTH
Adults Services,Adult Social Care,Support with Memory and Cognition - adults (18-64),CLDS Longer Term Support Teams,Social Care - Day Care,15/02/2017,3832725,"1,090.40",APASENTH
Adults Services,Adult Social Care,Support with Memory and Cognition - adults (18-64),CLDS Longer Term Support Teams,Social Care - Day Care,15/02/2017,3832726,654.24,APASENTH
Adults Services,Adult Social Care,Support with Memory and Cognition - adults (18-64),CLDS Longer Term Support Teams,Social Care - Day Care,15/02/2017,3832727,763.28,APASENTH
Adults Services,Adult Social Care,Support with Memory and Cognition - adults (18-64),CLDS Longer Term Support Teams,Social Care - Day Care,15/02/2017,3832728,"1,144.92",APASENTH
Adults Services,Adult Social Care,Support with Memory and Cognition - adults (18-64),CLDS Transition,Social Care - Day Care,15/02/2017,3832729,623.52,APASENTH
